Workbook

Sheet F_PLANING
A1: PLANNING | E1: 10 | I1: 87 | J1: JANVIER | K1: =+J1 -> JANVIER | L1: =+J1 -> JANVIER | M1: FEVRIER | N1: =+M1 -> FEVRIER | O1: =+M1 -> FEVRIER | P1: MARS | Q1: =+P1 -> MARS | R1: =+P1 -> MARS | S1: AVRIL | T1: =+S1 -> AVRIL | U1: =+S1 -> AVRIL | V1: MAI | W1: MAI | X1: MAI | Y1: JUIN | Z1: =+Y1 -> JUIN | AA1: =+Y1 -> JUIN | AB1: JUILLET | AC1: =+AB1 -> JUILLET | AD1: =+AB1 -> JUILLET | AE1: AOUT | AF1: =+AE1 -> AOUT | AG1: =+AF1 -> AOUT | AH1: SEPTEMBRE | AI1: =+AH1 -> SEPTEMBRE | AJ1: =+AH1 -> SEPTEMBRE | AK1: OCTOBRE | AL1: =+AK1 -> OCTOBRE | AM1: =+AL1 -> OCTOBRE | AN1: NOVEMBRE | AO1: =+AN1 -> NOVEMBRE | AP1: =+AN1 -> NOVEMBRE | AQ1: DECEMBRE | AR1: =+AQ1 -> DECEMBRE | AS1: =+AR1 -> DECEMBRE | AT1: JANVIER | AU1: =+AT1 -> JANVIER | AV1: =+AU1 -> JANVIER | AW1: FEVRIER | AX1: =+AW1 -> FEVRIER | AY1: =+AX1 -> FEVRIER | AZ1: MARS | BA1: =+AZ1 -> MARS | BB1: =+BA1 -> MARS | BC1: AVRIL | BD1: =+BC1 -> AVRIL | BE1: =+BD1 -> AVRIL | BF1: MAI | BG1: =+BF1 -> MAI | BH1: =+BG1 -> MAI | BI1: JUIN | BJ1: =+BI1 -> JUIN | BK1: =+BJ1 -> JUIN | BL1: JUILLET | BM1: =+BL1 -> JUILLET | BN1: =+BM1 -> JUILLET | BO1: AOUT | BP1: =+BO1 -> AOUT | BQ1: =+BP1 -> AOUT | BR1: SEPTEMBRE | BS1: =+BR1 -> SEPTEMBRE | BT1: =+BS1 -> SEPTEMBRE | BU1: OCTOBRE | BV1: =+BU1 -> OCTOBRE | BW1: =+BV1 -> OCTOBRE | BX1: NOVEMBRE | BY1: =+BX1 -> NOVEMBRE | BZ1: =+BY1 -> NOVEMBRE | CA1: DECEMBRE | CB1: =+CA1 -> DECEMBRE | CC1: =+CB1 -> DECEMBRE | CD1: JANVIER | CE1: =+CD1 -> JANVIER | CF1: =+CE1 -> JANVIER | CG1: FEVRIER | CH1: =+CG1 -> FEVRIER | CI1: =+CH1 -> FEVRIER
I2: TRESORERIE | J2: 10 | K2: =+J2+1 -> 11 | L2: =+K2+1 -> 12 | M2: 13 | N2: 14 | O2: 15 | P2: 16 | Q2: 17 | R2: 18 | S2: 19 | T2: 20 | U2: 21 | V2: 22 | W2: 23 | X2: 24 | Y2: 25 | Z2: 26 | AA2: 27 | AB2: 28 | AC2: 29 | AD2: 30 | AE2: 31 | AF2: 32 | AG2: 33 | AH2: 34 | AI2: 35 | AJ2: 36 | AK2: 37 | AL2: 38 | AM2: 39 | AN2: 40 | AO2: 41 | AP2: 42 | AQ2: 43 | AR2: 44 | AS2: 45 | AT2: 46 | AU2: 47 | AV2: 48 | AW2: 49 | AX2: 50 | AY2: 51 | AZ2: =+AY2+1 -> 52 | BA2: =+AZ2+1 -> 53 | BB2: =+BA2+1 -> 54 | BC2: =+BB2+1 -> 55 | BD2: =+BC2+1 -> 56 | BE2: =+BD2+1 -> 57 | BF2: =+BE2+1 -> 58 | BG2: =+BF2+1 -> 59 | BH2: =+BG2+1 -> 60 | BI2: =+BH2+1 -> 61 | BJ2: =+BI2+1 -> 62 | BK2: =+BJ2+1 -> 63 | BL2: =+BK2+1 -> 64 | BM2: =+BL2+1 -> 65 | BN2: =+BM2+1 -> 66 | BO2: =+BN2+1 -> 67 | BP2: =+BO2+1 -> 68 | BQ2: =+BP2+1 -> 69 | BR2: =+BQ2+1 -> 70 | BS2: =+BR2+1 -> 71 | BT2: =+BS2+1 -> 72 | BU2: =+BT2+1 -> 73 | BV2: =+BU2+1 -> 74 | BW2: =+BV2+1 -> 75 | BX2: =+BW2+1 -> 76 | BY2: =+BX2+1 -> 77 | BZ2: =+BY2+1 -> 78 | CA2: =+BZ2+1 -> 79 | CB2: =+CA2+1 -> 80 | CC2: =+CB2+1 -> 81 | CD2: =+CC2+1 -> 82 | CE2: =+CD2+1 -> 83 | CF2: =+CE2+1 -> 84 | CG2: =+CF2+1 -> 85 | CH2: =+CG2+1 -> 86 | CI2: =+CH2+1 -> 87
I3: ING | Z3: 6200.00
I4: CBC
I5: CAISSE
J6: B | K6: R | L6: D | M6: B | N6: R | O6: D | P6: B | Q6: R | R6: D | S6: B | T6: R | U6: D | V6: B | W6: R | X6: D | Y6: B | Z6: R | AA6: D | AB6: B | AC6: R | AD6: D | AE6: B | AF6: R | AG6: D | AH6: B | AI6: R | AJ6: D | AK6: B | AL6: R | AM6: D | AN6: B | AO6: R | AP6: D | AQ6: B | AR6: R | AS6: D | AT6: B | AU6: R | AV6: D | AW6: B | AX6: R | AY6: D | AZ6: B | BA6: R | BB6: D | BC6: B | BD6: R | BE6: D | BF6: B | BG6: R | BH6: D | BI6: B | BJ6: R | BK6: D | BL6: B | BM6: R | BN6: D | BO6: B | BP6: R | BQ6: D | BR6: B | BS6: R | BT6: D | BU6: B | BV6: R | BW6: D | BX6: B | BY6: R | BZ6: D | CA6: B | CB6: R | CC6: D | CD6: B | CE6: R | CF6: D | CG6: B | CH6: R | CI6: D
J8: 2018 | K8: =+J8 -> 2018 | L8: =+K8 -> 2018 | M8: =+L8 -> 2018 | N8: =+M8 -> 2018 | O8: =+N8 -> 2018 | P8: =+O8 -> 2018 | Q8: 2018 | R8: =+Q8 -> 2018 | S8: =+R8 -> 2018 | T8: 2018 | U8: 2018 | V8: 2018 | W8: 2018 | X8: 2018 | Y8: 2018 | Z8: 2018 | AA8: 2018 | AB8: 2018 | AC8: 2018 | AD8: 2018 | AE8: 2018 | AF8: 2018 | AG8: 2018 | AH8: 2018 | AI8: 2018 | AJ8: 2018 | AK8: 2018 | AL8: 2018 | AM8: 2018 | AN8: 2018 | AO8: 2018 | AP8: 2018 | AQ8: 2018 | AR8: 2018 | AS8: 2018 | AT8: 2019 | AU8: =+AT8 -> 2019 | AV8: =+AU8 -> 2019 | AW8: 2019 | AX8: =+AW8 -> 2019 | AY8: =+AX8 -> 2019 | AZ8: 2019 | BA8: =+AZ8 -> 2019 | BB8: =+BA8 -> 2019 | BC8: 2019 | BD8: =+BC8 -> 2019 | BE8: =+BD8 -> 2019 | BF8: 2019 | BG8: =+BF8 -> 2019 | BH8: =+BG8 -> 2019 | BI8: 2019 | BJ8: =+BI8 -> 2019 | BK8: =+BJ8 -> 2019 | BL8: 2019 | BM8: =+BL8 -> 2019 | BN8: =+BM8 -> 2019 | BO8: 2019 | BP8: =+BO8 -> 2019 | BQ8: =+BP8 -> 2019 | BR8: 2019 | BS8: =+BR8 -> 2019 | BT8: =+BS8 -> 2019 | BU8: 2019 | BV8: =+BU8 -> 2019 | BW8: =+BV8 -> 2019 | BX8: 2019 | BY8: =+BX8 -> 2019 | BZ8: =+BY8 -> 2019 | CA8: 2019 | CB8: =+CA8 -> 2019 | CC8: =+CB8 -> 2019 | CD8: 2020 | CE8: =+CD8 -> 2020 | CF8: =+CE8 -> 2020 | CG8: 2019 | CH8: =+CG8 -> 2019 | CI8: =+CH8 -> 2019
J9: BUDGET | K9: REEL | L9: Delta | M9: =+J9 -> BUDGET | N9: REEL | O9: Delta | P9: BUDGET | Q9: REEL | R9: Delta | S9: BUDGET | T9: REEL | U9: Delta | V9: BUDGET | W9: REEL | X9: Delta | Y9: BUDGET | Z9: REEL | AA9: Delta | AB9: BUDGET | AC9: REEL | AD9: Delta | AE9: BUDGET | AF9: REEL | AG9: Delta | AH9: BUDGET | AI9: REEL | AJ9: Delta | AK9: BUDGET | AL9: REEL | AM9: Delta | AN9: BUDGET | AO9: REEL | AP9: Delta | AQ9: =+AN9 -> BUDGET | AR9: REEL | AS9: Delta | AT9: =+AQ9 -> BUDGET | AU9: =+AR9 -> REEL | AV9: =+AS9 -> Delta | AW9: =+AT9 -> BUDGET | AX9: =+AU9 -> REEL | AY9: =+AV9 -> Delta | AZ9: =+AW9 -> BUDGET | BA9: =+AX9 -> REEL | BB9: =+AY9 -> Delta | BC9: =+AZ9 -> BUDGET | BD9: =+BA9 -> REEL | BE9: =+BB9 -> Delta | BF9: =+BC9 -> BUDGET | BG9: =+BD9 -> REEL | BH9: =+BE9 -> Delta | BI9: =+BF9 -> BUDGET | BJ9: =+BG9 -> REEL | BK9: =+BH9 -> Delta | BL9: =+BI9 -> BUDGET | BM9: =+BJ9 -> REEL | BN9: =+BK9 -> Delta | BO9: =+BL9 -> BUDGET | BP9: =+BM9 -> REEL | BQ9: =+BN9 -> Delta | BR9: =+BO9 -> BUDGET | BS9: =+BP9 -> REEL | BT9: =+BQ9 -> Delta | BU9: =+BR9 -> BUDGET | BV9: =+BS9 -> REEL | BW9: =+BT9 -> Delta | BX9: =+BU9 -> BUDGET | BY9: =+BV9 -> REEL | BZ9: =+BW9 -> Delta | CA9: =+BX9 -> BUDGET | CB9: =+BY9 -> REEL | CC9: =+BZ9 -> Delta | CD9: =+CA9 -> BUDGET | CE9: =+CB9 -> REEL | CF9: =+CC9 -> Delta | CG9: =+CD9 -> BUDGET | CH9: =+CE9 -> REEL | CI9: =+CF9 -> Delta
J10: Janvier | K10: =+J10 -> Janvier | L10: =+K10 -> Janvier | M10: Février | N10: =+M10 -> Février | O10: =+N10 -> Février | P10: =+P1 -> MARS | Q10: MARS | R10: MARS | S10: AVRIL | T10: AVRIL | U10: AVRIL | V10: MAI | W10: MAI | X10: MAI | Y10: JUIN | Z10: JUIN | AA10: JUIN | AB10: JUILLET | AC10: JUILLET | AD10: JUILLET | AE10: AOUT | AF10: AOUT | AG10: AOUT | AH10: SEPTEMBRE | AI10: SEPTEMBRE | AJ10: SEPTEMBRE | AK10: OCTOBRE | AL10: OCTOBRE | AM10: OCTOBRE | AN10: NOVEMBRE | AO10: NOVEMBRE | AP10: NOVEMBRE | AQ10: DECEMBRE | AR10: DECEMBRE | AS10: DECEMBRE | AT10: JANVIER | AU10: JANVIER | AV10: =+AV1 -> JANVIER | AW10: FEVRIER | AX10: FEVRIER | AY10: FEVRIER | AZ10: MARS | BA10: MARS | BB10: MARS | BC10: AVRIL | BD10: AVRIL | BE10: AVRIL | BF10: MAI | BG10: MAI | BH10: MAI | BI10: JUIN | BJ10: JUIN | BK10: JUIN | BL10: JUILLET | BM10: JUILLET | BN10: JUILLET | BO10: AOUT | BP10: AOUT | BQ10: AOUT | BR10: SEPTEMBRE | BS10: SEPTEMBRE | BT10: SEPTEMBRE | BU10: OCTOBRE | BV10: OCTOBRE | BW10: OCTOBRE | BX10: NOVEMBRE | BY10: NOVEMBRE | BZ10: NOVEMBRE | CA10: DECEMBRE | CB10: =+CB1 -> DECEMBRE | CC10: DECEMBRE | CD10: JANVIER | CE10: JANVIER | CF10: JANVIER | CG10: FEVRIER | CH10: FEVRIER | CI10: FEVRIER
H11: TOTAUX | J11: =+J81-J24 -> 0.00 | K11: 0.00 | L11: 0.00 | M11: 0.00 | N11: 0.00 | O11: 0.00 | P11: -1,551.42 | Q11: -1,551.42 | R11: 0.00 | S11: -4,787.41 | T11: -4,787.41 | U11: 0.00 | V11: 3,242.04 | W11: 1,899.00 | X11: 0.00 | Y11: 6,682.58 | Z11: -2,862.87 | AA11: 9,545.45 | AB11: -5,515.00 | AC11: -2,500.00 | AD11: -63,515.00 | AE11: -57,677.29 | AF11: -2,500.00 | AG11: -56,662.29 | AH11: 89,637.71 | AI11: -2,500.00 | AJ11: 241,787.71 | AK11: 276,837.71 | AL11: -2,500.00 | AM11: 276,837.71 | AN11: -25,662.29 | AO11: -2,500.00 | AP11: =+AP81-AP24 -> -25,662.29 | AQ11: -25,662.29 | AR11: -2,500.00 | AS11: -25,662.29 | AT11: -25,662.29 | AU11: -2,500.00 | AV11: -25,662.29 | AW11: -25,662.29 | AX11: -2,500.00 | AY11: -24,647.29 | AZ11: -25,662.29 | BA11: -2,500.00 | BB11: -25,662.29 | BC11: -25,662.29 | BD11: 0.00 | BE11: -24,647.29 | BF11: -23,162.29 | BG11: 0.00 | BH11: -23,162.29 | BI11: -23,512.29 | BJ11: 0.00 | BK11: -22,497.29 | BL11: -23,162.29 | BM11: 0.00 | BN11: -23,162.29 | BO11: -23,162.29 | BP11: 0.00 | BQ11: -22,147.29 | BR11: -23,162.29 | BS11: 0.00 | BT11: -23,162.29 | BU11: -23,162.29 | BV11: =+BV81-BV24 -> 0.00 | BW11: -22,147.29 | BX11: -23,162.29 | BY11: 0.00 | BZ11: -23,162.29 | CA11: -23,162.29 | CB11: 0.00 | CC11: -22,147.29 | CD11: -23,162.29 | CE11: 0.00 | CF11: -23,162.29 | CG11: -23,162.29 | CH11: 0.00 | CI11: -22,147.29
H12: Cumul BUDGET | J12: 0.00 | M12: =M11+J12 -> 0.00 | P12: =P11+M12 -> -1,551.42 | S12: =S11+P12 -> -6,338.83 | V12: =V11+S12 -> -3,096.79 | Y12: =Y11+V12 -> 3,585.79 | AB12: =AB11+Y12 -> -1,929.21 | AE12: =AE11+AB12 -> -59,606.50 | AH12: =AH11+AE12 -> 30,031.21 | AK12: =AK11+AH12 -> 306,868.92 | AN12: =AN11+AK12 -> 281,206.63 | AQ12: =AQ11+AN12 -> 255,544.34 | AT12: =AT11+AQ12 -> 229,882.05 | AW12: =AW11+AT12 -> 204,219.76 | AZ12: =AZ11+AW12 -> 178,557.47 | BC12: =BC11+AZ12 -> 152,895.18 | BF12: =BF11+BC12 -> 129,732.89 | BI12: =BI11+BF12 -> 106,220.60 | BL12: =BL11+BI12 -> 83,058.31 | BO12: =BO11+BL12 -> 59,896.02 | BR12: =BR11+BO12 -> 36,733.73 | BU12: =BU11+BR12 -> 13,571.44 | BX12: =BX11+BU12 -> -9,590.85 | CA12: =CA11+BX12 -> -32,753.14 | CD12: =CD11+CA12 -> -55,915.43 | CG12: =CG11+CD12 -> -79,077.72
H13: Cumul REEL | K13: 0.00 | N13: =N11+K13 -> 0.00 | Q13: =Q11+N13 -> -1,551.42 | T13: =T11+Q13 -> -6,338.83 | W13: =W11+T13 -> -4,439.83 | Z13: =Z11+W13 -> -7,302.70 | AC13: =AC11+Z13 -> -9,802.70 | AF13: =AF11+AC13 -> -12,302.70 | AI13: =AI11+AF13 -> -14,802.70 | AL13: =AL11+AI13 -> -17,302.70 | AO13: =AO11+AL13 -> -19,802.70 | AR13: =AR11+AO13 -> -22,302.70 | AU13: =AU11+AR13 -> -24,802.70 | AX13: =AX11+AU13 -> -27,302.70 | BA13: =BA11+AX13 -> -29,802.70 | BD13: =BD11+BA13 -> -29,802.70 | BG13: =BG11+BD13 -> -29,802.70 | BJ13: =BJ11+BG13 -> -29,802.70 | BM13: =BM11+BJ13 -> -29,802.70 | BP13: =BP11+BM13 -> -29,802.70 | BS13: =BS11+BP13 -> -29,802.70 | BV13: =BV11+BS13 -> -29,802.70 | BY13: =BY11+BV13 -> -29,802.70 | CB13: =CB11+BY13 -> -29,802.70 | CE13: =CE11+CB13 -> -29,802.70 | CH13: =CH11+CE13 -> -29,802.70
H14: Cumul Delta | L14: 0.00 | O14: =O11+L14 -> 0.00 | R14: =R11+O14 -> 0.00 | U14: =U11+R14 -> 0.00 | X14: =X11+U14 -> 0.00 | AA14: =AA11+X14 -> 9,545.45 | AD14: =AD11+AA14 -> -53,969.55 | AG14: =AG11+AD14 -> -110,631.84 | AJ14: =AJ11+AG14 -> 131,155.87 | AM14: =AM11+AJ14 -> 407,993.58 | AP14: =AP11+AM14 -> 382,331.29 | AS14: =AS11+AP14 -> 356,669.00 | AV14: =AV11+AS14 -> 331,006.71 | AY14: =AY11+AV14 -> 306,359.42 | BB14: =BB11+AY14 -> 280,697.13 | BE14: =BE11+BB14 -> 256,049.84 | BH14: =BH11+BE14 -> 232,887.55 | BK14: =BK11+BH14 -> 210,390.26 | BN14: =BN11+BK14 -> 187,227.97 | BQ14: =BQ11+BN14 -> 165,080.68 | BT14: =BT11+BQ14 -> 141,918.39 | BW14: =BW11+BT14 -> 119,771.10 | BZ14: =BZ11+BW14 -> 96,608.81 | CC14: =CC11+BZ14 -> 74,461.52 | CF14: =CF11+CC14 -> 51,299.23 | CI14: =CI11+CF14 -> 29,151.94
B16: 2,018 | C16: =+AN21 -> 281,206.63 | D16: =IF(C16<0,"ATTENTION","OK") -> OK | G16: CHARGES | I16: Frais généraux | J16: =-J24-J17 -> 0 | K16: =-K24-K17 -> 0 | L16: 0 | M16: 0 | N16: 0 | O16: 0 | P16: -1,551 | Q16: -1,551 | R16: 0 | S16: -4,787 | T16: -4,787 | U16: 0 | V16: -6,258 | W16: -7,601 | X16: 0 | Y16: -8,817 | Z16: -8,063 | AA16: -755 | AB16: -5,515 | AC16: -2,500 | AD16: -5,515 | AE16: -9,677 | AF16: -2,500 | AG16: -8,662 | AH16: -25,662 | AI16: -2,500 | AJ16: -26,012 | AK16: -25,662 | AL16: -2,500 | AM16: -25,662 | AN16: -25,662 | AO16: -2,500 | AP16: -25,662 | AQ16: -25,662 | AR16: -2,500 | AS16: -25,662 | AT16: -25,662 | AU16: -2,500 | AV16: -25,662 | AW16: -25,662 | AX16: -2,500 | AY16: -24,647 | AZ16: -25,662 | BA16: -2,500 | BB16: -25,662 | BC16: -25,662 | BD16: 0 | BE16: -24,647 | BF16: -23,162 | BG16: 0 | BH16: -23,162 | BI16: -23,512 | BJ16: 0 | BK16: -22,497 | BL16: -23,162 | BM16: 0 | BN16: -23,162 | BO16: -23,162 | BP16: 0 | BQ16: -22,147 | BR16: -23,162 | BS16: 0 | BT16: -23,162 | BU16: -23,162 | BV16: 0 | BW16: =-BW24-BW17 -> -22,147 | BX16: -23,162 | BY16: 0 | BZ16: -23,162 | CA16: -23,162 | CB16: 0 | CC16: -22,147 | CD16: -23,162 | CE16: 0 | CF16: -23,162 | CG16: -23,162 | CH16: =+CH24-CH17 -> 0 | CI16: 22,147
I17: Sur achats | J17: =-SUM(J74:J79) -> 0 | K17: =-SUM(K74:K79) -> 0 | L17: 0 | M17: 0 | N17: 0 | O17: 0 | P17: 0 | Q17: 0 | R17: 0 | S17: 0 | T17: 0 | U17: 0 | V17: 0 | W17: 0 | X17: 0 | Y17: 0 | Z17: 0 | AA17: 0 | AB17: 0 | AC17: 0 | AD17: -58,000 | AE17: -58,000 | AF17: 0 | AG17: -58,000 | AH17: -95,000 | AI17: 0 | AJ17: -97,000 | AK17: -97,000 | AL17: 0 | AM17: -97,000 | AN17: 0 | AO17: 0 | AP17: 0 | AQ17: 0 | AR17: 0 | AS17: 0 | AT17: 0 | AU17: 0 | AV17: 0 | AW17: 0 | AX17: 0 | AY17: 0 | AZ17: 0 | BA17: 0 | BB17: 0 | BC17: 0 | BD17: 0 | BE17: 0 | BF17: 0 | BG17: 0 | BH17: 0 | BI17: 0 | BJ17: 0 | BK17: 0 | BL17: 0 | BM17: 0 | BN17: 0 | BO17: 0 | BP17: 0 | BQ17: 0 | BR17: 0 | BS17: 0 | BT17: 0 | BU17: 0 | BV17: 0 | BW17: =-SUM(BW74:BW79) -> 0 | BX17: 0 | BY17: 0 | BZ17: 0 | CA17: 0 | CB17: 0 | CC17: 0 | CD17: 0 | CE17: 0 | CF17: 0 | CG17: 0 | CH17: =SUM(CH74:CH79) -> 0 | CI17: 0
B18: 2,019 | C18: =+CA21 -> -32,753.14 | D18: =IF(C18<0,"ATTENTION","OK") -> ATTENTION | G18: PRODUITS | I18: Sur ventes | J18: =+J81-J19 -> 0 | K18: 0 | L18: 0 | M18: 0 | N18: 0 | O18: 0 | P18: 0 | Q18: 0 | R18: 0 | S18: 0 | T18: 0 | U18: 0 | V18: 0 | W18: 0 | X18: 0 | Y18: =+Y81-Y19 -> 0 | Z18: =+Z81-Z19 -> 0 | AA18: 0 | AB18: 0 | AC18: 0 | AD18: 0 | AE18: 0 | AF18: 0 | AG18: 0 | AH18: 245,000 | AI18: 0 | AJ18: 399,500 | AK18: 399,500 | AL18: 0 | AM18: 399,500 | AN18: 0 | AO18: 0 | AP18: 0 | AQ18: 0 | AR18: 0 | AS18: 0 | AT18: 0 | AU18: 0 | AV18: 0 | AW18: 0 | AX18: 0 | AY18: 0 | AZ18: 0 | BA18: 0 | BB18: 0 | BC18: 0 | BD18: 0 | BE18: 0 | BF18: 0 | BG18: 0 | BH18: 0 | BI18: 0 | BJ18: 0 | BK18: 0 | BL18: 0 | BM18: 0 | BN18: 0 | BO18: 0 | BP18: 0 | BQ18: 0 | BR18: 0 | BS18: 0 | BT18: 0 | BU18: 0 | BV18: 0 | BW18: 0 | BX18: 0 | BY18: 0 | BZ18: 0 | CA18: 0 | CB18: 0 | CC18: 0 | CD18: 0 | CE18: 0 | CF18: 0 | CG18: 0 | CH18: 0 | CI18: 0
I19: Autres | J19: =SUM(J85:J95) -> 0 | K19: 0 | L19: 0 | M19: 0 | N19: 0 | O19: 0 | P19: 0 | Q19: 0 | R19: 0 | S19: 0 | T19: 0 | U19: 0 | V19: 9,500 | W19: 9,500 | X19: 0 | Y19: =SUM(Y85:Y95) -> 15,500 | Z19: 5,200 | AA19: 10,300 | AB19: 0 | AC19: 0 | AD19: 0 | AE19: 10,000 | AF19: 0 | AG19: 10,000 | AH19: -34,700 | AI19: 0 | AJ19: -34,700 | AK19: 0 | AL19: 0 | AM19: 0 | AN19: 0 | AO19: 0 | AP19: 0 | AQ19: 0 | AR19: 0 | AS19: 0 | AT19: 0 | AU19: 0 | AV19: 0 | AW19: 0 | AX19: 0 | AY19: 0 | AZ19: 0 | BA19: 0 | BB19: 0 | BC19: 0 | BD19: 0 | BE19: =SUM(BE85:BE95) -> 0 | BF19: 0 | BG19: 0 | BH19: 0 | BI19: 0 | BJ19: 0 | BK19: 0 | BL19: 0 | BM19: 0 | BN19: 0 | BO19: 0 | BP19: 0 | BQ19: 0 | BR19: 0 | BS19: 0 | BT19: 0 | BU19: 0 | BV19: 0 | BW19: 0 | BX19: 0 | BY19: 0 | BZ19: 0 | CA19: 0 | CB19: 0 | CC19: 0 | CD19: 0 | CE19: 0 | CF19: 0 | CG19: 0 | CH19: 0 | CI19: 0
C20: =+CG21 -> -79,077.72 | D20: =IF(C20<0,"ATTENTION","OK") -> ATTENTION | H20: SOLDE | J20: =SUM(J16:J19) -> 0 | K20: =+K18+K19-K16-K17 -> 0 | L20: 0 | M20: =SUM(M16:M19) -> 0 | N20: 0 | O20: 0 | P20: -1,551 | Q20: -1,551 | R20: 0 | S20: -4,787 | T20: -4,787 | U20: 0 | V20: 3,242 | W20: 1,899 | X20: 0 | Y20: 6,683 | Z20: -2,863 | AA20: 9,545 | AB20: -5,515 | AC20: -2,500 | AD20: -63,515 | AE20: -57,677 | AF20: -2,500 | AG20: -56,662 | AH20: 89,638 | AI20: -2,500 | AJ20: 241,788 | AK20: 276,838 | AL20: -2,500 | AM20: 276,838 | AN20: -25,662 | AO20: -2,500 | AP20: -25,662 | AQ20: -25,662 | AR20: -2,500 | AS20: -25,662 | AT20: -25,662 | AU20: -2,500 | AV20: -25,662 | AW20: -25,662 | AX20: -2,500 | AY20: -24,647 | AZ20: -25,662 | BA20: -2,500 | BB20: -25,662 | BC20: -25,662 | BD20: 0 | BE20: -24,647 | BF20: -23,162 | BG20: 0 | BH20: -23,162 | BI20: -23,512 | BJ20: 0 | BK20: -22,497 | BL20: -23,162 | BM20: 0 | BN20: -23,162 | BO20: -23,162 | BP20: 0 | BQ20: -22,147 | BR20: -23,162 | BS20: 0 | BT20: -23,162 | BU20: -23,162 | BV20: 0 | BW20: -22,147 | BX20: -23,162 | BY20: =SUM(BY16:BY19) -> 0 | BZ20: -23,162 | CA20: -23,162 | CB20: 0 | CC20: -22,147 | CD20: -23,162 | CE20: 0 | CF20: -23,162 | CG20: -23,162 | CH20: =SUM(CH86:CH96) -> 0 | CI20: =SUM(CI86:CI96) -> 0
H21: CUMUL | J21: =+J20 -> 0 | K21: =+K20 -> 0 | L21: =+L20 -> 0 | M21: =+M20+J21 -> 0 | N21: =+N20+K21 -> 0 | O21: 0 | P21: -1,551 | Q21: -1,551 | R21: 0 | S21: -6,339 | T21: -6,339 | U21: 0 | V21: -3,097 | W21: -4,440 | X21: 0 | Y21: 3,586 | Z21: =+Z20+W21 -> -7,303 | AA21: =+AA20+X21 -> 9,545 | AB21: =+AB20+Y21 -> -1,929 | AC21: =+AC20+Z21 -> -9,803 | AD21: =+AD20+AA21 -> -53,970 | AE21: =+AE20+AB21 -> -59,607 | AF21: =+AF20+AC21 -> -12,303 | AG21: =+AG20+AD21 -> -110,632 | AH21: =+AH20+AE21 -> 30,031 | AI21: =+AI20+AF21 -> -14,803 | AJ21: =+AJ20+AG21 -> 131,156 | AK21: =+AK20+AH21 -> 306,869 | AL21: =+AL20+AI21 -> -17,303 | AM21: =+AM20+AJ21 -> 407,994 | AN21: =+AN20+AK21 -> 281,207 | AO21: =+AO20+AL21 -> -19,803 | AP21: =+AP20+AM21 -> 382,331 | AQ21: =+AQ20+AN21 -> 255,544 | AR21: =+AR20+AO21 -> -22,303 | AS21: =+AS20+AP21 -> 356,669 | AT21: =+AT20+AQ21 -> 229,882 | AU21: =+AU20+AR21 -> -24,803 | AV21: =+AV20+AS21 -> 331,007 | AW21: =+AW20+AT21 -> 204,220 | AX21: =+AX20+AU21 -> -27,303 | AY21: =+AY20+AV21 -> 306,359 | AZ21: =+AZ20+AW21 -> 178,557 | BA21: =+BA20+AX21 -> -29,803 | BB21: =+BB20+AY21 -> 280,697 | BC21: =+BC20+AZ21 -> 152,895 | BD21: =+BD20+BA21 -> -29,803 | BE21: =+BE20+BB21 -> 256,050 | BF21: =+BF20+BC21 -> 129,733 | BG21: =+BG20+BD21 -> -29,803 | BH21: =+BH20+BE21 -> 232,888 | BI21: =+BI20+BF21 -> 106,221 | BJ21: =+BJ20+BG21 -> -29,803 | BK21: =+BK20+BH21 -> 210,390 | BL21: =+BL20+BI21 -> 83,058 | BM21: =+BM20+BJ21 -> -29,803 | BN21: =+BN20+BK21 -> 187,228 | BO21: =+BO20+BL21 -> 59,896 | BP21: =+BP20+BM21 -> -29,803 | BQ21: =+BQ20+BN21 -> 165,081 | BR21: =+BR20+BO21 -> 36,734 | BS21: =+BS20+BP21 -> -29,803 | BT21: =+BT20+BQ21 -> 141,918 | BU21: =+BU20+BR21 -> 13,571 | BV21: =+BV20+BS21 -> -29,803 | BW21: =+BW20+BT21 -> 119,771 | BX21: =+BX20+BU21 -> -9,591 | BY21: =+BY20+BV21 -> -29,803 | BZ21: =+BZ20+BW21 -> 96,609 | CA21: =+CA20+BX21 -> -32,753 | CB21: =+CB20+BY21 -> -29,803 | CC21: =+CC20+BZ21 -> 74,462 | CD21: =+CD20+CA21 -> -55,915 | CE21: =+CE20+CB21 -> -29,803 | CF21: =+CF20+CC21 -> 51,299 | CG21: =+CG20+CD21 -> -79,078 | CH21: =+CH20+CE21 -> -29,803 | CI21: =+CI20+CF21 -> 51,299
I23: TEST
G24: CHARGES | H24: TOTAUX | J24: =SUM(J27:J79) -> 0.00 | K24: =SUM(K26:M79) -> 0.00 | L24: 0.00 | M24: =SUM(M27:M79) -> 0.00 | N24: 0.00 | O24: 0.00 | P24: 1,551.42 | Q24: 1,551.42 | R24: 0.00 | S24: 4,787.41 | T24: 4,787.41 | U24: 0.00 | V24: 6,257.96 | W24: 7,601.00 | X24: 0.00 | Y24: =SUM(Y27:Y79) -> 8,817.42 | Z24: 8,062.87 | AA24: 754.55 | AB24: 5,515.00 | AC24: 2,500.00 | AD24: 63,515.00 | AE24: =SUM(AE27:AE79) -> 67,677.29 | AF24: 2,500.00 | AG24: 66,662.29 | AH24: =SUM(AH27:AH79) -> 120,662.29 | AI24: 2,500.00 | AJ24: 123,012.29 | AK24: 122,662.29 | AL24: 2,500.00 | AM24: 122,662.29 | AN24: 25,662.29 | AO24: 2,500.00 | AP24: 25,662.29 | AQ24: 25,662.29 | AR24: 2,500.00 | AS24: 25,662.29 | AT24: 25,662.29 | AU24: 2,500.00 | AV24: 25,662.29 | AW24: 25,662.29 | AX24: 2,500.00 | AY24: 24,647.29 | AZ24: 25,662.29 | BA24: 2,500.00 | BB24: 25,662.29 | BC24: 25,662.29 | BD24: 0.00 | BE24: 24,647.29 | BF24: 23,162.29 | BG24: 0.00 | BH24: 23,162.29 | BI24: 23,512.29 | BJ24: 0.00 | BK24: 22,497.29 | BL24: 23,162.29 | BM24: 0.00 | BN24: 23,162.29 | BO24: 23,162.29 | BP24: 0.00 | BQ24: 22,147.29 | BR24: 23,162.29 | BS24: 0.00 | BT24: 23,162.29 | BU24: 23,162.29 | BV24: 0.00 | BW24: 22,147.29 | BX24: 23,162.29 | BY24: =SUM(BY27:BY79) -> 0.00 | BZ24: 23,162.29 | CA24: 23,162.29 | CB24: 0.00 | CC24: 22,147.29 | CD24: 23,162.29 | CE24: 0.00 | CF24: 23,162.29 | CG24: 23,162.29 | CH24: =SUM(CH26:CH126) -> 0.00 | CI24: =SUM(CI26:CI126) -> 22,147.29
A26: CHARGES
B27: Financement | C27: vehicule | D27: GM | E27: JAGUAR | F27: BASE | H27: 547.35 | I27: 1 | J27: =+K27 -> 0.00 | M27: =+N27 -> 0.00 | P27: =+Q27 -> 0.00 | S27: =+T27 -> 0.00 | V27: =+W27 -> 0.00 | Y27: -1,000.00 | AA27: =Y27-Z27 -> -1,000.00 | AB27: =+AC27 -> 0.00 | AD27: =AB27-AC27 -> 0.00 | AE27: =IF($I27=1,$H27,0) -> 547.35 | AG27: =AE27-AF27 -> 547.35 | AH27: =IF($I27=1,$H27,0) -> 547.35 | AJ27: =AH27-AI27 -> 547.35 | AK27: =IF($I27=1,$H27,0) -> 547.35 | AM27: =AK27-AL27 -> 547.35 | AN27: =IF($I27=1,$H27,0) -> 547.35 | AP27: =AN27-AO27 -> 547.35 | AQ27: =IF($I27=1,$H27,0) -> 547.35 | AS27: =AQ27-AR27 -> 547.35 | AT27: =IF($I27=1,$H27,0) -> 547.35 | AV27: =AT27-AU27 -> 547.35 | AW27: =IF($I27=1,$H27,0) -> 547.35 | AY27: =AW27-AX27 -> 547.35 | AZ27: =IF($I27=1,$H27,0) -> 547.35 | BB27: =AZ27-BA27 -> 547.35 | BC27: =IF($I27=1,$H27,0) -> 547.35 | BE27: =BC27-BD27 -> 547.35 | BF27: =IF($I27=1,$H27,0) -> 547.35 | BH27: =BF27-BG27 -> 547.35 | BI27: =IF($I27=1,$H27,0) -> 547.35 | BK27: =BI27-BJ27 -> 547.35 | BL27: =IF($I27=1,$H27,0) -> 547.35 | BN27: =BL27-BM27 -> 547.35 | BO27: =IF($I27=1,$H27,0) -> 547.35 | BQ27: =BO27-BP27 -> 547.35 | BR27: =IF($I27=1,$H27,0) -> 547.35 | BT27: =BR27-BS27 -> 547.35 | BU27: =IF($I27=1,$H27,0) -> 547.35 | BW27: =BU27-BV27 -> 547.35 | BX27: =IF($I27=1,$H27,0) -> 547.35 | BZ27: =BX27-BY27 -> 547.35 | CA27: =IF($I27=1,$H27,0) -> 547.35 | CC27: =CA27-CB27 -> 547.35 | CD27: =IF($I27=1,$H27,0) -> 547.35 | CF27: =CD27-CE27 -> 547.35 | CG27: =IF($I27=1,$H27,0) -> 547.35 | CI27: =CG27-CH27 -> 547.35
B28: Financement | C28: vehicule | D28: GM | E28: JAGUAR | F28: TVA | G28: RECUPERABLE | H28: 114.94 | I28: 1 | J28: =+K28 -> 0.00 | M28: =+N28 -> 0.00 | P28: =+Q28 -> 0.00 | S28: =+T28 -> 0.00 | V28: =+W28 -> 0.00 | Y28: =+Z28 -> 0.00 | AA28: =Y28-Z28 -> 0.00 | AB28: =+AC28 -> 0.00 | AD28: =AB28-AC28 -> 0.00 | AE28: 114.94 | AG28: =AE28-AF28 -> 114.94 | AH28: 114.94 | AJ28: 114.94 | AK28: 114.94 | AM28: 114.94 | AN28: 114.94 | AP28: 114.94 | AQ28: 114.94 | AS28: 114.94 | AT28: 114.94 | AV28: 114.94 | AW28: 114.94 | AY28: =AW28-AX28 -> 114.94 | AZ28: 114.94 | BB28: 114.94 | BC28: 114.94 | BE28: =BC28-BD28 -> 114.94 | BF28: 114.94 | BH28: 114.94 | BI28: 114.94 | BK28: =BI28-BJ28 -> 114.94 | BL28: 114.94 | BN28: 114.94 | BO28: 114.94 | BQ28: =BO28-BP28 -> 114.94 | BR28: 114.94 | BT28: 114.94 | BU28: 114.94 | BW28: =BU28-BV28 -> 114.94 | BX28: 114.94 | BZ28: 114.94 | CA28: 114.94 | CC28: =CA28-CB28 -> 114.94 | CD28: 114.94 | CF28: 114.94 | CG28: 114.94 | CI28: =CG28-CH28 -> 114.94
B30: NDF | D30: GM | H30: 2,500.00 | I30: 1 | J30: =+K30 -> 0.00 | M30: =+N30 -> 0.00 | P30: =+Q30 -> 1,551.42 | Q30: 1,551.42 | R30: =P30-Q30 -> 0.00 | S30: =+T30 -> 4,787.41 | T30: 4,787.41 | U30: =S30-T30 -> 0.00 | V30: =+W30 -> 2,028.66 | W30: 2,028.66 | X30: =V30-W30 -> 0.00 | Y30: 4,000.00 | Z30: 4,000.00 | AA30: =Y30-Z30 -> 0.00 | AB30: 0.00 | AD30: =AB30-AC30 -> 0.00 | AE30: 3,500.00 | AG30: =AE30-AF30 -> 3,500.00 | AH30: =IF($I30=1,$H30,0) -> 2,500.00 | AJ30: =AH30-AI30 -> 2,500.00 | AK30: =IF($I30=1,$H30,0) -> 2,500.00 | AM30: =AK30-AL30 -> 2,500.00 | AN30: =IF($I30=1,$H30,0) -> 2,500.00 | AP30: =AN30-AO30 -> 2,500.00 | AQ30: =IF($I30=1,$H30,0) -> 2,500.00 | AS30: =AQ30-AR30 -> 2,500.00 | AT30: =IF($I30=1,$H30,0) -> 2,500.00 | AV30: =AT30-AU30 -> 2,500.00 | AW30: =IF($I30=1,$H30,0) -> 2,500.00 | AY30: =AW30-AX30 -> 2,500.00 | AZ30: =IF($I30=1,$H30,0) -> 2,500.00 | BB30: =AZ30-BA30 -> 2,500.00 | BC30: =IF($I30=1,$H30,0) -> 2,500.00 | BE30: =BC30-BD30 -> 2,500.00 | BF30: =IF($I30=1,$H30,0) -> 2,500.00 | BH30: =BF30-BG30 -> 2,500.00 | BI30: =IF($I30=1,$H30,0) -> 2,500.00 | BK30: =BI30-BJ30 -> 2,500.00 | BL30: =IF($I30=1,$H30,0) -> 2,500.00 | BN30: =BL30-BM30 -> 2,500.00 | BO30: =IF($I30=1,$H30,0) -> 2,500.00 | BQ30: =BO30-BP30 -> 2,500.00 | BR30: =IF($I30=1,$H30,0) -> 2,500.00 | BT30: =BR30-BS30 -> 2,500.00 | BU30: =IF($I30=1,$H30,0) -> 2,500.00 | BW30: =BU30-BV30 -> 2,500.00 | BX30: =IF($I30=1,$H30,0) -> 2,500.00 | BZ30: =BX30-BY30 -> 2,500.00 | CA30: =IF($I30=1,$H30,0) -> 2,500.00 | CC30: =CA30-CB30 -> 2,500.00 | CD30: =IF($I30=1,$H30,0) -> 2,500.00 | CF30: =CD30-CE30 -> 2,500.00 | CG30: =IF($I30=1,$H30,0) -> 2,500.00 | CI30: =CG30-CH30 -> 2,500.00
B31: NDF | D31: GD | I31: 0 | J31: 0.00 | M31: 0.00 | P31: 0.00 | S31: 0.00 | V31: 0.00 | W31: 1,343.04 | Y31: =+Z31 -> 0.00 | AA31: 0.00 | AB31: =+AC31 -> 0.00 | AD31: 0.00 | AE31: =+AF31 -> 0.00 | AG31: =AE31-AF31 -> 0.00 | AH31: =+AI31 -> 0.00 | AJ31: =AH31-AI31 -> 0.00 | AK31: =+AL31 -> 0.00 | AM31: =AK31-AL31 -> 0.00 | AN31: =+AO31 -> 0.00 | AP31: =AN31-AO31 -> 0.00 | AQ31: =+AR31 -> 0.00 | AS31: =AQ31-AR31 -> 0.00 | AT31: =+AU31 -> 0.00 | AV31: =AT31-AU31 -> 0.00 | AW31: =+AX31 -> 0.00 | AY31: 0.00 | AZ31: =+BA31 -> 0.00 | BB31: 0.00 | BC31: =+BD31 -> 0.00 | BE31: 0.00 | BF31: =+BG31 -> 0.00 | BH31: 0.00 | BI31: =+BJ31 -> 0.00 | BK31: 0.00 | BL31: =+BM31 -> 0.00 | BN31: 0.00 | BO31: =+BP31 -> 0.00 | BQ31: 0.00 | BR31: =+BS31 -> 0.00 | BT31: 0.00 | BU31: =+BV31 -> 0.00 | BW31: 0.00 | BX31: =+BY31 -> 0.00 | BZ31: 0.00 | CA31: =+CB31 -> 0.00 | CC31: 0.00 | CD31: =+CE31 -> 0.00 | CF31: 0.00 | CG31: =+CH31 -> 0.00 | CI31: 0.00
B32: NDF | D32: JFA | I32: 0 | J32: 0.00 | M32: 0.00 | P32: 0.00 | S32: 0.00 | V32: 0.00 | Y32: 0.00 | AA32: 0.00 | AB32: 0.00 | AD32: 0.00 | AE32: 0.00 | AG32: 0.00 | AH32: 0.00 | AJ32: 0.00 | AK32: 0.00 | AM32: 0.00 | AN32: 0.00 | AP32: 0.00 | AQ32: 0.00 | AS32: 0.00 | AT32: 0.00 | AV32: 0.00 | AW32: 0.00 | AY32: 0.00 | AZ32: 0.00 | BB32: 0.00 | BC32: 0.00 | BE32: 0.00 | BF32: 0.00 | BH32: 0.00 | BI32: 0.00 | BK32: 0.00 | BL32: 0.00 | BN32: 0.00 | BO32: 0.00 | BQ32: 0.00 | BR32: 0.00 | BT32: 0.00 | BU32: 0.00 | BW32: 0.00 | BX32: 0.00 | BZ32: 0.00 | CA32: 0.00 | CC32: 0.00 | CD32: 0.00 | CF32: 0.00 | CG32: 0.00 | CI32: 0.00
G33: =SUM(G34:G36) -> 420,000.00
B34: REM | D34: GM | G34: =SUM(J34:CG34) -> 140,000.00 | H34: 4,000.00 | I34: 1 | J34: =+K34 -> 0.00 | M34: =+N34 -> 0.00 | P34: =+Q34 -> 0.00 | S34: =+T34 -> 0.00 | V34: =+W34 -> 0.00 | Y34: =+Z34 -> 0.00 | AA34: 0.00 | AB34: =+AC34 -> 0.00 | AD34: 0.00 | AE34: =+AF34 -> 0.00 | AG34: 0.00 | AH34: =IF($I34=1,$H34,0) -> 4,000.00 | AJ34: 4,000.00 | AK34: =IF($I34=1,$H34,0) -> 4,000.00 | AM34: 4,000.00 | AN34: =IF($I34=1,$H34,0) -> 4,000.00 | AP34: 4,000.00 | AQ34: =IF($I34=1,$H34,0) -> 4,000.00 | AS34: 4,000.00 | AT34: =IF($I34=1,$H34,0) -> 4,000.00 | AV34: =AT34-AU34 -> 4,000.00 | AW34: =IF($I34=1,$H34,0) -> 4,000.00 | AY34: =AW34-AX34 -> 4,000.00 | AZ34: =IF($I34=1,$H34,0) -> 4,000.00 | BB34: =AZ34-BA34 -> 4,000.00 | BC34: =IF($I34=1,$H34,0) -> 4,000.00 | BE34: =BC34-BD34 -> 4,000.00 | BF34: =IF($I34=1,$H34,0) -> 4,000.00 | BH34: =BF34-BG34 -> 4,000.00 | BI34: =IF($I34=1,$H34,0) -> 4,000.00 | BK34: =BI34-BJ34 -> 4,000.00 | BL34: =IF($I34=1,$H34,0) -> 4,000.00 | BN34: =BL34-BM34 -> 4,000.00 | BO34: =IF($I34=1,$H34,0) -> 4,000.00 | BQ34: =BO34-BP34 -> 4,000.00 | BR34: =IF($I34=1,$H34,0) -> 4,000.00 | BT34: =BR34-BS34 -> 4,000.00 | BU34: =IF($I34=1,$H34,0) -> 4,000.00 | BW34: =BU34-BV34 -> 4,000.00 | BX34: =IF($I34=1,$H34,0) -> 4,000.00 | BZ34: =BX34-BY34 -> 4,000.00 | CA34: =IF($I34=1,$H34,0) -> 4,000.00 | CC34: =CA34-CB34 -> 4,000.00 | CD34: =IF($I34=1,$H34,0) -> 4,000.00 | CF34: =CD34-CE34 -> 4,000.00 | CG34: =IF($I34=1,$H34,0) -> 4,000.00 | CI34: =CG34-CH34 -> 4,000.00
B35: REM | D35: GD | G35: =SUM(J35:CG35) -> 140,000.00 | H35: 4,000.00 | I35: 1 | J35: 0.00 | M35: 0.00 | P35: 0.00 | S35: 0.00 | V35: 0.00 | Y35: 0.00 | AA35: 0.00 | AB35: 0.00 | AD35: 0.00 | AE35: 0.00 | AG35: 0.00 | AH35: =IF($I35=1,$H35,0) -> 4,000.00 | AJ35: =AH35-AI35 -> 4,000.00 | AK35: =IF($I35=1,$H35,0) -> 4,000.00 | AM35: =AK35-AL35 -> 4,000.00 | AN35: =IF($I35=1,$H35,0) -> 4,000.00 | AP35: =AN35-AO35 -> 4,000.00 | AQ35: =IF($I35=1,$H35,0) -> 4,000.00 | AS35: =AQ35-AR35 -> 4,000.00 | AT35: =IF($I35=1,$H35,0) -> 4,000.00 | AV35: =AT35-AU35 -> 4,000.00 | AW35: =IF($I35=1,$H35,0) -> 4,000.00 | AY35: 4,000.00 | AZ35: =IF($I35=1,$H35,0) -> 4,000.00 | BB35: 4,000.00 | BC35: =IF($I35=1,$H35,0) -> 4,000.00 | BE35: 4,000.00 | BF35: =IF($I35=1,$H35,0) -> 4,000.00 | BH35: 4,000.00 | BI35: =IF($I35=1,$H35,0) -> 4,000.00 | BK35: 4,000.00 | BL35: =IF($I35=1,$H35,0) -> 4,000.00 | BN35: 4,000.00 | BO35: =IF($I35=1,$H35,0) -> 4,000.00 | BQ35: 4,000.00 | BR35: =IF($I35=1,$H35,0) -> 4,000.00 | BT35: 4,000.00 | BU35: =IF($I35=1,$H35,0) -> 4,000.00 | BW35: 4,000.00 | BX35: =IF($I35=1,$H35,0) -> 4,000.00 | BZ35: 4,000.00 | CA35: =IF($I35=1,$H35,0) -> 4,000.00 | CC35: 4,000.00 | CD35: =IF($I35=1,$H35,0) -> 4,000.00 | CF35: 4,000.00 | CG35: =IF($I35=1,$H35,0) -> 4,000.00 | CI35: 4,000.00
B36: REM | D36: JFA | G36: 140,000.00 | H36: 4,000.00 | I36: 1 | J36: 0.00 | M36: 0.00 | P36: 0.00 | S36: 0.00 | V36: 0.00 | Y36: 0.00 | AA36: 0.00 | AB36: 0.00 | AD36: 0.00 | AE36: 0.00 | AG36: 0.00 | AH36: 4,000.00 | AJ36: 4,000.00 | AK36: 4,000.00 | AM36: 4,000.00 | AN36: 4,000.00 | AP36: 4,000.00 | AQ36: 4,000.00 | AS36: 4,000.00 | AT36: 4,000.00 | AV36: 4,000.00 | AW36: 4,000.00 | AY36: 4,000.00 | AZ36: 4,000.00 | BB36: 4,000.00 | BC36: 4,000.00 | BE36: 4,000.00 | BF36: 4,000.00 | BH36: 4,000.00 | BI36: 4,000.00 | BK36: 4,000.00 | BL36: 4,000.00 | BN36: 4,000.00 | BO36: 4,000.00 | BQ36: 4,000.00 | BR36: 4,000.00 | BT36: 4,000.00 | BU36: 4,000.00 | BW36: 4,000.00 | BX36: 4,000.00 | BZ36: 4,000.00 | CA36: 4,000.00 | CC36: 4,000.00 | CD36: 4,000.00 | CF36: 4,000.00 | CG36: 4,000.00 | CI36: 4,000.00
B38: Rachat parts | C38: TONY | H38: 4,000.00 | I38: 1 | J38: =+K38 -> 0.00 | M38: =+N38 -> 0.00 | P38: =+Q38 -> 0.00 | S38: =+T38 -> 0.00 | V38: =+W38 -> 0.00 | Y38: =+Z38 -> 0.00 | AA38: 0.00 | AB38: =IF($I38=1,2000,0) -> 2,000.00 | AD38: 2,000.00 | AE38: =IF($I38=1,2000,0) -> 2,000.00 | AG38: 2,000.00 | AH38: =IF($I38=1,$H38,0) -> 4,000.00 | AJ38: =AH38-AI38 -> 4,000.00 | AK38: =IF($I38=1,$H38,0) -> 4,000.00 | AM38: =AK38-AL38 -> 4,000.00 | AN38: =IF($I38=1,$H38,0) -> 4,000.00 | AP38: =AN38-AO38 -> 4,000.00 | AQ38: =IF($I38=1,$H38,0) -> 4,000.00 | AS38: =AQ38-AR38 -> 4,000.00 | AT38: =IF($I38=1,$H38,0) -> 4,000.00 | AV38: =AT38-AU38 -> 4,000.00 | AW38: =IF($I38=1,$H38,0) -> 4,000.00 | AY38: =AW38-AX38 -> 4,000.00 | AZ38: =IF($I38=1,$H38,0) -> 4,000.00 | BB38: =AZ38-BA38 -> 4,000.00 | BC38: =IF($I38=1,$H38,0) -> 4,000.00 | BE38: =BC38-BD38 -> 4,000.00 | BF38: =IF($I38=1,$H38,0) -> 4,000.00 | BH38: =BF38-BG38 -> 4,000.00 | BI38: =IF($I38=1,$H38,0) -> 4,000.00 | BK38: =BI38-BJ38 -> 4,000.00 | BL38: =IF($I38=1,$H38,0) -> 4,000.00 | BN38: =BL38-BM38 -> 4,000.00 | BO38: =IF($I38=1,$H38,0) -> 4,000.00 | BQ38: =BO38-BP38 -> 4,000.00 | BR38: =IF($I38=1,$H38,0) -> 4,000.00 | BT38: =BR38-BS38 -> 4,000.00 | BU38: =IF($I38=1,$H38,0) -> 4,000.00 | BW38: =BU38-BV38 -> 4,000.00 | BX38: =IF($I38=1,$H38,0) -> 4,000.00 | BZ38: =BX38-BY38 -> 4,000.00 | CA38: =IF($I38=1,$H38,0) -> 4,000.00 | CC38: =CA38-CB38 -> 4,000.00 | CD38: =IF($I38=1,$H38,0) -> 4,000.00 | CF38: =CD38-CE38 -> 4,000.00 | CG38: =IF($I38=1,$H38,0) -> 4,000.00 | CI38: =CG38-CH38 -> 4,000.00
B39: Frais | C39: TONY | H39: 3,500.00 | I39: 1 | J39: =+K39 -> 0.00 | M39: =+N39 -> 0.00 | P39: =+Q39 -> 0.00 | S39: =+T39 -> 0.00 | V39: =+W39 -> 0.00 | Y39: =+Z39 -> 0.00 | AA39: =Y39-Z39 -> 0.00 | AB39: =+AC39 -> 0.00 | AD39: =AB39-AC39 -> 0.00 | AE39: =+AF39 -> 0.00 | AG39: =AE39-AF39 -> 0.00 | AH39: =4000-AH40 -> 2,985.00 | AJ39: 2,985.00 | AK39: =4000-AK40 -> 2,985.00 | AM39: 2,985.00 | AN39: 2,985.00 | AP39: 2,985.00 | AQ39: 2,985.00 | AS39: 2,985.00 | AT39: 2,985.00 | AV39: 2,985.00 | AW39: 2,985.00 | AY39: 2,985.00 | AZ39: =4000-AZ40 -> 2,985.00 | BB39: 2,985.00 | BC39: 2,985.00 | BE39: 2,985.00 | BF39: =4000-BF40 -> 2,985.00 | BH39: 2,985.00 | BI39: 2,985.00 | BK39: 2,985.00 | BL39: =4000-BL40 -> 2,985.00 | BN39: 2,985.00 | BO39: 2,985.00 | BQ39: 2,985.00 | BR39: =4000-BR40 -> 2,985.00 | BT39: 2,985.00 | BU39: 2,985.00 | BW39: 2,985.00 | BX39: =4000-BX40 -> 2,985.00 | BZ39: 2,985.00 | CA39: 2,985.00 | CC39: 2,985.00 | CD39: =4000-CD40 -> 2,985.00 | CF39: 2,985.00 | CG39: 2,985.00 | CI39: 2,985.00
B40: Renting | C40: Véhicule | E40: MERCEDES Base | H40: 1,015.00 | I40: 1 | AB40: =IF($I40=1,$H40,0) -> 1,015.00 | AD40: 1,015.00 | AE40: 1,015.00 | AH40: =IF($I40=1,$H40,0) -> 1,015.00 | AJ40: 1,015.00 | AK40: =IF($I40=1,$H40,0) -> 1,015.00 | AM40: 1,015.00 | AN40: =IF($I40=1,$H40,0) -> 1,015.00 | AP40: 1,015.00 | AQ40: =IF($I40=1,$H40,0) -> 1,015.00 | AS40: 1,015.00 | AT40: =IF($I40=1,$H40,0) -> 1,015.00 | AV40: 1,015.00 | AW40: =IF($I40=1,$H40,0) -> 1,015.00 | AZ40: =IF($I40=1,$H40,0) -> 1,015.00 | BB40: =AZ40-BA40 -> 1,015.00 | BC40: =IF($I40=1,$H40,0) -> 1,015.00 | BF40: =IF($I40=1,$H40,0) -> 1,015.00 | BH40: =BF40-BG40 -> 1,015.00 | BI40: =IF($I40=1,$H40,0) -> 1,015.00 | BL40: =IF($I40=1,$H40,0) -> 1,015.00 | BN40: =BL40-BM40 -> 1,015.00 | BO40: =IF($I40=1,$H40,0) -> 1,015.00 | BR40: =IF($I40=1,$H40,0) -> 1,015.00 | BT40: =BR40-BS40 -> 1,015.00 | BU40: =IF($I40=1,$H40,0) -> 1,015.00 | BX40: =IF($I40=1,$H40,0) -> 1,015.00 | BZ40: =BX40-BY40 -> 1,015.00 | CA40: =IF($I40=1,$H40,0) -> 1,015.00 | CD40: =IF($I40=1,$H40,0) -> 1,015.00 | CF40: =CD40-CE40 -> 1,015.00 | CG40: =IF($I40=1,$H40,0) -> 1,015.00
B41: Renting | C41: Véhicule | E41: MERCEDES TVA | G41: RECUPERABLE | I41: 1
B43: HONORAIRE | C43: Notaire | E43: Lannoy | I43: 1 | J43: =+K43 -> 0.00 | M43: =+N43 -> 0.00 | P43: =+Q43 -> 0.00 | S43: =+T43 -> 0.00 | V43: =+W43 -> 1,809.30 | W43: 1,809.30 | Y43: =+Z43 -> 0.00 | AA43: 0.00 | AB43: =+AC43 -> 0.00 | AD43: 0.00 | AE43: =+AF43 -> 0.00 | AG43: 0.00 | AH43: =+AI43 -> 0.00 | AJ43: 0.00 | AK43: =+AL43 -> 0.00 | AM43: 0.00 | AN43: =+AO43 -> 0.00 | AP43: 0.00 | AQ43: =+AR43 -> 0.00 | AS43: 0.00 | AT43: =+AU43 -> 0.00 | AV43: =AT43-AU43 -> 0.00 | AW43: =+AX43 -> 0.00 | AY43: =AW43-AX43 -> 0.00 | AZ43: =+BA43 -> 0.00 | BB43: =AZ43-BA43 -> 0.00 | BC43: =+BD43 -> 0.00 | BE43: =BC43-BD43 -> 0.00 | BF43: =+BG43 -> 0.00 | BH43: =BF43-BG43 -> 0.00 | BI43: =+BJ43 -> 0.00 | BK43: =BI43-BJ43 -> 0.00 | BL43: =+BM43 -> 0.00 | BN43: =BL43-BM43 -> 0.00 | BO43: =+BP43 -> 0.00 | BQ43: =BO43-BP43 -> 0.00 | BR43: =+BS43 -> 0.00 | BT43: =BR43-BS43 -> 0.00 | BU43: =+BV43 -> 0.00 | BW43: =BU43-BV43 -> 0.00 | BX43: =+BY43 -> 0.00 | BZ43: =BX43-BY43 -> 0.00 | CA43: =+CB43 -> 0.00 | CC43: =CA43-CB43 -> 0.00 | CD43: =+CE43 -> 0.00 | CF43: =CD43-CE43 -> 0.00 | CG43: =+CH43 -> 0.00 | CI43: =CG43-CH43 -> 0.00
C44: Avocat | E44: Lambert | I44: 1 | J44: 0.00 | M44: 0.00 | P44: 0.00 | R44: 0.00 | S44: 0.00 | U44: 0.00 | V44: 2,420.00 | W44: 2,420.00 | X44: 0.00 | Y44: 0.00 | AA44: 0.00 | AB44: 0.00 | AD44: 0.00 | AE44: 0.00 | AG44: 0.00 | AH44: 0.00 | AJ44: 0.00 | AK44: 0.00 | AM44: 0.00 | AN44: 0.00 | AP44: 0.00 | AQ44: 0.00 | AS44: 0.00 | AT44: 0.00 | AV44: 0.00 | AW44: 0.00 | AY44: 0.00 | AZ44: 0.00 | BB44: 0.00 | BC44: 0.00 | BE44: 0.00 | BF44: 0.00 | BH44: 0.00 | BI44: 0.00 | BK44: 0.00 | BL44: 0.00 | BN44: 0.00 | BO44: 0.00 | BQ44: 0.00 | BR44: 0.00 | BT44: 0.00 | BU44: 0.00 | BW44: 0.00 | BX44: 0.00 | BZ44: 0.00 | CA44: 0.00 | CC44: 0.00 | CD44: 0.00 | CF44: 0.00 | CG44: 0.00 | CI44: 0.00
C45: Comptable | H45: 1,000.00 | I45: 1 | J45: =+K45 -> 0.00 | M45: =+N45 -> 0.00 | P45: =+Q45 -> 0.00 | S45: =+T45 -> 0.00 | V45: =+W45 -> 0.00 | Y45: =+Z45 -> 0.00 | AA45: =Y45-Z45 -> 0.00 | AB45: =+AC45 -> 0.00 | AD45: =AB45-AC45 -> 0.00 | AE45: =+AF45 -> 0.00 | AG45: =AE45-AF45 -> 0.00 | AH45: =+AI45 -> 0.00 | AJ45: =AH45-AI45 -> 0.00 | AK45: =+AL45 -> 0.00 | AM45: =AK45-AL45 -> 0.00 | AN45: =+AO45 -> 0.00 | AP45: =AN45-AO45 -> 0.00 | AQ45: =+AR45 -> 0.00 | AS45: =AQ45-AR45 -> 0.00 | AT45: =+AU45 -> 0.00 | AV45: =AT45-AU45 -> 0.00 | AW45: =+AX45 -> 0.00 | AY45: =AW45-AX45 -> 0.00 | AZ45: =+BA45 -> 0.00 | BB45: =AZ45-BA45 -> 0.00 | BC45: =+BD45 -> 0.00 | BE45: =BC45-BD45 -> 0.00 | BF45: =+BG45 -> 0.00 | BH45: =BF45-BG45 -> 0.00 | BI45: =+BJ45 -> 0.00 | BK45: =BI45-BJ45 -> 0.00 | BL45: =+BM45 -> 0.00 | BN45: =BL45-BM45 -> 0.00 | BO45: =+BP45 -> 0.00 | BQ45: =BO45-BP45 -> 0.00 | BR45: =+BS45 -> 0.00 | BT45: =BR45-BS45 -> 0.00 | BU45: =+BV45 -> 0.00 | BW45: =BU45-BV45 -> 0.00 | BX45: =+BY45 -> 0.00 | BZ45: =BX45-BY45 -> 0.00 | CA45: =+CB45 -> 0.00 | CC45: =CA45-CB45 -> 0.00 | CD45: =+CE45 -> 0.00 | CF45: =CD45-CE45 -> 0.00 | CG45: =+CH45 -> 0.00 | CI45: =CG45-CH45 -> 0.00
C46: Secrétaire | I46: 1 | J46: 0.00 | M46: 0.00 | P46: 0.00 | S46: 0.00 | V46: 0.00 | Y46: 0.00 | AA46: 0.00 | AB46: 0.00 | AD46: 0.00 | AE46: 0.00 | AG46: 0.00 | AH46: 0.00 | AJ46: 0.00 | AK46: 0.00 | AM46: 0.00 | AN46: 0.00 | AP46: 0.00 | AQ46: 0.00 | AS46: 0.00 | AT46: 0.00 | AV46: 0.00 | AW46: 0.00 | AY46: 0.00 | AZ46: 0.00 | BB46: 0.00 | BC46: 0.00 | BE46: 0.00 | BF46: 0.00 | BH46: 0.00 | BI46: 0.00 | BK46: 0.00 | BL46: 0.00 | BN46: 0.00 | BO46: 0.00 | BQ46: 0.00 | BR46: 0.00 | BT46: 0.00 | BU46: 0.00 | BW46: 0.00 | BX46: 0.00 | BZ46: 0.00 | CA46: 0.00 | CC46: 0.00 | CD46: 0.00 | CF46: 0.00 | CG46: 0.00 | CI46: 0.00
B48: ASSURANCE | C48: Véhicule | D48: RC | H48: 465.22 | I48: 1 | J48: =+K48 -> 0.00 | M48: =+N48 -> 0.00 | P48: =+Q48 -> 0.00 | S48: =+T48 -> 0.00 | V48: =+W48 -> 0.00 | Y48: 465.22 | AA48: 465.22 | AB48: =+AC48 -> 0.00 | AD48: 0.00 | AE48: =+AF48 -> 0.00 | AG48: 0.00 | AH48: =+AI48 -> 0.00 | AJ48: 0.00 | AK48: =+AL48 -> 0.00 | AM48: 0.00 | AN48: =+AO48 -> 0.00 | AP48: 0.00 | AQ48: =+AR48 -> 0.00 | AS48: 0.00 | AT48: =+AU48 -> 0.00 | AV48: =AT48-AU48 -> 0.00 | AW48: =+AX48 -> 0.00 | AY48: =AW48-AX48 -> 0.00 | AZ48: =+BA48 -> 0.00 | BB48: =AZ48-BA48 -> 0.00 | BC48: =+BD48 -> 0.00 | BE48: =BC48-BD48 -> 0.00 | BF48: =+BG48 -> 0.00 | BH48: =BF48-BG48 -> 0.00 | BI48: =+BJ48 -> 0.00 | BK48: =BI48-BJ48 -> 0.00 | BL48: =+BM48 -> 0.00 | BN48: =BL48-BM48 -> 0.00 | BO48: =+BP48 -> 0.00 | BQ48: =BO48-BP48 -> 0.00 | BR48: =+BS48 -> 0.00 | BT48: =BR48-BS48 -> 0.00 | BU48: =+BV48 -> 0.00 | BW48: =BU48-BV48 -> 0.00 | BX48: =+BY48 -> 0.00 | BZ48: =BX48-BY48 -> 0.00 | CA48: =+CB48 -> 0.00 | CC48: =CA48-CB48 -> 0.00 | CD48: =+CE48 -> 0.00 | CF48: =CD48-CE48 -> 0.00 | CG48: =+CH48 -> 0.00 | CI48: =CG48-CH48 -> 0.00
C49: Véhicule | D49: DM | H49: 1,214.11 | I49: 1 | J49: =+K49 -> 0.00 | M49: =+N49 -> 0.00 | P49: =+Q49 -> 0.00 | S49: =+T49 -> 0.00 | V49: =+W49 -> 0.00 | Y49: 1,214.11 | AA49: =Y49-Z49 -> 1,214.11 | AB49: =+AC49 -> 0.00 | AD49: =AB49-AC49 -> 0.00 | AE49: =+AF49 -> 0.00 | AG49: =AE49-AF49 -> 0.00 | AH49: =+AI49 -> 0.00 | AJ49: =AH49-AI49 -> 0.00 | AK49: =+AL49 -> 0.00 | AM49: =AK49-AL49 -> 0.00 | AN49: =+AO49 -> 0.00 | AP49: =AN49-AO49 -> 0.00 | AQ49: =+AR49 -> 0.00 | AS49: =AQ49-AR49 -> 0.00 | AT49: =+AU49 -> 0.00 | AV49: =AT49-AU49 -> 0.00 | AW49: =+AX49 -> 0.00 | AY49: =AW49-AX49 -> 0.00 | AZ49: 0.00 | BB49: 0.00 | BC49: 0.00 | BE49: 0.00 | BF49: 0.00 | BH49: 0.00 | BI49: 0.00 | BK49: 0.00 | BL49: 0.00 | BN49: 0.00 | BO49: 0.00 | BQ49: 0.00 | BR49: 0.00 | BT49: 0.00 | BU49: 0.00 | BW49: 0.00 | BX49: 0.00 | BZ49: 0.00 | CA49: 0.00 | CC49: 0.00 | CD49: 0.00 | CF49: 0.00 | CG49: 0.00 | CI49: 0.00
C50: Incendie | I50: 1 | J50: 0.00 | M50: 0.00 | P50: 0.00 | S50: 0.00 | V50: 0.00 | Y50: =+Z50 -> 0.00 | AA50: 0.00 | AB50: 0.00 | AD50: 0.00 | AE50: 0.00 | AG50: 0.00 | AH50: 0.00 | AJ50: 0.00 | AK50: 0.00 | AM50: 0.00 | AN50: 0.00 | AP50: 0.00 | AQ50: 0.00 | AS50: 0.00 | AT50: 0.00 | AV50: 0.00 | AW50: 0.00 | AY50: 0.00 | AZ50: 0.00 | BB50: 0.00 | BC50: 0.00 | BE50: 0.00 | BF50: 0.00 | BH50: 0.00 | BI50: 0.00 | BK50: 0.00 | BL50: 0.00 | BN50: 0.00 | BO50: 0.00 | BQ50: 0.00 | BR50: 0.00 | BT50: 0.00 | BU50: 0.00 | BW50: 0.00 | BX50: 0.00 | BZ50: 0.00 | CA50: 0.00 | CC50: 0.00 | CD50: 0.00 | CF50: 0.00 | CG50: 0.00 | CI50: 0.00
C51: RC profes. | H51: 62.87 | I51: 1 | J51: 0.00 | M51: 0.00 | P51: 0.00 | S51: 0.00 | V51: 0.00 | Y51: 62.87 | Z51: 62.87 | AA51: 0.00 | AB51: 0.00 | AD51: 0.00 | AE51: 0.00 | AG51: 0.00 | AH51: 0.00 | AJ51: 0.00 | AK51: 0.00 | AM51: 0.00 | AN51: 0.00 | AP51: 0.00 | AQ51: 0.00 | AS51: 0.00 | AT51: 0.00 | AV51: 0.00 | AW51: 0.00 | AY51: 0.00 | AZ51: 0.00 | BB51: 0.00 | BC51: 0.00 | BE51: 0.00 | BF51: 0.00 | BH51: 0.00 | BI51: 0.00 | BK51: 0.00 | BL51: 0.00 | BN51: 0.00 | BO51: 0.00 | BQ51: 0.00 | BR51: 0.00 | BT51: 0.00 | BU51: 0.00 | BW51: 0.00 | BX51: 0.00 | BZ51: 0.00 | CA51: 0.00 | CC51: 0.00 | CD51: 0.00 | CF51: 0.00 | CG51: 0.00 | CI51: 0.00
C52: CAS | H52: 75.22 | I52: 1 | J52: 0.00 | M52: 0.00 | P52: 0.00 | S52: 0.00 | V52: 0.00 | Y52: 75.22 | AA52: 75.22 | AB52: 0.00 | AD52: 0.00 | AE52: 0.00 | AG52: 0.00 | AH52: 0.00 | AJ52: 0.00 | AK52: 0.00 | AM52: 0.00 | AN52: 0.00 | AP52: 0.00 | AQ52: 0.00 | AS52: 0.00 | AT52: 0.00 | AV52: 0.00 | AW52: 0.00 | AY52: 0.00 | AZ52: 0.00 | BB52: 0.00 | BC52: 0.00 | BE52: 0.00 | BF52: 0.00 | BH52: 0.00 | BI52: 0.00 | BK52: 0.00 | BL52: 0.00 | BN52: 0.00 | BO52: 0.00 | BQ52: 0.00 | BR52: 0.00 | BT52: 0.00 | BU52: 0.00 | BW52: 0.00 | BX52: 0.00 | BZ52: 0.00 | CA52: 0.00 | CC52: 0.00 | CD52: 0.00 | CF52: 0.00 | CG52: 0.00 | CI52: 0.00
B54: BATIMENT | C54: Location | I54: 1 | J54: =+K54 -> 0.00 | M54: =+N54 -> 0.00 | P54: =+Q54 -> 0.00 | S54: =+T54 -> 0.00 | V54: =+W54 -> 0.00 | Y54: =+Z54 -> 0.00 | AA54: 0.00 | AB54: =+AC54 -> 0.00 | AD54: 0.00 | AE54: =+AF54 -> 0.00 | AG54: 0.00 | AH54: =+AI54 -> 0.00 | AJ54: 0.00 | AK54: =+AL54 -> 0.00 | AM54: 0.00 | AN54: =+AO54 -> 0.00 | AP54: 0.00 | AQ54: =+AR54 -> 0.00 | AS54: 0.00 | AT54: =+AU54 -> 0.00 | AV54: =AT54-AU54 -> 0.00 | AW54: =+AX54 -> 0.00 | AY54: =AW54-AX54 -> 0.00 | AZ54: =+BA54 -> 0.00 | BB54: =AZ54-BA54 -> 0.00 | BC54: =+BD54 -> 0.00 | BE54: =BC54-BD54 -> 0.00 | BF54: =+BG54 -> 0.00 | BH54: =BF54-BG54 -> 0.00 | BI54: =+BJ54 -> 0.00 | BK54: =BI54-BJ54 -> 0.00 | BL54: =+BM54 -> 0.00 | BN54: =BL54-BM54 -> 0.00 | BO54: =+BP54 -> 0.00 | BQ54: =BO54-BP54 -> 0.00 | BR54: =+BS54 -> 0.00 | BT54: =BR54-BS54 -> 0.00 | BU54: =+BV54 -> 0.00 | BW54: =BU54-BV54 -> 0.00 | BX54: =+BY54 -> 0.00 | BZ54: =BX54-BY54 -> 0.00 | CA54: =+CB54 -> 0.00 | CC54: =CA54-CB54 -> 0.00 | CD54: =+CE54 -> 0.00 | CF54: =CD54-CE54 -> 0.00 | CG54: =+CH54 -> 0.00 | CI54: =CG54-CH54 -> 0.00
C55: Eau | I55: 1 | J55: 0.00 | M55: 0.00 | P55: 0.00 | S55: 0.00 | V55: 0.00 | Y55: 0.00 | AA55: 0.00 | AB55: 0.00 | AD55: 0.00 | AE55: 0.00 | AG55: 0.00 | AH55: 0.00 | AJ55: 0.00 | AK55: 0.00 | AM55: 0.00 | AN55: 0.00 | AP55: 0.00 | AQ55: 0.00 | AS55: 0.00 | AT55: 0.00 | AV55: 0.00 | AW55: 0.00 | AY55: 0.00 | AZ55: 0.00 | BB55: 0.00 | BC55: 0.00 | BE55: 0.00 | BF55: 0.00 | BH55: 0.00 | BI55: 0.00 | BK55: 0.00 | BL55: 0.00 | BN55: 0.00 | BO55: 0.00 | BQ55: 0.00 | BR55: 0.00 | BT55: 0.00 | BU55: 0.00 | BW55: 0.00 | BX55: 0.00 | BZ55: 0.00 | CA55: 0.00 | CC55: 0.00 | CD55: 0.00 | CF55: 0.00 | CG55: 0.00 | CI55: 0.00
C56: Gaz | I56: 1 | J56: 0.00 | M56: 0.00 | P56: 0.00 | S56: 0.00 | V56: 0.00 | Y56: 0.00 | AA56: 0.00 | AB56: 0.00 | AD56: 0.00 | AE56: 0.00 | AG56: 0.00 | AH56: 0.00 | AJ56: 0.00 | AK56: 0.00 | AM56: 0.00 | AN56: 0.00 | AP56: 0.00 | AQ56: 0.00 | AS56: 0.00 | AT56: 0.00 | AV56: 0.00 | AW56: 0.00 | AY56: 0.00 | AZ56: 0.00 | BB56: 0.00 | BC56: 0.00 | BE56: 0.00 | BF56: 0.00 | BH56: 0.00 | BI56: 0.00 | BK56: 0.00 | BL56: 0.00 | BN56: 0.00 | BO56: 0.00 | BQ56: 0.00 | BR56: 0.00 | BT56: 0.00 | BU56: 0.00 | BW56: 0.00 | BX56: 0.00 | BZ56: 0.00 | CA56: 0.00 | CC56: 0.00 | CD56: 0.00 | CF56: 0.00 | CG56: 0.00 | CI56: 0.00
C57: Electricité | I57: 1 | J57: 0.00 | M57: 0.00 | P57: 0.00 | S57: 0.00 | V57: 0.00 | Y57: 0.00 | AA57: 0.00 | AB57: 0.00 | AD57: 0.00 | AE57: 0.00 | AG57: 0.00 | AH57: 0.00 | AJ57: 0.00 | AK57: 0.00 | AM57: 0.00 | AN57: 0.00 | AP57: 0.00 | AQ57: 0.00 | AS57: 0.00 | AT57: 0.00 | AV57: 0.00 | AW57: 0.00 | AY57: 0.00 | AZ57: 0.00 | BB57: 0.00 | BC57: 0.00 | BE57: 0.00 | BF57: 0.00 | BH57: 0.00 | BI57: 0.00 | BK57: 0.00 | BL57: 0.00 | BN57: 0.00 | BO57: 0.00 | BQ57: 0.00 | BR57: 0.00 | BT57: 0.00 | BU57: 0.00 | BW57: 0.00 | BX57: 0.00 | BZ57: 0.00 | CA57: 0.00 | CC57: 0.00 | CD57: 0.00 | CF57: 0.00 | CG57: 0.00 | CI57: 0.00
C58: Chauffage | I58: 1 | J58: 0.00 | M58: 0.00 | P58: 0.00 | S58: 0.00 | V58: 0.00 | Y58: 0.00 | AA58: 0.00 | AB58: 0.00 | AD58: 0.00 | AE58: 0.00 | AG58: 0.00 | AH58: 0.00 | AJ58: 0.00 | AK58: 0.00 | AM58: 0.00 | AN58: 0.00 | AP58: 0.00 | AQ58: 0.00 | AS58: 0.00 | AT58: 0.00 | AV58: 0.00 | AW58: 0.00 | AY58: 0.00 | AZ58: 0.00 | BB58: 0.00 | BC58: 0.00 | BE58: 0.00 | BF58: 0.00 | BH58: 0.00 | BI58: 0.00 | BK58: 0.00 | BL58: 0.00 | BN58: 0.00 | BO58: 0.00 | BQ58: 0.00 | BR58: 0.00 | BT58: 0.00 | BU58: 0.00 | BW58: 0.00 | BX58: 0.00 | BZ58: 0.00 | CA58: 0.00 | CC58: 0.00 | CD58: 0.00 | CF58: 0.00 | CG58: 0.00 | CI58: 0.00
C59: Entretien | I59: 1 | J59: 0.00 | M59: 0.00 | P59: 0.00 | S59: 0.00 | V59: 0.00 | Y59: 0.00 | AB59: 0.00 | AE59: 0.00 | AH59: 0.00 | AK59: 0.00 | AN59: 0.00 | AQ59: 0.00 | AT59: 0.00 | AW59: 0.00 | AZ59: 0.00 | BC59: 0.00 | BF59: 0.00 | BI59: 0.00 | BL59: 0.00 | BO59: 0.00 | BR59: 0.00 | BU59: 0.00 | BX59: 0.00 | CA59: 0.00 | CD59: 0.00 | CG59: 0.00
B61: BUREAU | C61: Fourniture | H61: 50.00 | I61: 0 | J61: =+K61 -> 0.00 | M61: =+N61 -> 0.00 | P61: =+Q61 -> 0.00 | S61: =+T61 -> 0.00 | V61: =+W61 -> 0.00 | Y61: 0.00 | AA61: =Y61-Z61 -> 0.00 | AB61: 0.00 | AC61: =IF($I61=1,$H61,0) -> 0.00 | AD61: 0.00 | AE61: 0.00 | AF61: 0.00 | AG61: 0.00 | AH61: 0.00 | AI61: 0.00 | AJ61: 0.00 | AK61: 0.00 | AL61: 0.00 | AM61: 0.00 | AN61: 0.00 | AO61: 0.00 | AP61: 0.00 | AQ61: 0.00 | AR61: 0.00 | AS61: 0.00 | AT61: 0.00 | AU61: 0.00 | AV61: 0.00 | AW61: 0.00 | AX61: 0.00 | AY61: 0.00 | AZ61: 0.00 | BA61: 0.00 | BB61: 0.00 | BC61: 0.00 | BD61: 0.00 | BE61: 0.00 | BF61: 0.00 | BG61: 0.00 | BH61: 0.00 | BI61: 0.00 | BJ61: 0.00 | BK61: 0.00 | BL61: 0.00 | BM61: 0.00 | BN61: 0.00 | BO61: 0.00 | BP61: 0.00 | BQ61: 0.00 | BR61: 0.00 | BS61: 0.00 | BT61: 0.00 | BU61: 0.00 | BV61: 0.00 | BW61: 0.00 | BX61: 0.00 | BY61: 0.00 | BZ61: 0.00 | CA61: 0.00 | CB61: 0.00 | CC61: 0.00 | CD61: 0.00 | CE61: 0.00 | CF61: 0.00 | CG61: 0.00 | CI61: =CG61-CH61 -> 0.00
C62: Frais administratifs | H62: 100.00 | I62: 0 | J62: 0.00 | M62: 0.00 | P62: 0.00 | S62: 0.00 | V62: 0.00 | Y62: 0.00 | AA62: 0.00 | AB62: 0.00 | AC62: 0.00 | AD62: 0.00 | AE62: 0.00 | AF62: 0.00 | AG62: 0.00 | AH62: 0.00 | AI62: 0.00 | AJ62: 0.00 | AK62: 0.00 | AL62: 0.00 | AM62: 0.00 | AN62: 0.00 | AO62: 0.00 | AP62: 0.00 | AQ62: 0.00 | AR62: 0.00 | AS62: 0.00 | AT62: 0.00 | AU62: 0.00 | AV62: 0.00 | AW62: 0.00 | AX62: 0.00 | AY62: 0.00 | AZ62: 0.00 | BA62: 0.00 | BB62: 0.00 | BC62: 0.00 | BD62: 0.00 | BE62: 0.00 | BF62: 0.00 | BG62: 0.00 | BH62: 0.00 | BI62: 0.00 | BJ62: 0.00 | BK62: 0.00 | BL62: 0.00 | BM62: 0.00 | BN62: 0.00 | BO62: 0.00 | BP62: 0.00 | BQ62: 0.00 | BR62: 0.00 | BS62: 0.00 | BT62: 0.00 | BU62: 0.00 | BV62: 0.00 | BW62: 0.00 | BX62: 0.00 | BY62: 0.00 | BZ62: 0.00 | CA62: 0.00 | CB62: 0.00 | CC62: 0.00 | CD62: 0.00 | CE62: 0.00 | CF62: 0.00 | CG62: 0.00 | CI62: 0.00
C63: Telephone | D63: GM | I63: 1 | J63: 0.00 | M63: 0.00 | P63: 0.00 | S63: 0.00 | V63: 0.00 | Y63: =+Z63 -> 0.00 | AA63: 0.00 | AB63: =+AC63 -> 0.00 | AD63: 0.00 | AE63: =+AF63 -> 0.00 | AG63: 0.00 | AH63: =+AI63 -> 0.00 | AJ63: 0.00 | AK63: =+AL63 -> 0.00 | AM63: 0.00 | AN63: =+AO63 -> 0.00 | AP63: 0.00 | AQ63: =+AR63 -> 0.00 | AS63: 0.00 | AT63: =+AU63 -> 0.00 | AV63: =AT63-AU63 -> 0.00 | AW63: =+AX63 -> 0.00 | AY63: =AW63-AX63 -> 0.00 | AZ63: =+BA63 -> 0.00 | BB63: =AZ63-BA63 -> 0.00 | BC63: =+BD63 -> 0.00 | BE63: =BC63-BD63 -> 0.00 | BF63: =+BG63 -> 0.00 | BH63: =BF63-BG63 -> 0.00 | BI63: =+BJ63 -> 0.00 | BK63: =BI63-BJ63 -> 0.00 | BL63: =+BM63 -> 0.00 | BN63: =BL63-BM63 -> 0.00 | BO63: =+BP63 -> 0.00 | BQ63: =BO63-BP63 -> 0.00 | BR63: =+BS63 -> 0.00 | BT63: =BR63-BS63 -> 0.00 | BU63: =+BV63 -> 0.00 | BW63: =BU63-BV63 -> 0.00 | BX63: =+BY63 -> 0.00 | BZ63: =BX63-BY63 -> 0.00 | CA63: =+CB63 -> 0.00 | CC63: =CA63-CB63 -> 0.00 | CD63: =+CE63 -> 0.00 | CF63: =CD63-CE63 -> 0.00 | CG63: =+CH63 -> 0.00 | CI63: 0.00
C64: Telephone | D64: GD | I64: 1 | J64: 0.00 | M64: 0.00 | P64: 0.00 | S64: 0.00 | V64: 0.00 | Y64: 0.00 | AA64: 0.00 | AB64: 0.00 | AD64: 0.00 | AE64: 0.00 | AG64: 0.00 | AH64: 0.00 | AJ64: 0.00 | AK64: 0.00 | AM64: 0.00 | AN64: 0.00 | AP64: 0.00 | AQ64: 0.00 | AS64: 0.00 | AT64: 0.00 | AV64: 0.00 | AW64: 0.00 | AY64: 0.00 | AZ64: 0.00 | BB64: 0.00 | BC64: 0.00 | BE64: 0.00 | BF64: 0.00 | BH64: 0.00 | BI64: 0.00 | BK64: 0.00 | BL64: 0.00 | BN64: 0.00 | BO64: 0.00 | BQ64: 0.00 | BR64: 0.00 | BT64: 0.00 | BU64: 0.00 | BW64: 0.00 | BX64: 0.00 | BZ64: 0.00 | CA64: 0.00 | CC64: 0.00 | CD64: 0.00 | CF64: 0.00 | CG64: 0.00 | CI64: 0.00
C65: Telephone | D65: JFA | I65: 1 | J65: 0.00 | M65: 0.00 | P65: 0.00 | S65: 0.00 | V65: 0.00 | Y65: 0.00 | AA65: 0.00 | AB65: 0.00 | AD65: 0.00 | AE65: 0.00 | AG65: 0.00 | AH65: 0.00 | AJ65: 0.00 | AK65: 0.00 | AM65: 0.00 | AN65: 0.00 | AP65: 0.00 | AQ65: 0.00 | AS65: 0.00 | AT65: 0.00 | AV65: 0.00 | AW65: 0.00 | AY65: 0.00 | AZ65: 0.00 | BB65: 0.00 | BC65: 0.00 | BE65: 0.00 | BF65: 0.00 | BH65: 0.00 | BI65: 0.00 | BK65: 0.00 | BL65: 0.00 | BN65: 0.00 | BO65: 0.00 | BQ65: 0.00 | BR65: 0.00 | BT65: 0.00 | BU65: 0.00 | BW65: 0.00 | BX65: 0.00 | BZ65: 0.00 | CA65: 0.00 | CC65: 0.00 | CD65: 0.00 | CF65: 0.00 | CG65: 0.00 | CI65: 0.00
C66: Telephone | D66: Bureau | I66: 1 | J66: 0.00 | M66: 0.00 | P66: 0.00 | S66: 0.00 | V66: 0.00 | Y66: 0.00 | AA66: 0.00 | AB66: 0.00 | AD66: 0.00 | AE66: 0.00 | AG66: 0.00 | AH66: 0.00 | AJ66: 0.00 | AK66: 0.00 | AM66: 0.00 | AN66: 0.00 | AP66: 0.00 | AQ66: 0.00 | AS66: 0.00 | AT66: 0.00 | AV66: 0.00 | AW66: 0.00 | AY66: 0.00 | AZ66: 0.00 | BB66: 0.00 | BC66: 0.00 | BE66: 0.00 | BF66: 0.00 | BH66: 0.00 | BI66: 0.00 | BK66: 0.00 | BL66: 0.00 | BN66: 0.00 | BO66: 0.00 | BQ66: 0.00 | BR66: 0.00 | BT66: 0.00 | BU66: 0.00 | BW66: 0.00 | BX66: 0.00 | BZ66: 0.00 | CA66: 0.00 | CC66: 0.00 | CD66: 0.00 | CF66: 0.00 | CG66: 0.00 | CI66: 0.00
C67: Publicité légale | H67: 350.00 | I67: 1 | J67: 0.00 | M67: 0.00 | P67: 0.00 | S67: 0.00 | V67: 0.00 | Y67: 0.00 | AA67: 0.00 | AB67: 0.00 | AD67: 0.00 | AE67: 0.00 | AG67: 0.00 | AH67: 0.00 | AJ67: 350.00 | AK67: 0.00 | AM67: 0.00 | AN67: 0.00 | AP67: 0.00 | AQ67: 0.00 | AS67: 0.00 | AT67: 0.00 | AV67: 0.00 | AW67: 0.00 | AY67: 0.00 | AZ67: 0.00 | BB67: 0.00 | BC67: 0.00 | BE67: 0.00 | BF67: 0.00 | BH67: 0.00 | BI67: 350.00 | BK67: 350.00 | BL67: 0.00 | BN67: 0.00 | BO67: 0.00 | BQ67: 0.00 | BR67: 0.00 | BT67: 0.00 | BU67: 0.00 | BW67: 0.00 | BX67: 0.00 | BZ67: 0.00 | CA67: 0.00 | CC67: 0.00 | CD67: 0.00 | CF67: 0.00 | CG67: 0.00 | CI67: 0.00
B69: FRAIS | C69: LOOPSTOP | F69: Lissage | G69: MODULE | H69: 4,000.00 | I69: 1 | J69: =+K69 -> 0.00 | M69: =+N69 -> 0.00 | P69: =+Q69 -> 0.00 | S69: =+T69 -> 0.00 | V69: =+W69 -> 0.00 | Y69: =IF($I69=1,$H69,0) -> 4,000.00 | Z69: 4,000.00 | AA69: 0.00 | AB69: =+AC69 -> 0.00 | AD69: 0.00 | AE69: =+AF69 -> 0.00 | AG69: 0.00 | AH69: =+AI69 -> 0.00 | AJ69: 0.00 | AK69: =+AL69 -> 0.00 | AM69: 0.00 | AN69: =+AO69 -> 0.00 | AP69: 0.00 | AQ69: =+AR69 -> 0.00 | AS69: 0.00 | AT69: =+AU69 -> 0.00 | AV69: =AT69-AU69 -> 0.00 | AW69: =+AX69 -> 0.00 | AY69: =AW69-AX69 -> 0.00 | AZ69: =+BA69 -> 0.00 | BB69: =AZ69-BA69 -> 0.00 | BC69: =+BD69 -> 0.00 | BE69: =BC69-BD69 -> 0.00 | BF69: =+BG69 -> 0.00 | BH69: =BF69-BG69 -> 0.00 | BI69: =+BJ69 -> 0.00 | BK69: =BI69-BJ69 -> 0.00 | BL69: =+BM69 -> 0.00 | BN69: =BL69-BM69 -> 0.00 | BO69: =+BP69 -> 0.00 | BQ69: =BO69-BP69 -> 0.00 | BR69: =+BS69 -> 0.00 | BT69: =BR69-BS69 -> 0.00 | BU69: =+BV69 -> 0.00 | BW69: =BU69-BV69 -> 0.00 | BX69: =+BY69 -> 0.00 | BZ69: =BX69-BY69 -> 0.00 | CA69: =+CB69 -> 0.00 | CC69: =CA69-CB69 -> 0.00 | CD69: =+CE69 -> 0.00 | CF69: =CD69-CE69 -> 0.00 | CG69: =+CH69 -> 0.00 | CI69: =CG69-CH69 -> 0.00
C70: FREEFEET | F70: Marque | G70: protection | H70: 2,500.00 | I70: 1 | J70: 0.00 | M70: 0.00 | P70: 0.00 | S70: 0.00 | V70: 0.00 | Y70: =+Z70 -> 0.00 | AA70: 0.00 | AB70: =IF($I70=1,$H70,0) -> 2,500.00 | AC70: 2,500.00 | AD70: 2,500.00 | AE70: 2,500.00 | AF70: 2,500.00 | AG70: 2,500.00 | AH70: 2,500.00 | AI70: 2,500.00 | AJ70: 2,500.00 | AK70: 2,500.00 | AL70: 2,500.00 | AM70: 2,500.00 | AN70: 2,500.00 | AO70: 2,500.00 | AP70: 2,500.00 | AQ70: 2,500.00 | AR70: 2,500.00 | AS70: 2,500.00 | AT70: 2,500.00 | AU70: 2,500.00 | AV70: 2,500.00 | AW70: 2,500.00 | AX70: 2,500.00 | AY70: 2,500.00 | AZ70: 2,500.00 | BA70: 2,500.00 | BB70: 2,500.00 | BC70: 2,500.00 | BE70: 2,500.00 | BF70: 0.00 | BH70: 0.00 | BI70: 0.00 | BK70: 0.00 | BL70: 0.00 | BN70: 0.00 | BO70: 0.00 | BQ70: 0.00 | BR70: 0.00 | BT70: 0.00 | BU70: 0.00 | BW70: 0.00 | BX70: 0.00 | BZ70: 0.00 | CA70: 0.00 | CC70: 0.00 | CD70: 0.00 | CF70: 0.00 | CG70: 0.00 | CI70: 0.00
F71: Avocat | H71: 1.00 | I71: 1 | J71: 0.00 | M71: 0.00 | P71: 0.00 | S71: 0.00 | V71: 0.00 | Y71: 0.00 | AA71: 0.00 | AB71: 0.00 | AD71: 0.00 | AE71: 0.00 | AG71: 0.00 | AH71: 0.00 | AJ71: 0.00 | AK71: 0.00 | AM71: 0.00 | AN71: 0.00 | AP71: 0.00 | AQ71: 0.00 | AS71: 0.00 | AT71: 0.00 | AV71: 0.00 | AW71: 0.00 | AY71: 0.00 | AZ71: 0.00 | BB71: 0.00 | BC71: 0.00 | BE71: 0.00 | BF71: 0.00 | BH71: 0.00 | BI71: 0.00 | BK71: 0.00 | BL71: 0.00 | BN71: 0.00 | BO71: 0.00 | BQ71: 0.00 | BR71: 0.00 | BT71: 0.00 | BU71: 0.00 | BW71: 0.00 | BX71: 0.00 | BZ71: 0.00 | CA71: 0.00 | CC71: 0.00 | CD71: 0.00 | CF71: 0.00 | CG71: 0.00 | CI71: 0.00
J72: 0.00 | M72: 0.00 | P72: 0.00 | S72: 0.00 | V72: 0.00 | Y72: 0.00 | AA72: 0.00 | AB72: 0.00 | AD72: 0.00 | AE72: 0.00 | AG72: 0.00 | AH72: 0.00 | AJ72: 0.00 | AK72: 0.00 | AM72: 0.00 | AN72: 0.00 | AP72: 0.00 | AQ72: 0.00 | AS72: 0.00 | AT72: 0.00 | AV72: 0.00 | AW72: 0.00 | AY72: 0.00 | AZ72: 0.00 | BB72: 0.00 | BC72: 0.00 | BE72: 0.00 | BF72: 0.00 | BH72: 0.00 | BI72: 0.00 | BK72: 0.00 | BL72: 0.00 | BN72: 0.00 | BO72: 0.00 | BQ72: 0.00 | BR72: 0.00 | BT72: 0.00 | BU72: 0.00 | BW72: 0.00 | BX72: 0.00 | BZ72: 0.00 | CA72: 0.00 | CC72: 0.00 | CD72: 0.00 | CF72: 0.00 | CG72: 0.00 | CI72: 0.00
B73: CALCUL DES DONNEES D'ACHAT | F73: Calcul automatique sur base des Ventes seul le prix d'achat/pièce doit être encodé | I73: 1=pris en compte
C74: CLIENTS | F74: Nb Pieces | G74: P.A. | H74: Cout | I74: R
D75: GLOBALISATION | E75: ACHAT | J75: =+J138 -> 0.00 | K75: =+K138 -> 0.00 | L75: 0.00 | M75: 0.00 | N75: 0.00 | O75: 0.00 | P75: 0.00 | Q75: 0.00 | R75: 0.00 | S75: 0.00 | T75: 0.00 | U75: 0.00 | V75: 0.00 | W75: 0.00 | X75: 0.00 | Y75: 0.00 | Z75: 0.00 | AA75: 0.00 | AB75: =+AB138 -> 0.00 | AC75: 0.00 | AD75: 0.00 | AE75: 0.00 | AF75: 0.00 | AG75: 0.00 | AH75: 58,750.00 | AI75: 0.00 | AJ75: 97,000.00 | AK75: 97,000.00 | AL75: 0.00 | AM75: 97,000.00 | AN75: 0.00 | AO75: 0.00 | AP75: 0.00 | AQ75: 0.00 | AR75: 0.00 | AS75: 0.00 | AT75: 0.00 | AU75: 0.00 | AV75: 0.00 | AW75: 0.00 | AX75: 0.00 | AY75: 0.00 | AZ75: 0.00 | BA75: 0.00 | BB75: 0.00 | BC75: 0.00 | BD75: 0.00 | BE75: 0.00 | BF75: 0.00 | BG75: 0.00 | BH75: 0.00 | BI75: 0.00 | BJ75: 0.00 | BK75: 0.00 | BL75: 0.00 | BM75: 0.00 | BN75: 0.00 | BO75: 0.00 | BP75: 0.00 | BQ75: 0.00 | BR75: 0.00 | BS75: 0.00 | BT75: 0.00 | BU75: 0.00 | BV75: 0.00 | BW75: 0.00 | BX75: 0.00 | BY75: 0.00 | BZ75: 0.00 | CA75: 0.00 | CB75: 0.00 | CC75: 0.00 | CD75: 0.00 | CE75: 0.00 | CF75: 0.00 | CG75: 0.00
D76: GLOBALISATION | E76: Fabrication | J76: =+J139 -> 0.00 | K76: 0.00 | L76: 0.00 | M76: 0.00 | N76: 0.00 | O76: 0.00 | P76: 0.00 | Q76: 0.00 | R76: 0.00 | S76: 0.00 | T76: 0.00 | U76: 0.00 | V76: 0.00 | W76: 0.00 | X76: 0.00 | Y76: 0.00 | Z76: 0.00 | AA76: 0.00 | AB76: 0.00 | AC76: 0.00 | AD76: 30,800.00 | AE76: 30,800.00 | AF76: 0.00 | AG76: 30,800.00 | AH76: 19,250.00 | AI76: 0.00 | AJ76: 0.00 | AK76: 0.00 | AL76: 0.00 | AM76: 0.00 | AN76: 0.00 | AO76: 0.00 | AP76: 0.00 | AQ76: 0.00 | AR76: 0.00 | AS76: 0.00 | AT76: 0.00 | AU76: 0.00 | AV76: 0.00 | AW76: 0.00 | AX76: 0.00 | AY76: 0.00 | AZ76: 0.00 | BA76: 0.00 | BB76: 0.00 | BC76: 0.00 | BD76: 0.00 | BE76: 0.00 | BF76: 0.00 | BG76: 0.00 | BH76: 0.00 | BI76: 0.00 | BJ76: 0.00 | BK76: 0.00 | BL76: 0.00 | BM76: 0.00 | BN76: 0.00 | BO76: 0.00 | BP76: 0.00 | BQ76: 0.00 | BR76: 0.00 | BS76: 0.00 | BT76: 0.00 | BU76: 0.00 | BV76: 0.00 | BW76: =+BW139 -> 0.00 | BX76: 0.00 | BY76: 0.00 | BZ76: 0.00 | CA76: 0.00 | CB76: 0.00 | CC76: 0.00 | CD76: 0.00 | CE76: 0.00 | CF76: 0.00 | CG76: 0.00
D77: GLOBALISATION | E77: Emballage | J77: 0.00 | K77: =+K140 -> 0.00 | L77: 0.00 | M77: 0.00 | N77: 0.00 | O77: 0.00 | P77: 0.00 | Q77: 0.00 | R77: 0.00 | S77: 0.00 | T77: 0.00 | U77: 0.00 | V77: 0.00 | W77: 0.00 | X77: 0.00 | Y77: 0.00 | Z77: 0.00 | AA77: 0.00 | AB77: =+AB140 -> 0.00 | AC77: 0.00 | AD77: 23,200.00 | AE77: 23,200.00 | AF77: 0.00 | AG77: 23,200.00 | AH77: 14,500.00 | AI77: 0.00 | AJ77: 0.00 | AK77: 0.00 | AL77: 0.00 | AM77: 0.00 | AN77: 0.00 | AO77: 0.00 | AP77: 0.00 | AQ77: 0.00 | AR77: 0.00 | AS77: 0.00 | AT77: 0.00 | AU77: 0.00 | AV77: 0.00 | AW77: 0.00 | AX77: 0.00 | AY77: 0.00 | AZ77: 0.00 | BA77: 0.00 | BB77: 0.00 | BC77: 0.00 | BD77: 0.00 | BE77: 0.00 | BF77: 0.00 | BG77: 0.00 | BH77: 0.00 | BI77: 0.00 | BJ77: 0.00 | BK77: 0.00 | BL77: 0.00 | BM77: 0.00 | BN77: 0.00 | BO77: 0.00 | BP77: 0.00 | BQ77: 0.00 | BR77: 0.00 | BS77: 0.00 | BT77: 0.00 | BU77: 0.00 | BV77: 0.00 | BW77: 0.00 | BX77: 0.00 | BY77: 0.00 | BZ77: 0.00 | CA77: 0.00 | CB77: 0.00 | CC77: 0.00 | CD77: 0.00 | CE77: 0.00 | CF77: 0.00 | CG77: 0.00
D78: GLOBALISATION | E78: Envoi | J78: 0.00 | K78: 0.00 | L78: 0.00 | M78: 0.00 | N78: 0.00 | O78: 0.00 | P78: 0.00 | Q78: 0.00 | R78: 0.00 | S78: 0.00 | T78: 0.00 | U78: 0.00 | V78: 0.00 | W78: 0.00 | X78: 0.00 | Y78: 0.00 | Z78: 0.00 | AA78: 0.00 | AB78: =+AB141 -> 0.00 | AC78: 0.00 | AD78: 4,000.00 | AE78: 4,000.00 | AF78: 0.00 | AG78: 4,000.00 | AH78: 2,500.00 | AI78: 0.00 | AJ78: 0.00 | AK78: 0.00 | AL78: 0.00 | AM78: 0.00 | AN78: 0.00 | AO78: 0.00 | AP78: 0.00 | AQ78: 0.00 | AR78: 0.00 | AS78: 0.00 | AT78: 0.00 | AU78: 0.00 | AV78: 0.00 | AW78: 0.00 | AX78: 0.00 | AY78: 0.00 | AZ78: 0.00 | BA78: 0.00 | BB78: 0.00 | BC78: 0.00 | BD78: 0.00 | BE78: 0.00 | BF78: 0.00 | BG78: 0.00 | BH78: 0.00 | BI78: 0.00 | BJ78: 0.00 | BK78: 0.00 | BL78: 0.00 | BM78: 0.00 | BN78: 0.00 | BO78: 0.00 | BP78: 0.00 | BQ78: 0.00 | BR78: 0.00 | BS78: 0.00 | BT78: 0.00 | BU78: 0.00 | BV78: 0.00 | BW78: 0.00 | BX78: 0.00 | BY78: 0.00 | BZ78: 0.00 | CA78: 0.00 | CB78: 0.00 | CC78: 0.00 | CD78: 0.00 | CE78: 0.00 | CF78: 0.00 | CG78: 0.00
L79: =J79-K79 -> 0.00 | O79: =M79-N79 -> 0.00 | R79: 0.00 | U79: 0.00 | X79: 0.00 | AA79: 0.00 | AD79: 0.00 | AG79: 0.00 | AJ79: 0.00 | AM79: 0.00 | AP79: 0.00 | AS79: 0.00 | AV79: 0.00 | AY79: 0.00 | BB79: 0.00 | BE79: 0.00 | BH79: 0.00 | BK79: 0.00 | BN79: 0.00 | BQ79: 0.00 | BT79: 0.00 | BW79: 0.00 | BZ79: 0.00 | CC79: 0.00 | CF79: 0.00 | CI79: 0.00
G81: PRODUITS | H81: TOTAUX | J81: =SUM(J84:J117) -> 0.00 | K81: 0.00 | L81: 0.00 | M81: 0.00 | N81: 0.00 | O81: 0.00 | P81: 0.00 | Q81: 0.00 | R81: 0.00 | S81: 0.00 | T81: 0.00 | U81: 0.00 | V81: 9,500.00 | W81: 9,500.00 | X81: 0.00 | Y81: =SUM(Y84:Y119) -> 15,500.00 | Z81: 5,200.00 | AA81: 10,300.00 | AB81: 0.00 | AC81: 0.00 | AD81: 0.00 | AE81: 10,000.00 | AF81: 0.00 | AG81: 10,000.00 | AH81: =SUM(AH84:AH119) -> 210,300.00 | AI81: 0.00 | AJ81: 364,800.00 | AK81: 399,500.00 | AL81: 0.00 | AM81: 399,500.00 | AN81: 0.00 | AO81: 0.00 | AP81: 0.00 | AQ81: 0.00 | AR81: 0.00 | AS81: 0.00 | AT81: 0.00 | AU81: 0.00 | AV81: 0.00 | AW81: 0.00 | AX81: 0.00 | AY81: 0.00 | AZ81: 0.00 | BA81: 0.00 | BB81: 0.00 | BC81: 0.00 | BD81: 0.00 | BE81: =SUM(BE84:BE119) -> 0.00 | BF81: 0.00 | BG81: 0.00 | BH81: 0.00 | BI81: 0.00 | BJ81: 0.00 | BK81: 0.00 | BL81: 0.00 | BM81: 0.00 | BN81: 0.00 | BO81: 0.00 | BP81: 0.00 | BQ81: 0.00 | BR81: 0.00 | BS81: 0.00 | BT81: 0.00 | BU81: 0.00 | BV81: 0.00 | BW81: 0.00 | BX81: 0.00 | BY81: 0.00 | BZ81: 0.00 | CA81: 0.00 | CB81: 0.00 | CC81: 0.00 | CD81: 0.00 | CE81: 0.00 | CF81: 0.00 | CG81: 0.00 | CH81: =SUM(CH84:CH84) -> 0.00 | CI81: =SUM(CI84:CI84) -> 0.00
C83: COMPTES Participants
H84: =SUM(H85:H95) -> 34700 | J84: =+K84 -> 0.00 | M84: =+N84 -> 0.00 | P84: =+Q84 -> 0.00 | S84: =+T84 -> 0.00
B85: AUTRES | C85: 2018-05-02 | F85: GD | G85: AVANCE | H85: 500 | I85: 1 | J85: =+K85 -> 0.00 | K85: 0.00 | L85: =J85-K85 -> 0.00 | M85: 0.00 | O85: =M85-N85 -> 0.00 | P85: 0.00 | R85: =P85-Q85 -> 0.00 | S85: 0.00 | U85: =S85-T85 -> 0.00 | V85: =+W85 -> 500.00 | W85: =+H85 -> 500.00 | X85: =V85-W85 -> 0.00 | Y85: =+Z85 -> 0.00 | AA85: =Y85-Z85 -> 0.00 | AB85: =+AC85 -> 0.00 | AD85: =AB85-AC85 -> 0.00 | AE85: =+AF85 -> 0.00 | AG85: =AE85-AF85 -> 0.00 | AH85: =-IF($I85=1,$H85,0) -> -500.00 | AJ85: =AH85-AI85 -> -500.00 | AK85: =+AL85 -> 0.00 | AM85: =AK85-AL85 -> 0.00 | AN85: =+AO85 -> 0.00 | AP85: =AN85-AO85 -> 0.00 | AQ85: =+AR85 -> 0.00 | AS85: 0.00 | AT85: =+AU85 -> 0.00 | AV85: =AT85-AU85 -> 0.00 | AW85: =+AX85 -> 0.00 | AY85: =AW85-AX85 -> 0.00 | AZ85: =+BA85 -> 0.00 | BB85: =AZ85-BA85 -> 0.00 | BC85: =+BD85 -> 0.00 | BE85: =BC85-BD85 -> 0.00 | BF85: =+BG85 -> 0.00 | BH85: =BF85-BG85 -> 0.00 | BI85: =+BJ85 -> 0.00 | BK85: =BI85-BJ85 -> 0.00 | BL85: =+BM85 -> 0.00 | BN85: =BL85-BM85 -> 0.00 | BO85: =+BP85 -> 0.00 | BQ85: =BO85-BP85 -> 0.00 | BR85: =+BS85 -> 0.00 | BT85: =BR85-BS85 -> 0.00 | BU85: =+BV85 -> 0.00 | BW85: =BU85-BV85 -> 0.00 | BX85: =+BY85 -> 0.00 | BZ85: =BX85-BY85 -> 0.00 | CA85: =+CB85 -> 0.00 | CC85: =CA85-CB85 -> 0.00 | CD85: =+CE85 -> 0.00 | CF85: =CD85-CE85 -> 0.00 | CG85: =+CH85 -> 0.00 | CI85: =CG85-CH85 -> 0.00
C86: 2018-05-30 | F86: GD | G86: AVANCE | H86: 2000 | I86: 1 | J86: =+K86 -> 0.00 | K86: 0.00 | L86: 0.00 | M86: 0.00 | O86: 0.00 | P86: 0.00 | R86: 0.00 | S86: 0.00 | U86: 0.00 | V86: 2,000.00 | W86: =+H86 -> 2,000.00 | X86: 0.00 | Y86: 0.00 | AA86: 0.00 | AB86: 0.00 | AD86: 0.00 | AE86: 0.00 | AG86: 0.00 | AH86: =-IF($I86=1,$H86,0) -> -2,000.00 | AJ86: -2,000.00 | AK86: 0.00 | AM86: 0.00 | AN86: 0.00 | AP86: 0.00 | AQ86: 0.00 | AS86: 0.00 | AT86: 0.00 | AV86: 0.00 | AW86: 0.00 | AY86: 0.00 | AZ86: 0.00 | BB86: 0.00 | BC86: 0.00 | BE86: 0.00 | BF86: 0.00 | BH86: 0.00 | BI86: 0.00 | BK86: 0.00 | BL86: 0.00 | BN86: 0.00 | BO86: 0.00 | BQ86: 0.00 | BR86: 0.00 | BT86: 0.00 | BU86: 0.00 | BW86: 0.00 | BX86: 0.00 | BZ86: 0.00 | CA86: 0.00 | CC86: 0.00 | CD86: 0.00 | CF86: 0.00 | CG86: 0.00 | CI86: 0.00
C87: 2018-05-07 | F87: GD | G87: AVANCE | H87: 2000 | I87: 1 | J87: =+K87 -> 0.00 | K87: 0.00 | L87: 0.00 | M87: 0.00 | O87: 0.00 | P87: 0.00 | R87: 0.00 | S87: 0.00 | U87: 0.00 | V87: 2,000.00 | W87: =+H87 -> 2,000.00 | X87: 0.00 | Y87: 0.00 | AA87: 0.00 | AB87: 0.00 | AD87: 0.00 | AE87: 0.00 | AG87: 0.00 | AH87: -2,000.00 | AJ87: -2,000.00 | AK87: 0.00 | AM87: 0.00 | AN87: 0.00 | AP87: 0.00 | AQ87: 0.00 | AS87: 0.00 | AT87: 0.00 | AV87: 0.00 | AW87: 0.00 | AY87: 0.00 | AZ87: 0.00 | BB87: 0.00 | BC87: 0.00 | BE87: 0.00 | BF87: 0.00 | BH87: 0.00 | BI87: 0.00 | BK87: 0.00 | BL87: 0.00 | BN87: 0.00 | BO87: 0.00 | BQ87: 0.00 | BR87: 0.00 | BT87: 0.00 | BU87: 0.00 | BW87: 0.00 | BX87: 0.00 | BZ87: 0.00 | CA87: 0.00 | CC87: 0.00 | CD87: 0.00 | CF87: 0.00 | CG87: 0.00 | CI87: 0.00
C88: 2018-05-18 | F88: GD | G88: AVANCE | H88: 2500 | I88: 1 | J88: =+K88 -> 0.00 | K88: 0.00 | L88: 0.00 | M88: 0.00 | O88: 0.00 | P88: 0.00 | R88: 0.00 | S88: 0.00 | U88: 0.00 | V88: 2,500.00 | W88: =+H88 -> 2,500.00 | X88: 0.00 | Y88: 0.00 | AA88: 0.00 | AB88: 0.00 | AD88: 0.00 | AE88: 0.00 | AG88: 0.00 | AH88: -2,500.00 | AJ88: -2,500.00 | AK88: 0.00 | AM88: 0.00 | AN88: 0.00 | AP88: 0.00 | AQ88: 0.00 | AS88: 0.00 | AT88: 0.00 | AV88: 0.00 | AW88: 0.00 | AY88: 0.00 | AZ88: 0.00 | BB88: 0.00 | BC88: 0.00 | BE88: 0.00 | BF88: 0.00 | BH88: 0.00 | BI88: 0.00 | BK88: 0.00 | BL88: 0.00 | BN88: 0.00 | BO88: 0.00 | BQ88: 0.00 | BR88: 0.00 | BT88: 0.00 | BU88: 0.00 | BW88: 0.00 | BX88: 0.00 | BZ88: 0.00 | CA88: 0.00 | CC88: 0.00 | CD88: 0.00 | CF88: 0.00 | CG88: 0.00 | CI88: 0.00
C89: 2018-06-04 | F89: GD | G89: AVANCE | H89: 3500 | I89: 1 | J89: =+K89 -> 0.00 | K89: 0.00 | L89: 0.00 | M89: 0.00 | O89: 0.00 | P89: 0.00 | R89: 0.00 | S89: 0.00 | U89: 0.00 | V89: 0.00 | X89: 0.00 | Y89: 3,500.00 | Z89: =+H89 -> 3,500.00 | AA89: 0.00 | AB89: 0.00 | AD89: 0.00 | AE89: 0.00 | AG89: 0.00 | AH89: -3,500.00 | AJ89: -3,500.00 | AK89: 0.00 | AM89: 0.00 | AN89: 0.00 | AP89: 0.00 | AQ89: 0.00 | AS89: 0.00 | AT89: 0.00 | AV89: 0.00 | AW89: 0.00 | AY89: 0.00 | AZ89: 0.00 | BB89: 0.00 | BC89: 0.00 | BE89: 0.00 | BF89: 0.00 | BH89: 0.00 | BI89: 0.00 | BK89: 0.00 | BL89: 0.00 | BN89: 0.00 | BO89: 0.00 | BQ89: 0.00 | BR89: 0.00 | BT89: 0.00 | BU89: 0.00 | BW89: 0.00 | BX89: 0.00 | BZ89: 0.00 | CA89: 0.00 | CC89: 0.00 | CD89: 0.00 | CF89: 0.00 | CG89: 0.00 | CI89: 0.00
C90: 2018-06-14 | F90: GD | G90: AVANCE | H90: 1000 | I90: 1 | J90: =+K90 -> 0.00 | K90: 0.00 | L90: =J90-K90 -> 0.00 | M90: 0.00 | O90: =M90-N90 -> 0.00 | P90: 0.00 | R90: =P90-Q90 -> 0.00 | S90: 0.00 | U90: =S90-T90 -> 0.00 | V90: 0.00 | X90: =V90-W90 -> 0.00 | Y90: 1,000.00 | Z90: =+H90 -> 1,000.00 | AA90: =Y90-Z90 -> 0.00 | AB90: 0.00 | AD90: =AB90-AC90 -> 0.00 | AE90: 0.00 | AG90: =AE90-AF90 -> 0.00 | AH90: -1,000.00 | AJ90: =AH90-AI90 -> -1,000.00 | AK90: 0.00 | AM90: =AK90-AL90 -> 0.00 | AN90: 0.00 | AP90: =AN90-AO90 -> 0.00 | AQ90: 0.00 | AS90: 0.00 | AT90: 0.00 | AV90: 0.00 | AW90: 0.00 | AY90: 0.00 | AZ90: 0.00 | BB90: 0.00 | BC90: 0.00 | BE90: 0.00 | BF90: 0.00 | BH90: 0.00 | BI90: 0.00 | BK90: 0.00 | BL90: 0.00 | BN90: 0.00 | BO90: 0.00 | BQ90: 0.00 | BR90: 0.00 | BT90: 0.00 | BU90: 0.00 | BW90: 0.00 | BX90: 0.00 | BZ90: 0.00 | CA90: 0.00 | CC90: 0.00 | CD90: 0.00 | CF90: 0.00 | CG90: 0.00 | CI90: 0.00
C91: 2018-07-02 | F91: GD | G91: AVANCE | H91: 700 | I91: 1 | J91: =+K91 -> 0.00 | K91: 0.00 | L91: =J91-K91 -> 0.00 | M91: =+N91 -> 0.00 | O91: =M91-N91 -> 0.00 | P91: =+Q91 -> 0.00 | R91: =P91-Q91 -> 0.00 | S91: =+T91 -> 0.00 | U91: =S91-T91 -> 0.00 | V91: =+W91 -> 0.00 | X91: =V91-W91 -> 0.00 | Y91: 1,000.00 | Z91: =+H91 -> 700.00 | AA91: =Y91-Z91 -> 300.00 | AB91: =+AC91 -> 0.00 | AD91: =AB91-AC91 -> 0.00 | AE91: =+AF91 -> 0.00 | AG91: =AE91-AF91 -> 0.00 | AH91: -700.00 | AJ91: =AH91-AI91 -> -700.00 | AK91: =+AL91 -> 0.00 | AM91: =AK91-AL91 -> 0.00 | AN91: =+AO91 -> 0.00 | AP91: =AN91-AO91 -> 0.00 | AQ91: =+AR91 -> 0.00 | AS91: =AQ91-AR91 -> 0.00 | AT91: =+AU91 -> 0.00 | AV91: =AT91-AU91 -> 0.00 | AW91: =+AX91 -> 0.00 | AY91: =AW91-AX91 -> 0.00 | AZ91: =+BA91 -> 0.00 | BB91: =AZ91-BA91 -> 0.00 | BC91: =+BD91 -> 0.00 | BE91: =BC91-BD91 -> 0.00 | BF91: =+BG91 -> 0.00 | BH91: =BF91-BG91 -> 0.00 | BI91: =+BJ91 -> 0.00 | BK91: =BI91-BJ91 -> 0.00 | BL91: =+BM91 -> 0.00 | BN91: =BL91-BM91 -> 0.00 | BO91: =+BP91 -> 0.00 | BQ91: =BO91-BP91 -> 0.00 | BR91: =+BS91 -> 0.00 | BT91: =BR91-BS91 -> 0.00 | BU91: =+BV91 -> 0.00 | BW91: =BU91-BV91 -> 0.00 | BX91: =+BY91 -> 0.00 | BZ91: =BX91-BY91 -> 0.00 | CA91: =+CB91 -> 0.00 | CC91: =CA91-CB91 -> 0.00 | CD91: =+CE91 -> 0.00 | CF91: =CD91-CE91 -> 0.00 | CG91: =+CH91 -> 0.00 | CI91: =CG91-CH91 -> 0.00
F92: JFA | G92: AVANCE | H92: 2500 | I92: 1 | J92: =+K92 -> 0.00 | L92: 0.00 | M92: 0.00 | O92: 0.00 | P92: 0.00 | R92: 0.00 | S92: 0.00 | U92: 0.00 | V92: 2,500.00 | W92: =+H92 -> 2,500.00 | X92: 0.00 | Y92: 0.00 | AA92: 0.00 | AB92: 0.00 | AD92: 0.00 | AE92: 0.00 | AG92: 0.00 | AH92: -2,500.00 | AJ92: -2,500.00 | AK92: 0.00 | AM92: 0.00 | AN92: 0.00 | AP92: 0.00 | AQ92: 0.00 | AS92: 0.00 | AT92: 0.00 | AV92: 0.00 | AW92: 0.00 | AY92: 0.00 | AZ92: 0.00 | BB92: 0.00 | BC92: 0.00 | BE92: 0.00 | BF92: 0.00 | BH92: 0.00 | BI92: 0.00 | BK92: 0.00 | BL92: 0.00 | BN92: 0.00 | BO92: 0.00 | BQ92: 0.00 | BR92: 0.00 | BT92: 0.00 | BU92: 0.00 | BW92: 0.00 | BX92: 0.00 | BZ92: 0.00 | CA92: 0.00 | CC92: 0.00 | CD92: 0.00 | CF92: 0.00 | CG92: 0.00 | CI92: 0.00
E93: ??? | F93: CBC | G93: Cr Caisse | I93: 1 | J93: =+K93 -> 0.00 | L93: 0.00 | M93: 0.00 | O93: 0.00 | P93: 0.00 | R93: 0.00 | S93: 0.00 | U93: 0.00 | V93: 0.00 | X93: 0.00 | Y93: 0.00 | AA93: 0.00 | AB93: 0.00 | AD93: 0.00 | AE93: 0.00 | AG93: 0.00 | AH93: 0.00 | AJ93: 0.00 | AK93: 0.00 | AM93: 0.00 | AN93: 0.00 | AP93: 0.00 | AQ93: 0.00 | AS93: =AQ93-AR93 -> 0.00 | AT93: 0.00 | AV93: 0.00 | AW93: 0.00 | AY93: 0.00 | AZ93: 0.00 | BB93: 0.00 | BC93: 0.00 | BE93: 0.00 | BF93: 0.00 | BH93: 0.00 | BI93: 0.00 | BK93: 0.00 | BL93: 0.00 | BN93: 0.00 | BO93: 0.00 | BQ93: 0.00 | BR93: 0.00 | BT93: 0.00 | BU93: 0.00 | BW93: 0.00 | BX93: 0.00 | BZ93: 0.00 | CA93: 0.00 | CC93: 0.00 | CD93: 0.00 | CF93: 0.00 | CG93: 0.00 | CI93: 0.00
E94: Remboursement VA | F94: DG | G94: AVANCE | H94: 10,000.00 | I94: 1 | J94: 0.00 | L94: 0.00 | M94: =+N94 -> 0.00 | O94: 0.00 | P94: =+Q94 -> 0.00 | R94: 0.00 | S94: =+T94 -> 0.00 | U94: 0.00 | V94: =+W94 -> 0.00 | X94: 0.00 | Y94: 0.00 | AA94: 0.00 | AB94: =+AC94 -> 0.00 | AD94: 0.00 | AE94: 10,000.00 | AG94: 10,000.00 | AH94: -10,000.00 | AJ94: -10,000.00 | AK94: =+AL94 -> 0.00 | AM94: 0.00 | AN94: =+AO94 -> 0.00 | AP94: 0.00 | AQ94: =+AR94 -> 0.00 | AS94: =AQ94-AR94 -> 0.00 | AT94: =+AU94 -> 0.00 | AV94: =AT94-AU94 -> 0.00 | AW94: =+AX94 -> 0.00 | AY94: =AW94-AX94 -> 0.00 | AZ94: 0.00 | BB94: 0.00 | BC94: 0.00 | BE94: 0.00 | BF94: 0.00 | BH94: 0.00 | BI94: 0.00 | BK94: 0.00 | BL94: 0.00 | BN94: 0.00 | BO94: 0.00 | BQ94: 0.00 | BR94: 0.00 | BT94: 0.00 | BU94: 0.00 | BW94: 0.00 | BX94: 0.00 | BZ94: 0.00 | CA94: 0.00 | CC94: 0.00 | CD94: 0.00 | CF94: 0.00 | CG94: 0.00 | CI94: 0.00
E95: seing prive | F95: Fabienne | G95: AVANCE | H95: 10,000.00 | I95: 1 | J95: =+K95 -> 0.00 | L95: =J95-K95 -> 0.00 | M95: 0.00 | O95: =M95-N95 -> 0.00 | P95: 0.00 | R95: =P95-Q95 -> 0.00 | S95: 0.00 | U95: =S95-T95 -> 0.00 | V95: 0.00 | X95: =V95-W95 -> 0.00 | Y95: 10,000.00 | AA95: =Y95-Z95 -> 10,000.00 | AB95: 0.00 | AD95: =AB95-AC95 -> 0.00 | AE95: 0.00 | AG95: =AE95-AF95 -> 0.00 | AH95: -10,000.00 | AJ95: =AH95-AI95 -> -10,000.00 | AK95: 0.00 | AM95: =AK95-AL95 -> 0.00 | AN95: 0.00 | AP95: =AN95-AO95 -> 0.00 | AQ95: 0.00 | AS95: 0.00 | AT95: 0.00 | AV95: 0.00 | AW95: 0.00 | AY95: 0.00 | AZ95: 0.00 | BB95: 0.00 | BC95: 0.00 | BE95: 0.00 | BF95: 0.00 | BH95: 0.00 | BI95: 0.00 | BK95: 0.00 | BL95: 0.00 | BN95: 0.00 | BO95: 0.00 | BQ95: 0.00 | BR95: 0.00 | BT95: 0.00 | BU95: 0.00 | BW95: 0.00 | BX95: 0.00 | BZ95: 0.00 | CA95: 0.00 | CC95: 0.00 | CD95: 0.00 | CF95: 0.00 | CG95: 0.00 | CI95: 0.00
J100: =+J$1 -> JANVIER | K100: =+K$1 -> JANVIER | L100: JANVIER | M100: FEVRIER | N100: FEVRIER | O100: FEVRIER | P100: MARS | Q100: MARS | R100: MARS | S100: AVRIL | T100: AVRIL | U100: AVRIL | V100: MAI | W100: MAI | X100: MAI | Y100: JUIN | Z100: JUIN | AA100: JUIN | AB100: JUILLET | AC100: JUILLET | AD100: JUILLET | AE100: AOUT | AF100: AOUT | AG100: AOUT | AH100: SEPTEMBRE | AI100: SEPTEMBRE | AJ100: SEPTEMBRE | AK100: OCTOBRE | AL100: OCTOBRE | AM100: OCTOBRE | AN100: NOVEMBRE | AO100: NOVEMBRE | AP100: NOVEMBRE | AQ100: DECEMBRE | AR100: DECEMBRE | AS100: DECEMBRE | AT100: JANVIER | AU100: JANVIER | AV100: JANVIER | AW100: FEVRIER | AX100: FEVRIER | AY100: FEVRIER | AZ100: MARS | BA100: MARS | BB100: MARS | BC100: AVRIL | BD100: AVRIL | BE100: AVRIL | BF100: MAI | BG100: MAI | BH100: MAI | BI100: JUIN | BJ100: JUIN | BK100: JUIN | BL100: JUILLET | BM100: JUILLET | BN100: JUILLET | BO100: AOUT | BP100: AOUT | BQ100: AOUT | BR100: SEPTEMBRE | BS100: SEPTEMBRE | BT100: SEPTEMBRE | BU100: OCTOBRE | BV100: OCTOBRE | BW100: =+BW$1 -> OCTOBRE | BX100: NOVEMBRE | BY100: NOVEMBRE | BZ100: NOVEMBRE | CA100: DECEMBRE | CB100: DECEMBRE | CC100: DECEMBRE | CD100: JANVIER | CE100: JANVIER | CF100: JANVIER | CG100: FEVRIER | CH100: =+CH1 -> FEVRIER | CI100: FEVRIER
B101: =IF($I101=1,$H101,0) -> 0.00 | C101: VENTES | D101: Pour une nouvelle vente, utiliser la macro "nouveau client" en cliquant dessus
D102: Pour modifier une vente: EFFACER la vente en inputant un 0 à sa place // PUIS faire un copier coller de la cellule B98 au mois correspondant à la vente
A103: =ROW(A103) -> 103 | C103: CLIENTS | F103: Nb Pieces | G103: P.V. | H103: Cout | I103: R
A104: 1 | B104: CLIENTS | C104: UGAP | D104: Edebex | E104: 45.00 | F104: 25,000.00 | G104: 9.80 | H104: =G104*F104 -> 245,000.00 | I104: 1 | J104: 0.00 | M104: =+N104 -> 0.00 | P104: 0.00 | S104: 0.00 | V104: 0.00 | Y104: 0.00 | AA104: =Y104-Z104 -> 0.00 | AB104: =+AC104 -> 0.00 | AD104: =AB104-AC104 -> 0.00 | AE104: =+AF104 -> 0.00 | AG104: =AE104-AF104 -> 0.00 | AH104: =IF($I104=1,$H104,0) -> 245,000.00 | AJ104: =+AK104 -> 0.00 | AK104: =+AL104 -> 0.00 | AM104: =AK104-AL104 -> 0.00 | AN104: =+AO104 -> 0.00 | AP104: =AN104-AO104 -> 0.00 | AQ104: =+AR104 -> 0.00 | AS104: =AQ104-AR104 -> 0.00 | AT104: 0.00 | AV104: =AT104-AU104 -> 0.00 | AW104: =+AX104 -> 0.00 | AY104: =AW104-AX104 -> 0.00 | AZ104: =+BA104 -> 0.00 | BB104: =AZ104-BA104 -> 0.00 | BC104: =+BD104 -> 0.00 | BE104: =BC104-BD104 -> 0.00 | BF104: =+BG104 -> 0.00 | BH104: =BF104-BG104 -> 0.00 | BI104: =+BJ104 -> 0.00 | BK104: =BI104-BJ104 -> 0.00 | BL104: =+BM104 -> 0.00 | BN104: =BL104-BM104 -> 0.00 | BO104: =+BP104 -> 0.00 | BQ104: =BO104-BP104 -> 0.00 | BR104: =+BS104 -> 0.00 | BT104: =BR104-BS104 -> 0.00 | BU104: =+BV104 -> 0.00 | BW104: =BU104-BV104 -> 0.00 | BX104: =+BY104 -> 0.00 | BZ104: =BX104-BY104 -> 0.00 | CA104: =+CB104 -> 0.00 | CC104: =CA104-CB104 -> 0.00 | CD104: =+CE104 -> 0.00 | CF104: =CD104-CE104 -> 0.00 | CG104: =+CH104 -> 0.00 | CI104: =CG104-CH104 -> 0.00
A105: =+A104+1 -> 2 | C105: FOYER | D105: Edebex | E105: 45.00 | F105: 25,000.00 | G105: 9.80 | H105: =G105*F105 -> 245,000.00 | I105: 1 | J105: 0.00 | M105: 0.00 | P105: 0.00 | S105: 0.00 | V105: 0.00 | Y105: 0.00 | AA105: =Y105-Z105 -> 0.00 | AB105: 0.00 | AD105: =AB105-AC105 -> 0.00 | AE105: =+AF105 -> 0.00 | AG105: =AE105-AF105 -> 0.00 | AH105: 0.00 | AJ105: =+AK105 -> 245,000.00 | AK105: =IF($I105=1,$H105,0) -> 245,000.00 | AM105: =AK105-AL105 -> 245,000.00 | AN105: =+AO105 -> 0.00 | AP105: =AN105-AO105 -> 0.00 | AQ105: =+AR105 -> 0.00 | AS105: =AQ105-AR105 -> 0.00 | AT105: 0.00 | AV105: =AT105-AU105 -> 0.00 | AW105: 0.00 | AY105: =AW105-AX105 -> 0.00 | AZ105: =+BA105 -> 0.00 | BB105: =AZ105-BA105 -> 0.00 | BC105: =+BD105 -> 0.00 | BE105: =BC105-BD105 -> 0.00 | BF105: =+BG105 -> 0.00 | BH105: =BF105-BG105 -> 0.00 | BI105: =+BJ105 -> 0.00 | BK105: =BI105-BJ105 -> 0.00 | BL105: =+BM105 -> 0.00 | BN105: =BL105-BM105 -> 0.00 | BO105: =+BP105 -> 0.00 | BQ105: =BO105-BP105 -> 0.00 | BR105: =+BS105 -> 0.00 | BT105: =BR105-BS105 -> 0.00 | BU105: =+BV105 -> 0.00 | BW105: =BU105-BV105 -> 0.00 | BX105: =+BY105 -> 0.00 | BZ105: =BX105-BY105 -> 0.00 | CA105: =+CB105 -> 0.00 | CC105: =CA105-CB105 -> 0.00 | CD105: =+CE105 -> 0.00 | CF105: =CD105-CE105 -> 0.00 | CG105: =+CH105 -> 0.00 | CI105: =CG105-CH105 -> 0.00
A106: =+A105+1 -> 3 | C106: Adeps | E106: 30.00 | F106: 15,000.00 | G106: 10.30 | H106: =G106*F106 -> 154,500.00 | I106: 1 | J106: =+K106 -> 0.00 | M106: =+N106 -> 0.00 | P106: =+Q106 -> 0.00 | S106: =+T106 -> 0.00 | V106: =+W106 -> 0.00 | Y106: =+Z106 -> 0.00 | AA106: =Y106-Z106 -> 0.00 | AB106: 0.00 | AD106: =AB106-AC106 -> 0.00 | AE106: =+AF106 -> 0.00 | AG106: =AE106-AF106 -> 0.00 | AH106: =+AI106 -> 0.00 | AJ106: 154,500.00 | AK106: =IF($I106=1,$H106,0) -> 154,500.00 | AM106: 154,500.00 | AN106: 0.00 | AP106: 0.00 | AQ106: 0.00 | AS106: 0.00 | AT106: 0.00 | AV106: 0.00 | AW106: =+AX106 -> 0.00 | AY106: 0.00 | AZ106: 0.00 | BB106: 0.00 | BC106: 0.00 | BE106: 0.00 | BF106: 0.00 | BH106: 0.00 | BI106: 0.00 | BK106: 0.00 | BL106: 0.00 | BN106: 0.00 | BO106: 0.00 | BQ106: 0.00 | BR106: 0.00 | BT106: 0.00 | BU106: 0.00 | BW106: 0.00 | BX106: 0.00 | BZ106: 0.00 | CA106: 0.00 | CC106: 0.00 | CD106: 0.00 | CF106: 0.00 | CG106: 0.00 | CI106: 0.00
A107: 4 | C107: 4.00 | F107: 10,000.00 | G107: 10.30 | H107: =G107*F107 -> 103,000.00 | I107: 1 | J107: =+K107 -> 0.00 | M107: =+N107 -> 0.00 | P107: =+Q107 -> 0.00 | S107: =+T107 -> 0.00 | V107: =+W107 -> 0.00 | Y107: =+Z107 -> 0.00 | AA107: =Y107-Z107 -> 0.00 | AB107: =+AC107 -> 0.00 | AD107: =AB107-AC107 -> 0.00 | AE107: =+AF107 -> 0.00 | AG107: =AE107-AF107 -> 0.00 | AH107: 0.00 | AJ107: 0.00 | AK107: =+AL107 -> 0.00 | AM107: 0.00 | AN107: 0.00 | AP107: 0.00 | AQ107: 0.00 | AS107: 0.00 | AT107: 0.00 | AV107: 0.00 | AW107: 0.00 | AY107: 0.00 | AZ107: 0.00 | BB107: 0.00 | BC107: 0.00 | BE107: 0.00 | BF107: 0.00 | BH107: 0.00 | BI107: 0.00 | BK107: 0.00 | BL107: 0.00 | BN107: 0.00 | BO107: 0.00 | BQ107: 0.00 | BR107: 0.00 | BT107: 0.00 | BU107: 0.00 | BW107: 0.00 | BX107: 0.00 | BZ107: 0.00 | CA107: 0.00 | CC107: 0.00 | CD107: 0.00 | CF107: 0.00 | CG107: 0.00 | CI107: 0.00
A108: 5 | C108: =+C107+1 -> 5.00 | F108: 0.00 | G108: 10.30 | H108: 0.00 | I108: 1 | J108: =+K108 -> 0.00 | M108: =+N108 -> 0.00 | P108: =+Q108 -> 0.00 | S108: =+T108 -> 0.00 | V108: =+W108 -> 0.00 | Y108: =+Z108 -> 0.00 | AA108: =Y108-Z108 -> 0.00 | AB108: =+AC108 -> 0.00 | AD108: =AB108-AC108 -> 0.00 | AE108: =+AF108 -> 0.00 | AG108: =AE108-AF108 -> 0.00 | AH108: 0.00 | AJ108: 0.00 | AK108: 0.00 | AM108: 0.00 | AN108: 0.00 | AP108: 0.00 | AQ108: 0.00 | AS108: 0.00 | AT108: 0.00 | AV108: 0.00 | AW108: 0.00 | AY108: 0.00 | AZ108: 0.00 | BB108: 0.00 | BC108: 0.00 | BE108: 0.00 | BF108: 0.00 | BH108: 0.00 | BI108: 0.00 | BK108: 0.00 | BL108: 0.00 | BN108: 0.00 | BO108: 0.00 | BQ108: 0.00 | BR108: 0.00 | BT108: 0.00 | BU108: 0.00 | BW108: 0.00 | BX108: 0.00 | BZ108: 0.00 | CA108: 0.00 | CC108: 0.00 | CD108: 0.00 | CF108: 0.00 | CG108: 0.00 | CI108: 0.00
A109: =+A108+1 -> 6 | C109: =+C108+1 -> 6.00 | F109: 0.00 | G109: 10.30 | H109: =G109*F109 -> 0.00 | I109: 1 | J109: =+K109 -> 0.00 | M109: =+N109 -> 0.00 | P109: =+Q109 -> 0.00 | S109: =+T109 -> 0.00 | V109: =+W109 -> 0.00 | Y109: =+Z109 -> 0.00 | AA109: =Y109-Z109 -> 0.00 | AB109: =+AC109 -> 0.00 | AD109: =AB109-AC109 -> 0.00 | AE109: =+AF109 -> 0.00 | AG109: =AE109-AF109 -> 0.00 | AH109: =+AI109 -> 0.00 | AJ109: 0.00 | AK109: =+AL109 -> 0.00 | AM109: =AK109-AL109 -> 0.00 | AN109: =+AO109 -> 0.00 | AP109: =AN109-AO109 -> 0.00 | AQ109: =+AR109 -> 0.00 | AS109: =AQ109-AR109 -> 0.00 | AT109: 0.00 | AV109: =AT109-AU109 -> 0.00 | AW109: =+AX109 -> 0.00 | AY109: =AW109-AX109 -> 0.00 | AZ109: =+BA109 -> 0.00 | BB109: =AZ109-BA109 -> 0.00 | BC109: =+BD109 -> 0.00 | BE109: =BC109-BD109 -> 0.00 | BF109: =+BG109 -> 0.00 | BH109: =BF109-BG109 -> 0.00 | BI109: =+BJ109 -> 0.00 | BK109: =BI109-BJ109 -> 0.00 | BL109: =+BM109 -> 0.00 | BN109: =BL109-BM109 -> 0.00 | BO109: =+BP109 -> 0.00 | BQ109: =BO109-BP109 -> 0.00 | BR109: =+BS109 -> 0.00 | BT109: =BR109-BS109 -> 0.00 | BU109: =+BV109 -> 0.00 | BW109: =BU109-BV109 -> 0.00 | BX109: =+BY109 -> 0.00 | BZ109: =BX109-BY109 -> 0.00 | CA109: =+CB109 -> 0.00 | CC109: =CA109-CB109 -> 0.00 | CD109: =+CE109 -> 0.00 | CF109: =CD109-CE109 -> 0.00 | CG109: =+CH109 -> 0.00 | CI109: =CG109-CH109 -> 0.00
A110: =+A109+1 -> 7 | C110: 7.00 | F110: 0.00 | G110: 10.30 | H110: =G110*F110 -> 0.00 | I110: 1 | J110: 0.00 | M110: 0.00 | P110: 0.00 | S110: 0.00 | V110: 0.00 | Y110: 0.00 | AA110: 0.00 | AB110: 0.00 | AD110: 0.00 | AE110: 0.00 | AG110: 0.00 | AH110: 0.00 | AJ110: 0.00 | AK110: 0.00 | AM110: 0.00 | AN110: 0.00 | AP110: 0.00 | AQ110: 0.00 | AS110: 0.00 | AT110: 0.00 | AV110: 0.00 | AW110: 0.00 | AY110: 0.00 | AZ110: 0.00 | BB110: 0.00 | BC110: 0.00 | BE110: 0.00 | BF110: 0.00 | BH110: 0.00 | BI110: 0.00 | BK110: 0.00 | BL110: 0.00 | BN110: 0.00 | BO110: 0.00 | BQ110: 0.00 | BR110: 0.00 | BT110: 0.00 | BU110: 0.00 | BW110: 0.00 | BX110: 0.00 | BZ110: 0.00 | CA110: 0.00 | CC110: 0.00 | CD110: 0.00 | CF110: 0.00 | CG110: 0.00 | CI110: =CG110-CH110 -> 0.00
A111: 8 | C111: 8.00 | F111: 0.00 | G111: 10.30 | H111: =G111*F111 -> 0.00 | I111: 1 | J111: 0.00 | M111: 0.00 | P111: 0.00 | S111: 0.00 | V111: 0.00 | Y111: 0.00 | AA111: =Y111-Z111 -> 0.00 | AB111: 0.00 | AD111: =AB111-AC111 -> 0.00 | AE111: 0.00 | AG111: =AE111-AF111 -> 0.00 | AH111: =+AI111 -> 0.00 | AJ111: 0.00 | AK111: =+AL111 -> 0.00 | AM111: =AK111-AL111 -> 0.00 | AN111: =+AO111 -> 0.00 | AP111: =AN111-AO111 -> 0.00 | AQ111: =+AR111 -> 0.00 | AS111: =AQ111-AR111 -> 0.00 | AT111: 0.00 | AV111: =AT111-AU111 -> 0.00 | AW111: =+AX111 -> 0.00 | AY111: =AW111-AX111 -> 0.00 | AZ111: =+BA111 -> 0.00 | BB111: =AZ111-BA111 -> 0.00 | BC111: =+BD111 -> 0.00 | BE111: =BC111-BD111 -> 0.00 | BF111: =+BG111 -> 0.00 | BH111: =BF111-BG111 -> 0.00 | BI111: =+BJ111 -> 0.00 | BK111: =BI111-BJ111 -> 0.00 | BL111: =+BM111 -> 0.00 | BN111: =BL111-BM111 -> 0.00 | BO111: =+BP111 -> 0.00 | BQ111: =BO111-BP111 -> 0.00 | BR111: =+BS111 -> 0.00 | BT111: =BR111-BS111 -> 0.00 | BU111: =+BV111 -> 0.00 | BW111: =BU111-BV111 -> 0.00 | BX111: =+BY111 -> 0.00 | BZ111: =BX111-BY111 -> 0.00 | CA111: =+CB111 -> 0.00 | CC111: =CA111-CB111 -> 0.00 | CD111: =+CE111 -> 0.00 | CF111: =CD111-CE111 -> 0.00 | CG111: =+CH111 -> 0.00 | CI111: =CG111-CH111 -> 0.00
A112: 9 | C112: 9.00 | F112: 0.00 | G112: 10.30 | H112: =G112*F112 -> 0.00 | I112: 1 | J112: 0.00 | M112: 0.00 | P112: 0.00 | S112: 0.00 | V112: 0.00 | Y112: 0.00 | AA112: =Y112-Z112 -> 0.00 | AB112: 0.00 | AD112: =AB112-AC112 -> 0.00 | AE112: 0.00 | AG112: =AE112-AF112 -> 0.00 | AH112: =+AI112 -> 0.00 | AJ112: 0.00 | AK112: =+AL112 -> 0.00 | AM112: =AK112-AL112 -> 0.00 | AN112: =+AO112 -> 0.00 | AP112: =AN112-AO112 -> 0.00 | AQ112: =+AR112 -> 0.00 | AS112: =AQ112-AR112 -> 0.00 | AT112: 0.00 | AV112: =AT112-AU112 -> 0.00 | AW112: =+AX112 -> 0.00 | AY112: =AW112-AX112 -> 0.00 | AZ112: =+BA112 -> 0.00 | BB112: =AZ112-BA112 -> 0.00 | BC112: =+BD112 -> 0.00 | BE112: =BC112-BD112 -> 0.00 | BF112: =+BG112 -> 0.00 | BH112: =BF112-BG112 -> 0.00 | BI112: =+BJ112 -> 0.00 | BK112: =BI112-BJ112 -> 0.00 | BL112: =+BM112 -> 0.00 | BN112: =BL112-BM112 -> 0.00 | BO112: =+BP112 -> 0.00 | BQ112: =BO112-BP112 -> 0.00 | BR112: =+BS112 -> 0.00 | BT112: =BR112-BS112 -> 0.00 | BU112: =+BV112 -> 0.00 | BW112: =BU112-BV112 -> 0.00 | BX112: =+BY112 -> 0.00 | BZ112: =BX112-BY112 -> 0.00 | CA112: =+CB112 -> 0.00 | CC112: =CA112-CB112 -> 0.00 | CD112: =+CE112 -> 0.00 | CF112: =CD112-CE112 -> 0.00 | CG112: =+CH112 -> 0.00 | CI112: =CG112-CH112 -> 0.00
A113: 10 | C113: 10.00 | F113: 0.00 | G113: 10.30 | H113: =G113*F113 -> 0.00 | I113: 1 | J113: 0.00 | M113: 0.00 | P113: 0.00 | S113: 0.00 | V113: 0.00 | Y113: 0.00 | AA113: =Y113-Z113 -> 0.00 | AB113: 0.00 | AD113: =AB113-AC113 -> 0.00 | AE113: 0.00 | AG113: =AE113-AF113 -> 0.00 | AH113: =+AI113 -> 0.00 | AJ113: 0.00 | AK113: =+AL113 -> 0.00 | AM113: =AK113-AL113 -> 0.00 | AN113: =+AO113 -> 0.00 | AP113: =AN113-AO113 -> 0.00 | AQ113: =+AR113 -> 0.00 | AS113: =AQ113-AR113 -> 0.00 | AT113: 0.00 | AV113: =AT113-AU113 -> 0.00 | AW113: =+AX113 -> 0.00 | AY113: =AW113-AX113 -> 0.00 | AZ113: =+BA113 -> 0.00 | BB113: =AZ113-BA113 -> 0.00 | BC113: =+BD113 -> 0.00 | BE113: =BC113-BD113 -> 0.00 | BF113: =+BG113 -> 0.00 | BH113: =BF113-BG113 -> 0.00 | BI113: =+BJ113 -> 0.00 | BK113: =BI113-BJ113 -> 0.00 | BL113: =+BM113 -> 0.00 | BN113: =BL113-BM113 -> 0.00 | BO113: =+BP113 -> 0.00 | BQ113: =BO113-BP113 -> 0.00 | BR113: =+BS113 -> 0.00 | BT113: =BR113-BS113 -> 0.00 | BU113: =+BV113 -> 0.00 | BW113: =BU113-BV113 -> 0.00 | BX113: =+BY113 -> 0.00 | BZ113: =BX113-BY113 -> 0.00 | CA113: =+CB113 -> 0.00 | CC113: =CA113-CB113 -> 0.00 | CD113: =+CE113 -> 0.00 | CF113: =CD113-CE113 -> 0.00 | CG113: =+CH113 -> 0.00 | CI113: =CG113-CH113 -> 0.00
A114: 11 | C114: 11.00 | F114: 0.00 | G114: 10.30 | H114: =G114*F114 -> 0.00 | I114: 1 | J114: 0.00 | M114: 0.00 | P114: 0.00 | S114: 0.00 | V114: 0.00 | Y114: 0.00 | AA114: =Y114-Z114 -> 0.00 | AB114: 0.00 | AD114: =AB114-AC114 -> 0.00 | AE114: 0.00 | AG114: =AE114-AF114 -> 0.00 | AH114: =+AI114 -> 0.00 | AJ114: 0.00 | AK114: =+AL114 -> 0.00 | AM114: =AK114-AL114 -> 0.00 | AN114: =+AO114 -> 0.00 | AP114: =AN114-AO114 -> 0.00 | AQ114: =+AR114 -> 0.00 | AS114: =AQ114-AR114 -> 0.00 | AT114: 0.00 | AV114: =AT114-AU114 -> 0.00 | AW114: =+AX114 -> 0.00 | AY114: =AW114-AX114 -> 0.00 | AZ114: =+BA114 -> 0.00 | BB114: =AZ114-BA114 -> 0.00 | BC114: =+BD114 -> 0.00 | BE114: =BC114-BD114 -> 0.00 | BF114: =+BG114 -> 0.00 | BH114: =BF114-BG114 -> 0.00 | BI114: =+BJ114 -> 0.00 | BK114: =BI114-BJ114 -> 0.00 | BL114: =+BM114 -> 0.00 | BN114: =BL114-BM114 -> 0.00 | BO114: =+BP114 -> 0.00 | BQ114: =BO114-BP114 -> 0.00 | BR114: =+BS114 -> 0.00 | BT114: =BR114-BS114 -> 0.00 | BU114: =+BV114 -> 0.00 | BW114: =BU114-BV114 -> 0.00 | BX114: =+BY114 -> 0.00 | BZ114: =BX114-BY114 -> 0.00 | CA114: =+CB114 -> 0.00 | CC114: =CA114-CB114 -> 0.00 | CD114: =+CE114 -> 0.00 | CF114: =CD114-CE114 -> 0.00 | CG114: =+CH114 -> 0.00 | CI114: =CG114-CH114 -> 0.00
A115: 12 | C115: 12.00 | F115: 0.00 | G115: 10.00 | H115: =G115*F115 -> 0.00 | I115: 1 | J115: =+K115 -> 0.00 | M115: =IF($I115=1,$H115,0) -> 0.00 | P115: =+Q115 -> 0.00 | S115: =+T115 -> 0.00 | V115: 0.00 | Y115: 0.00 | AA115: =Y115-Z115 -> 0.00 | AB115: =+AC115 -> 0.00 | AD115: =AB115-AC115 -> 0.00 | AE115: =+AF115 -> 0.00 | AG115: =AE115-AF115 -> 0.00 | AH115: =+AI115 -> 0.00 | AJ115: =+AK115 -> 0.00 | AK115: =+AL115 -> 0.00 | AM115: =AK115-AL115 -> 0.00 | AN115: =+AO115 -> 0.00 | AP115: =AN115-AO115 -> 0.00 | AQ115: =+AR115 -> 0.00 | AS115: =AQ115-AR115 -> 0.00 | AT115: 0.00 | AV115: =AT115-AU115 -> 0.00 | AW115: =+AX115 -> 0.00 | AY115: =AW115-AX115 -> 0.00 | AZ115: =+BA115 -> 0.00 | BB115: =AZ115-BA115 -> 0.00 | BC115: =+BD115 -> 0.00 | BE115: =BC115-BD115 -> 0.00 | BF115: =+BG115 -> 0.00 | BH115: =BF115-BG115 -> 0.00 | BI115: =+BJ115 -> 0.00 | BK115: =BI115-BJ115 -> 0.00 | BL115: =+BM115 -> 0.00 | BN115: =BL115-BM115 -> 0.00 | BO115: =+BP115 -> 0.00 | BQ115: =BO115-BP115 -> 0.00 | BR115: =+BS115 -> 0.00 | BT115: =BR115-BS115 -> 0.00 | BU115: =+BV115 -> 0.00 | BW115: =BU115-BV115 -> 0.00 | BX115: =+BY115 -> 0.00 | BZ115: =BX115-BY115 -> 0.00 | CA115: =+CB115 -> 0.00 | CC115: =CA115-CB115 -> 0.00 | CD115: =+CE115 -> 0.00 | CF115: =CD115-CE115 -> 0.00 | CG115: =+CH115 -> 0.00 | CI115: =CG115-CH115 -> 0.00
J117: =+J$1 -> JANVIER | K117: =+K$1 -> JANVIER | L117: JANVIER | M117: FEVRIER | N117: FEVRIER | O117: FEVRIER | P117: MARS | Q117: MARS | R117: MARS | S117: AVRIL | T117: AVRIL | U117: AVRIL | V117: MAI | W117: MAI | X117: MAI
C119: ACHATS | D119: reprise automatique sur base des ventes correspondantes | J119: SYSTÈME AUTOMATIQUE DE CALCUL NE PAS MODIFIER LES DONNEES CI-DESSOUS | Y119: JUIN | Z119: JUIN | AA119: JUIN | AB119: JUILLET | AC119: JUILLET | AD119: JUILLET | AE119: AOUT | AF119: AOUT | AG119: AOUT | AH119: SEPTEMBRE | AI119: SEPTEMBRE | AJ119: SEPTEMBRE | AK119: OCTOBRE | AL119: OCTOBRE | AM119: OCTOBRE | AN119: NOVEMBRE | AO119: NOVEMBRE | AP119: NOVEMBRE | AQ119: DECEMBRE | AR119: DECEMBRE | AS119: DECEMBRE | AT119: JANVIER | AU119: JANVIER | AV119: JANVIER | AW119: FEVRIER | AX119: FEVRIER | AY119: FEVRIER | AZ119: MARS | BA119: MARS | BB119: MARS | BC119: AVRIL | BD119: AVRIL | BE119: AVRIL | BF119: MAI | BG119: MAI | BH119: MAI | BI119: JUIN | BJ119: JUIN | BK119: JUIN | BL119: JUILLET | BM119: JUILLET | BN119: JUILLET | BO119: AOUT | BP119: AOUT | BQ119: AOUT | BR119: SEPTEMBRE | BS119: SEPTEMBRE | BT119: SEPTEMBRE | BU119: OCTOBRE | BV119: OCTOBRE | BW119: =+BW$1 -> OCTOBRE | BX119: NOVEMBRE | BY119: NOVEMBRE | BZ119: NOVEMBRE | CA119: DECEMBRE | CB119: DECEMBRE | CC119: DECEMBRE | CD119: JANVIER | CE119: JANVIER | CF119: JANVIER | CG119: FEVRIER
D120: et du prix d'achat ventilé selon commande | J120: Sauf pour la colonne G des PRIX d'ACHAT
A121: =ROW(A121) -> 121
A122: 1 | B122: FOURNISSEURS | C122: =+C104 -> UGAP | F122: =+F104 -> 25,000.00 | G122: 3.80 | H122: =G122*F122 -> 95,000.00 | I122: =IF(I104=1,1,0) -> 1 | J122: =IF($I122=0,0,IF(J104=0,0,$H122)) -> 0.00 | M122: =IF($I122=0,0,IF(M104=0,0,$H122)) -> 0.00 | P122: =IF($I122=0,0,IF(P104=0,0,$H122)) -> 0.00 | S122: =IF($I122=0,0,IF(S104=0,0,$H122)) -> 0.00 | V122: =IF($I122=0,0,IF(V104=0,0,$H122)) -> 0.00 | Y122: =IF($I122=0,0,IF(Y104=0,0,$H122)) -> 0.00 | Z122: 0.00 | AA122: 0.00 | AB122: 0.00 | AC122: 0.00 | AD122: 0.00 | AE122: 0.00 | AF122: 0.00 | AG122: 0.00 | AH122: 95,000.00 | AI122: 0.00 | AJ122: 0.00 | AK122: 0.00 | AL122: 0.00 | AM122: 0.00 | AN122: 0.00 | AO122: 0.00 | AP122: 0.00 | AQ122: 0.00 | AR122: 0.00 | AS122: 0.00 | AT122: 0.00 | AU122: 0.00 | AV122: 0.00 | AW122: 0.00 | AX122: 0.00 | AY122: 0.00 | AZ122: 0.00 | BA122: 0.00 | BB122: 0.00 | BC122: 0.00 | BD122: 0.00 | BE122: =IF($I122=0,0,IF(BE104=0,0,$H122)) -> 0.00 | BF122: 0.00 | BG122: 0.00 | BH122: 0.00 | BI122: 0.00 | BJ122: 0.00 | BK122: 0.00 | BL122: 0.00 | BM122: 0.00 | BN122: 0.00 | BO122: 0.00 | BP122: 0.00 | BQ122: 0.00 | BR122: 0.00 | BS122: 0.00 | BT122: 0.00 | BU122: 0.00 | BV122: 0.00 | BW122: 0.00 | BX122: 0.00 | BY122: 0.00 | BZ122: 0.00 | CA122: 0.00 | CB122: 0.00 | CC122: 0.00 | CD122: 0.00 | CE122: 0.00 | CF122: 0.00 | CG122: 0.00 | CI122: =CG122-CH122 -> 0.00
A123: =+A122+1 -> 2 | C123: FOYER | F123: 25,000.00 | G123: 3.80 | H123: =G123*F123 -> 95,000.00 | I123: =IF(I105=1,1,0) -> 1 | J123: 0.00 | M123: 0.00 | P123: 0.00 | S123: 0.00 | V123: 0.00 | Y123: =IF($I123=0,0,IF(Y105=0,0,$H123)) -> 0.00 | Z123: 0.00 | AA123: 0.00 | AB123: 0.00 | AC123: 0.00 | AD123: 0.00 | AE123: 0.00 | AF123: 0.00 | AG123: 0.00 | AH123: 0.00 | AI123: 0.00 | AJ123: 95,000.00 | AK123: 95,000.00 | AL123: 0.00 | AM123: 95,000.00 | AN123: 0.00 | AO123: 0.00 | AP123: 0.00 | AQ123: 0.00 | AR123: 0.00 | AS123: 0.00 | AT123: 0.00 | AU123: 0.00 | AV123: 0.00 | AW123: 0.00 | AX123: 0.00 | AY123: 0.00 | AZ123: 0.00 | BA123: 0.00 | BB123: 0.00 | BC123: 0.00 | BD123: 0.00 | BE123: =IF($I123=0,0,IF(BE105=0,0,$H123)) -> 0.00 | BF123: 0.00 | BG123: 0.00 | BH123: 0.00 | BI123: 0.00 | BJ123: 0.00 | BK123: 0.00 | BL123: 0.00 | BM123: 0.00 | BN123: 0.00 | BO123: 0.00 | BP123: 0.00 | BQ123: 0.00 | BR123: 0.00 | BS123: 0.00 | BT123: 0.00 | BU123: 0.00 | BV123: 0.00 | BW123: 0.00 | BX123: 0.00 | BY123: 0.00 | BZ123: 0.00 | CA123: 0.00 | CB123: 0.00 | CC123: 0.00 | CD123: 0.00 | CE123: 0.00 | CF123: 0.00 | CG123: 0.00 | CI123: =CG123-CH123 -> 0.00
A124: =+A123+1 -> 3 | C124: Adeps | F124: 15,000.00 | G124: 4.00 | H124: 60,000.00 | I124: =IF(I106=1,1,0) -> 1 | J124: 0.00 | M124: 0.00 | P124: 0.00 | S124: 0.00 | V124: 0.00 | Y124: =IF($I124=0,0,IF(Y106=0,0,$H124)) -> 0.00 | Z124: 0.00 | AA124: 0.00 | AB124: 0.00 | AC124: 0.00 | AD124: 0.00 | AE124: 0.00 | AF124: 0.00 | AG124: 0.00 | AH124: 0.00 | AI124: 0.00 | AJ124: 60,000.00 | AK124: 60,000.00 | AL124: 0.00 | AM124: 60,000.00 | AN124: 0.00 | AO124: 0.00 | AP124: 0.00 | AQ124: 0.00 | AR124: 0.00 | AS124: 0.00 | AT124: 0.00 | AU124: 0.00 | AV124: 0.00 | AW124: 0.00 | AX124: 0.00 | AY124: 0.00 | AZ124: 0.00 | BA124: 0.00 | BB124: 0.00 | BC124: 0.00 | BD124: 0.00 | BE124: =IF($I124=0,0,IF(BE106=0,0,$H124)) -> 0.00 | BF124: 0.00 | BG124: 0.00 | BH124: 0.00 | BI124: 0.00 | BJ124: 0.00 | BK124: 0.00 | BL124: 0.00 | BM124: 0.00 | BN124: 0.00 | BO124: 0.00 | BP124: 0.00 | BQ124: 0.00 | BR124: 0.00 | BS124: 0.00 | BT124: 0.00 | BU124: 0.00 | BV124: 0.00 | BW124: 0.00 | BX124: 0.00 | BY124: 0.00 | BZ124: 0.00 | CA124: 0.00 | CB124: 0.00 | CC124: 0.00 | CD124: 0.00 | CE124: 0.00 | CF124: 0.00 | CG124: 0.00 | CI124: =CG124-CH124 -> 0.00
A125: 4 | C125: 4.00 | F125: 10,000.00 | G125: 4.00 | H125: 40,000.00 | I125: =IF(I107=1,1,0) -> 1 | J125: 0.00 | M125: 0.00 | P125: 0.00 | S125: 0.00 | V125: 0.00 | Y125: =IF($I125=0,0,IF(Y107=0,0,$H125)) -> 0.00 | Z125: 0.00 | AA125: 0.00 | AB125: 0.00 | AC125: 0.00 | AD125: 0.00 | AE125: 0.00 | AF125: 0.00 | AG125: 0.00 | AH125: 0.00 | AI125: 0.00 | AJ125: 0.00 | AK125: 0.00 | AL125: 0.00 | AM125: 0.00 | AN125: 0.00 | AO125: 0.00 | AP125: 0.00 | AQ125: 0.00 | AR125: 0.00 | AS125: 0.00 | AT125: 0.00 | AU125: 0.00 | AV125: 0.00 | AW125: 0.00 | AX125: 0.00 | AY125: 0.00 | AZ125: 0.00 | BA125: 0.00 | BB125: 0.00 | BC125: 0.00 | BD125: 0.00 | BE125: =IF($I125=0,0,IF(BE107=0,0,$H125)) -> 0.00 | BF125: 0.00 | BG125: 0.00 | BH125: 0.00 | BI125: 0.00 | BJ125: 0.00 | BK125: 0.00 | BL125: 0.00 | BM125: 0.00 | BN125: 0.00 | BO125: 0.00 | BP125: 0.00 | BQ125: 0.00 | BR125: 0.00 | BS125: 0.00 | BT125: 0.00 | BU125: 0.00 | BV125: 0.00 | BW125: 0.00 | BX125: 0.00 | BY125: 0.00 | BZ125: 0.00 | CA125: 0.00 | CB125: 0.00 | CC125: 0.00 | CD125: 0.00 | CE125: 0.00 | CF125: 0.00 | CG125: 0.00
A126: 5 | C126: 5.00 | F126: 0.00 | G126: 4.00 | H126: =G126*F126 -> 0.00 | I126: 1 | J126: 0.00 | M126: 0.00 | P126: 0.00 | S126: 0.00 | V126: 0.00 | Y126: =IF($I126=0,0,IF(Y108=0,0,$H126)) -> 0.00 | Z126: 0.00 | AA126: 0.00 | AB126: 0.00 | AC126: 0.00 | AD126: 0.00 | AE126: 0.00 | AF126: 0.00 | AG126: 0.00 | AH126: 0.00 | AI126: 0.00 | AJ126: 0.00 | AK126: =IF($I126=0,0,IF(AK108=0,0,$H126)) -> 0.00 | AL126: 0.00 | AM126: 0.00 | AN126: 0.00 | AO126: 0.00 | AP126: 0.00 | AQ126: 0.00 | AR126: 0.00 | AS126: 0.00 | AT126: 0.00 | AU126: 0.00 | AV126: 0.00 | AW126: 0.00 | AX126: 0.00 | AY126: 0.00 | AZ126: 0.00 | BA126: 0.00 | BB126: 0.00 | BC126: 0.00 | BD126: 0.00 | BE126: =IF($I126=0,0,IF(BE108=0,0,$H126)) -> 0.00 | BF126: 0.00 | BG126: 0.00 | BH126: 0.00 | BI126: 0.00 | BJ126: 0.00 | BK126: 0.00 | BL126: 0.00 | BM126: 0.00 | BN126: 0.00 | BO126: 0.00 | BP126: 0.00 | BQ126: 0.00 | BR126: 0.00 | BS126: 0.00 | BT126: 0.00 | BU126: 0.00 | BV126: 0.00 | BW126: 0.00 | BX126: 0.00 | BY126: 0.00 | BZ126: 0.00 | CA126: 0.00 | CB126: 0.00 | CC126: 0.00 | CD126: 0.00 | CE126: 0.00 | CF126: 0.00 | CG126: 0.00 | CI126: 0.00
A127: =+A126+1 -> 6 | C127: 6.00 | F127: 0.00 | G127: 4.00 | H127: =G127*F127 -> 0.00 | I127: =IF(I109=1,1,0) -> 1 | J127: 0.00 | M127: 0.00 | P127: 0.00 | S127: 0.00 | V127: 0.00 | Y127: =IF($I127=0,0,IF(Y109=0,0,$H127)) -> 0.00 | Z127: 0.00 | AA127: 0.00 | AB127: 0.00 | AC127: 0.00 | AD127: 0.00 | AE127: 0.00 | AF127: 0.00 | AG127: 0.00 | AH127: 0.00 | AI127: 0.00 | AJ127: 0.00 | AK127: 0.00 | AL127: 0.00 | AM127: 0.00 | AN127: 0.00 | AO127: 0.00 | AP127: 0.00 | AQ127: 0.00 | AR127: 0.00 | AS127: 0.00 | AT127: 0.00 | AU127: 0.00 | AV127: 0.00 | AW127: 0.00 | AX127: 0.00 | AY127: 0.00 | AZ127: 0.00 | BA127: 0.00 | BB127: 0.00 | BC127: 0.00 | BD127: 0.00 | BE127: =IF($I127=0,0,IF(BE109=0,0,$H127)) -> 0.00 | BF127: 0.00 | BG127: 0.00 | BH127: 0.00 | BI127: 0.00 | BJ127: 0.00 | BK127: 0.00 | BL127: 0.00 | BM127: 0.00 | BN127: 0.00 | BO127: 0.00 | BP127: 0.00 | BQ127: 0.00 | BR127: 0.00 | BS127: 0.00 | BT127: 0.00 | BU127: 0.00 | BV127: 0.00 | BW127: 0.00 | BX127: 0.00 | BY127: 0.00 | BZ127: 0.00 | CA127: 0.00 | CB127: 0.00 | CC127: 0.00 | CD127: 0.00 | CE127: 0.00 | CF127: 0.00 | CG127: 0.00 | CI127: =CG127-CH127 -> 0.00
A128: =+A127+1 -> 7 | C128: 7.00 | F128: 0.00 | G128: 4.00 | H128: =G128*F128 -> 0.00 | I128: 1 | J128: 0.00 | M128: 0.00 | P128: 0.00 | S128: 0.00 | V128: 0.00 | Y128: =IF($I128=0,0,IF(Y110=0,0,$H128)) -> 0.00 | Z128: 0.00 | AA128: 0.00 | AB128: 0.00 | AC128: 0.00 | AD128: 0.00 | AE128: 0.00 | AF128: 0.00 | AG128: 0.00 | AH128: 0.00 | AI128: 0.00 | AJ128: 0.00 | AK128: 0.00 | AL128: 0.00 | AM128: 0.00 | AN128: 0.00 | AO128: 0.00 | AP128: 0.00 | AQ128: 0.00 | AR128: 0.00 | AS128: 0.00 | AT128: 0.00 | AU128: 0.00 | AV128: 0.00 | AW128: 0.00 | AX128: 0.00 | AY128: 0.00 | AZ128: 0.00 | BA128: 0.00 | BB128: 0.00 | BC128: 0.00 | BD128: 0.00 | BE128: =IF($I128=0,0,IF(BE110=0,0,$H128)) -> 0.00 | BF128: 0.00 | BG128: 0.00 | BH128: 0.00 | BI128: 0.00 | BJ128: 0.00 | BK128: 0.00 | BL128: 0.00 | BM128: 0.00 | BN128: 0.00 | BO128: 0.00 | BP128: 0.00 | BQ128: 0.00 | BR128: 0.00 | BS128: 0.00 | BT128: 0.00 | BU128: 0.00 | BV128: 0.00 | BW128: 0.00 | BX128: 0.00 | BY128: 0.00 | BZ128: 0.00 | CA128: 0.00 | CB128: 0.00 | CC128: 0.00 | CD128: 0.00 | CE128: 0.00 | CF128: 0.00 | CG128: 0.00 | CI128: =CG128-CH128 -> 0.00
A129: 8 | C129: 8.00 | F129: 0.00 | G129: 4.00 | H129: =G129*F129 -> 0.00 | I129: 1 | J129: 0.00 | M129: 0.00 | P129: 0.00 | S129: 0.00 | V129: 0.00 | Y129: =IF($I129=0,0,IF(Y111=0,0,$H129)) -> 0.00 | Z129: 0.00 | AA129: 0.00 | AB129: 0.00 | AC129: 0.00 | AD129: 0.00 | AE129: 0.00 | AF129: 0.00 | AG129: 0.00 | AH129: 0.00 | AI129: 0.00 | AJ129: 0.00 | AK129: 0.00 | AL129: 0.00 | AM129: 0.00 | AN129: 0.00 | AO129: 0.00 | AP129: 0.00 | AQ129: 0.00 | AR129: 0.00 | AS129: 0.00 | AT129: 0.00 | AU129: 0.00 | AV129: 0.00 | AW129: 0.00 | AX129: 0.00 | AY129: 0.00 | AZ129: 0.00 | BA129: 0.00 | BB129: 0.00 | BC129: 0.00 | BD129: 0.00 | BE129: =IF($I129=0,0,IF(BE111=0,0,$H129)) -> 0.00 | BF129: 0.00 | BG129: 0.00 | BH129: 0.00 | BI129: 0.00 | BJ129: 0.00 | BK129: 0.00 | BL129: 0.00 | BM129: 0.00 | BN129: 0.00 | BO129: 0.00 | BP129: 0.00 | BQ129: 0.00 | BR129: 0.00 | BS129: 0.00 | BT129: 0.00 | BU129: 0.00 | BV129: 0.00 | BW129: 0.00 | BX129: 0.00 | BY129: 0.00 | BZ129: 0.00 | CA129: 0.00 | CB129: 0.00 | CC129: 0.00 | CD129: 0.00 | CE129: 0.00 | CF129: 0.00 | CG129: 0.00 | CI129: =CG129-CH129 -> 0.00
A130: 9 | C130: 9.00 | F130: 0.00 | G130: 4.00 | H130: =G130*F130 -> 0.00 | I130: 1 | J130: 0.00 | M130: 0.00 | P130: 0.00 | S130: 0.00 | V130: 0.00 | Y130: =IF($I130=0,0,IF(Y112=0,0,$H130)) -> 0.00 | Z130: 0.00 | AA130: 0.00 | AB130: 0.00 | AC130: 0.00 | AD130: 0.00 | AE130: 0.00 | AF130: 0.00 | AG130: 0.00 | AH130: 0.00 | AI130: 0.00 | AJ130: 0.00 | AK130: 0.00 | AL130: 0.00 | AM130: 0.00 | AN130: 0.00 | AO130: 0.00 | AP130: 0.00 | AQ130: 0.00 | AR130: 0.00 | AS130: 0.00 | AT130: 0.00 | AU130: 0.00 | AV130: 0.00 | AW130: 0.00 | AX130: 0.00 | AY130: 0.00 | AZ130: 0.00 | BA130: 0.00 | BB130: 0.00 | BC130: 0.00 | BD130: 0.00 | BE130: =IF($I130=0,0,IF(BE112=0,0,$H130)) -> 0.00 | BF130: 0.00 | BG130: 0.00 | BH130: 0.00 | BI130: 0.00 | BJ130: 0.00 | BK130: 0.00 | BL130: 0.00 | BM130: 0.00 | BN130: 0.00 | BO130: 0.00 | BP130: 0.00 | BQ130: 0.00 | BR130: 0.00 | BS130: 0.00 | BT130: 0.00 | BU130: 0.00 | BV130: 0.00 | BW130: 0.00 | BX130: 0.00 | BY130: 0.00 | BZ130: 0.00 | CA130: 0.00 | CB130: 0.00 | CC130: 0.00 | CD130: 0.00 | CE130: 0.00 | CF130: 0.00 | CG130: 0.00 | CI130: =CG130-CH130 -> 0.00
A131: 10 | C131: 10.00 | F131: 0.00 | G131: 4.00 | H131: =G131*F131 -> 0.00 | I131: 1 | J131: 0.00 | M131: 0.00 | P131: 0.00 | S131: 0.00 | V131: 0.00 | Y131: =IF($I131=0,0,IF(Y113=0,0,$H131)) -> 0.00 | Z131: 0.00 | AA131: 0.00 | AB131: 0.00 | AC131: 0.00 | AD131: 0.00 | AE131: 0.00 | AF131: 0.00 | AG131: 0.00 | AH131: 0.00 | AI131: 0.00 | AJ131: 0.00 | AK131: 0.00 | AL131: 0.00 | AM131: 0.00 | AN131: 0.00 | AO131: 0.00 | AP131: 0.00 | AQ131: 0.00 | AR131: 0.00 | AS131: 0.00 | AT131: 0.00 | AU131: 0.00 | AV131: 0.00 | AW131: 0.00 | AX131: 0.00 | AY131: 0.00 | AZ131: 0.00 | BA131: 0.00 | BB131: 0.00 | BC131: 0.00 | BD131: 0.00 | BE131: =IF($I131=0,0,IF(BE113=0,0,$H131)) -> 0.00 | BF131: 0.00 | BG131: 0.00 | BH131: 0.00 | BI131: 0.00 | BJ131: 0.00 | BK131: 0.00 | BL131: 0.00 | BM131: 0.00 | BN131: 0.00 | BO131: 0.00 | BP131: 0.00 | BQ131: 0.00 | BR131: 0.00 | BS131: 0.00 | BT131: 0.00 | BU131: 0.00 | BV131: 0.00 | BW131: 0.00 | BX131: 0.00 | BY131: 0.00 | BZ131: 0.00 | CA131: 0.00 | CB131: 0.00 | CC131: 0.00 | CD131: 0.00 | CE131: 0.00 | CF131: 0.00 | CG131: 0.00 | CI131: =CG131-CH131 -> 0.00
A132: 11 | C132: 11.00 | F132: 0.00 | G132: 4.00 | H132: =G132*F132 -> 0.00 | I132: 1 | J132: 0.00 | M132: 0.00 | P132: 0.00 | S132: 0.00 | V132: 0.00 | Y132: =IF($I132=0,0,IF(Y114=0,0,$H132)) -> 0.00 | Z132: 0.00 | AA132: 0.00 | AB132: 0.00 | AC132: 0.00 | AD132: 0.00 | AE132: 0.00 | AF132: 0.00 | AG132: 0.00 | AH132: 0.00 | AI132: 0.00 | AJ132: 0.00 | AK132: 0.00 | AL132: 0.00 | AM132: 0.00 | AN132: 0.00 | AO132: 0.00 | AP132: 0.00 | AQ132: 0.00 | AR132: 0.00 | AS132: 0.00 | AT132: 0.00 | AU132: 0.00 | AV132: 0.00 | AW132: 0.00 | AX132: 0.00 | AY132: 0.00 | AZ132: 0.00 | BA132: 0.00 | BB132: 0.00 | BC132: 0.00 | BD132: 0.00 | BE132: =IF($I132=0,0,IF(BE114=0,0,$H132)) -> 0.00 | BF132: 0.00 | BG132: 0.00 | BH132: 0.00 | BI132: 0.00 | BJ132: 0.00 | BK132: 0.00 | BL132: 0.00 | BM132: 0.00 | BN132: 0.00 | BO132: 0.00 | BP132: 0.00 | BQ132: 0.00 | BR132: 0.00 | BS132: 0.00 | BT132: 0.00 | BU132: 0.00 | BV132: 0.00 | BW132: 0.00 | BX132: 0.00 | BY132: 0.00 | BZ132: 0.00 | CA132: 0.00 | CB132: 0.00 | CC132: 0.00 | CD132: 0.00 | CE132: 0.00 | CF132: 0.00 | CG132: 0.00 | CI132: =CG132-CH132 -> 0.00
A133: 12 | C133: 12.00 | F133: 0.00 | G133: 4.00 | H133: =G133*F133 -> 0.00 | I133: 1 | J133: 0.00 | M133: 0.00 | P133: 0.00 | S133: 0.00 | V133: 0.00 | Y133: 0.00 | Z133: 0.00 | AA133: 0.00 | AB133: 0.00 | AC133: 0.00 | AD133: 0.00 | AE133: 0.00 | AF133: 0.00 | AG133: 0.00 | AH133: 0.00 | AI133: 0.00 | AJ133: 0.00 | AK133: 0.00 | AL133: 0.00 | AM133: 0.00 | AN133: 0.00 | AO133: 0.00 | AP133: 0.00 | AQ133: 0.00 | AR133: 0.00 | AS133: 0.00 | AT133: 0.00 | AU133: 0.00 | AV133: 0.00 | AW133: 0.00 | AX133: 0.00 | AY133: 0.00 | AZ133: 0.00 | BA133: 0.00 | BB133: 0.00 | BC133: 0.00 | BD133: 0.00 | BE133: 0.00 | BF133: 0.00 | BG133: 0.00 | BH133: 0.00 | BI133: 0.00 | BJ133: 0.00 | BK133: 0.00 | BL133: 0.00 | BM133: 0.00 | BN133: 0.00 | BO133: 0.00 | BP133: 0.00 | BQ133: 0.00 | BR133: 0.00 | BS133: 0.00 | BT133: 0.00 | BU133: 0.00 | BV133: 0.00 | BW133: 0.00 | BX133: 0.00 | BY133: 0.00 | BZ133: 0.00 | CA133: 0.00 | CB133: 0.00 | CC133: 0.00 | CD133: 0.00 | CE133: 0.00 | CF133: 0.00 | CG133: 0.00 | CI133: =CG133-CH133 -> 0.00
B135: ZONE DE VENTILATION du prix d'achat entre les fournisseurs et loopstot sur base
C136: du délais de paiement | G136: Moyenne
G137: =AVERAGE(G211,G205,G199,G193,G187,G181,G175,G169,G163,G157,G151) -> 3.96 | I137: Ventilation | J137: ajouter 6 | P137: CES DONNES SONT REPORTEES DANS LA ZONE CALCUL DES DONNEES D'ACHATS
G138: =AVERAGE(G212,G206,G200,G194,G188,G182,G176,G170,G164,G158,G152) -> 2.51 | I138: ACHAT | J138: =SUM(J212,J206,J200,J194,J188,J182,J176,J170,J164,J158,J152) -> 0.00 | K138: 0.00 | L138: 0.00 | M138: =SUM(M212,M206,M200,M194,M188,M182,M176,M170,M164,M158,M152) -> 0.00 | N138: 0.00 | O138: 0.00 | P138: 0.00 | Q138: 0.00 | R138: 0.00 | S138: 0.00 | T138: 0.00 | U138: 0.00 | V138: 0.00 | W138: 0.00 | X138: 0.00 | Y138: 0.00 | Z138: 0.00 | AA138: 0.00 | AB138: 0.00 | AC138: 0.00 | AD138: 0.00 | AE138: 0.00 | AF138: 0.00 | AG138: 0.00 | AH138: 58,750.00 | AI138: 0.00 | AJ138: 97,000.00 | AK138: 97,000.00 | AL138: 0.00 | AM138: 97,000.00 | AN138: 0.00 | AO138: 0.00 | AP138: 0.00 | AQ138: 0.00 | AR138: 0.00 | AS138: 0.00 | AT138: 0.00 | AU138: 0.00 | AV138: 0.00 | AW138: 0.00 | AX138: 0.00 | AY138: 0.00 | AZ138: 0.00 | BA138: 0.00 | BB138: 0.00 | BC138: 0.00 | BD138: 0.00 | BE138: 0.00 | BF138: 0.00 | BG138: 0.00 | BH138: 0.00 | BI138: 0.00 | BJ138: 0.00 | BK138: 0.00 | BL138: 0.00 | BM138: 0.00 | BN138: 0.00 | BO138: 0.00 | BP138: 0.00 | BQ138: 0.00 | BR138: 0.00 | BS138: 0.00 | BT138: 0.00 | BU138: 0.00 | BV138: 0.00 | BW138: 0.00 | BX138: 0.00 | BY138: =SUM(BY212,BY206,BY200,BY194,BY188,BY182,BY176,BY170,BY164,BY158,BY152) -> 0.00 | BZ138: 0.00 | CA138: 0.00 | CB138: 0.00 | CC138: 0.00 | CD138: 0.00 | CE138: 0.00 | CF138: 0.00 | CG138: 0.00
G139: =AVERAGE(G213,G207,G201,G195,G189,G183,G177,G171,G165,G159,G153) -> 0.77 | I139: Fabrication | J139: =SUM(J213,J207,J201,J195,J189,J183,J177,J171,J165,J159,J153) -> 0.00 | K139: =+K213+K207+K201+K195+K189 -> 0.00 | L139: 0.00 | M139: 0.00 | N139: 0.00 | O139: 0.00 | P139: 0.00 | Q139: 0.00 | R139: 0.00 | S139: 0.00 | T139: 0.00 | U139: 0.00 | V139: 0.00 | W139: 0.00 | X139: 0.00 | Y139: 0.00 | Z139: 0.00 | AA139: 0.00 | AB139: 0.00 | AC139: 0.00 | AD139: 30,800.00 | AE139: 30,800.00 | AF139: 0.00 | AG139: 30,800.00 | AH139: 19,250.00 | AI139: 0.00 | AJ139: 0.00 | AK139: 0.00 | AL139: 0.00 | AM139: 0.00 | AN139: 0.00 | AO139: 0.00 | AP139: 0.00 | AQ139: 0.00 | AR139: 0.00 | AS139: 0.00 | AT139: 0.00 | AU139: 0.00 | AV139: 0.00 | AW139: 0.00 | AX139: 0.00 | AY139: 0.00 | AZ139: 0.00 | BA139: 0.00 | BB139: 0.00 | BC139: 0.00 | BD139: 0.00 | BE139: 0.00 | BF139: 0.00 | BG139: 0.00 | BH139: 0.00 | BI139: 0.00 | BJ139: 0.00 | BK139: 0.00 | BL139: 0.00 | BM139: 0.00 | BN139: 0.00 | BO139: 0.00 | BP139: 0.00 | BQ139: 0.00 | BR139: 0.00 | BS139: 0.00 | BT139: 0.00 | BU139: 0.00 | BV139: 0.00 | BW139: 0.00 | BX139: 0.00 | BY139: 0.00 | BZ139: 0.00 | CA139: 0.00 | CB139: 0.00 | CC139: 0.00 | CD139: 0.00 | CE139: 0.00 | CF139: 0.00 | CG139: 0.00
G140: 0.58 | I140: Emballage | J140: =SUM(J214,J208,J202,J196,J190,J184,J178,J172,J166,J160,J154) -> 0.00 | K140: =+K214+K208+K202+K196+K190 -> 0.00 | L140: 0.00 | M140: 0.00 | N140: 0.00 | O140: 0.00 | P140: 0.00 | Q140: 0.00 | R140: 0.00 | S140: 0.00 | T140: 0.00 | U140: 0.00 | V140: 0.00 | W140: 0.00 | X140: 0.00 | Y140: 0.00 | Z140: 0.00 | AA140: 0.00 | AB140: 0.00 | AC140: 0.00 | AD140: 23,200.00 | AE140: 23,200.00 | AF140: 0.00 | AG140: 23,200.00 | AH140: 14,500.00 | AI140: 0.00 | AJ140: 0.00 | AK140: 0.00 | AL140: 0.00 | AM140: 0.00 | AN140: 0.00 | AO140: 0.00 | AP140: 0.00 | AQ140: 0.00 | AR140: 0.00 | AS140: 0.00 | AT140: 0.00 | AU140: 0.00 | AV140: 0.00 | AW140: 0.00 | AX140: 0.00 | AY140: 0.00 | AZ140: 0.00 | BA140: 0.00 | BB140: 0.00 | BC140: 0.00 | BD140: 0.00 | BE140: 0.00 | BF140: 0.00 | BG140: 0.00 | BH140: 0.00 | BI140: 0.00 | BJ140: 0.00 | BK140: 0.00 | BL140: 0.00 | BM140: 0.00 | BN140: 0.00 | BO140: 0.00 | BP140: 0.00 | BQ140: 0.00 | BR140: 0.00 | BS140: 0.00 | BT140: 0.00 | BU140: 0.00 | BV140: 0.00 | BW140: 0.00 | BX140: 0.00 | BY140: 0.00 | BZ140: 0.00 | CA140: 0.00 | CB140: 0.00 | CC140: 0.00 | CD140: 0.00 | CE140: 0.00 | CF140: 0.00 | CG140: 0.00
G141: 0.10 | I141: Envoi | J141: =SUM(J215,J209,J203,J197,J191,J185,J179,J173,J167,J161,J155) -> 0.00 | K141: =+K215+K209+K203+K197+K191 -> 0.00 | L141: 0.00 | M141: 0.00 | N141: 0.00 | O141: 0.00 | P141: 0.00 | Q141: 0.00 | R141: 0.00 | S141: 0.00 | T141: 0.00 | U141: 0.00 | V141: 0.00 | W141: 0.00 | X141: 0.00 | Y141: 0.00 | Z141: 0.00 | AA141: 0.00 | AB141: 0.00 | AC141: 0.00 | AD141: 4,000.00 | AE141: 4,000.00 | AF141: 0.00 | AG141: 4,000.00 | AH141: 2,500.00 | AI141: 0.00 | AJ141: 0.00 | AK141: 0.00 | AL141: 0.00 | AM141: 0.00 | AN141: 0.00 | AO141: 0.00 | AP141: 0.00 | AQ141: 0.00 | AR141: 0.00 | AS141: 0.00 | AT141: 0.00 | AU141: 0.00 | AV141: 0.00 | AW141: 0.00 | AX141: 0.00 | AY141: 0.00 | AZ141: 0.00 | BA141: 0.00 | BB141: 0.00 | BC141: 0.00 | BD141: 0.00 | BE141: 0.00 | BF141: 0.00 | BG141: 0.00 | BH141: 0.00 | BI141: 0.00 | BJ141: 0.00 | BK141: 0.00 | BL141: 0.00 | BM141: 0.00 | BN141: 0.00 | BO141: 0.00 | BP141: 0.00 | BQ141: 0.00 | BR141: 0.00 | BS141: 0.00 | BT141: 0.00 | BU141: 0.00 | BV141: 0.00 | BW141: 0.00 | BX141: =SUM(BX215,BX209,BX203,BX197,BX191,BX185,BX179,BX173,BX167,BX161,BX155) -> 0.00 | BY141: 0.00 | BZ141: 0.00 | CA141: 0.00 | CB141: 0.00 | CC141: 0.00 | CD141: 0.00 | CE141: 0.00 | CF141: 0.00 | CG141: 0.00
A142: 11
A143: =ROW(A143) -> 143 | B143: =+A143 -> 143 | J143: =+J$1 -> JANVIER | K143: =+K$1 -> JANVIER | L143: JANVIER | M143: FEVRIER | N143: FEVRIER | O143: FEVRIER | P143: MARS | Q143: MARS | R143: MARS | S143: AVRIL | T143: AVRIL | U143: AVRIL | V143: MAI | W143: MAI | X143: MAI | Y143: JUIN | Z143: JUIN | AA143: JUIN | AB143: JUILLET | AC143: JUILLET | AD143: JUILLET | AE143: AOUT | AF143: AOUT | AG143: AOUT | AH143: SEPTEMBRE | AI143: SEPTEMBRE | AJ143: SEPTEMBRE | AK143: OCTOBRE | AL143: OCTOBRE | AM143: OCTOBRE | AN143: NOVEMBRE | AO143: NOVEMBRE | AP143: NOVEMBRE | AQ143: DECEMBRE | AR143: DECEMBRE | AS143: DECEMBRE | AT143: JANVIER | AU143: JANVIER | AV143: JANVIER | AW143: FEVRIER | AX143: FEVRIER | AY143: FEVRIER | AZ143: MARS | BA143: MARS | BB143: MARS | BC143: AVRIL | BD143: AVRIL | BE143: AVRIL | BF143: MAI | BG143: MAI | BH143: MAI | BI143: JUIN | BJ143: JUIN | BK143: JUIN | BL143: JUILLET | BM143: JUILLET | BN143: JUILLET | BO143: AOUT | BP143: AOUT | BQ143: AOUT | BR143: SEPTEMBRE | BS143: SEPTEMBRE | BT143: SEPTEMBRE | BU143: OCTOBRE | BV143: OCTOBRE | BW143: =+BW$1 -> OCTOBRE | BX143: NOVEMBRE | BY143: NOVEMBRE | BZ143: NOVEMBRE | CA143: DECEMBRE | CB143: DECEMBRE | CC143: DECEMBRE | CD143: JANVIER | CE143: JANVIER | CF143: JANVIER | CG143: FEVRIER
C145: =+C151+1 -> 12 | D145: =C145+$A$121 -> 133 | E145: VENTE | F145: =+C133 -> 12.00 | G145: =+G133 -> 4.00 | H145: =ROW(H145) -> 145 | I145: =$A$103+C145 -> 115 | J145: =IF(J115=0,0,J115) -> 0.00 | K145: =IF(K115=0,0,K115) -> 0.00 | L145: 0.00 | M145: 0.00 | N145: 0.00 | O145: 0.00 | P145: 0.00 | Q145: 0.00 | R145: 0.00 | S145: 0.00 | T145: 0.00 | U145: 0.00 | V145: 0.00 | W145: 0.00 | X145: 0.00 | Y145: 0.00 | Z145: 0.00 | AA145: 0.00 | AB145: 0.00 | AC145: 0.00 | AD145: 0.00 | AE145: 0.00 | AF145: 0.00 | AG145: 0.00 | AH145: 0.00 | AI145: 0.00 | AJ145: 0.00 | AK145: 0.00 | AL145: 0.00 | AM145: 0.00 | AN145: 0.00 | AO145: 0.00 | AP145: 0.00 | AQ145: 0.00 | AR145: 0.00 | AS145: 0.00 | AT145: 0.00 | AU145: 0.00 | AV145: 0.00 | AW145: 0.00 | AX145: 0.00 | AY145: 0.00 | AZ145: 0.00 | BA145: 0.00 | BB145: 0.00 | BC145: 0.00 | BD145: 0.00 | BE145: 0.00 | BF145: 0.00 | BG145: 0.00 | BH145: 0.00 | BI145: 0.00 | BJ145: 0.00 | BK145: 0.00 | BL145: 0.00 | BM145: 0.00 | BN145: 0.00 | BO145: 0.00 | BP145: 0.00 | BQ145: 0.00 | BR145: 0.00 | BS145: 0.00 | BT145: 0.00 | BU145: 0.00 | BV145: 0.00 | BW145: =IF(BW115=0,0,BW115) -> 0.00 | BX145: 0.00 | BY145: 0.00 | BZ145: 0.00 | CA145: 0.00 | CB145: 0.00 | CC145: 0.00 | CD145: 0.00 | CE145: 0.00 | CF145: 0.00 | CG145: 0.00
E146: ACHAT | F146: =+F133 -> 0.00 | G146: =G145-G147-G148-G149 -> 2.55 | I146: =+I133 -> 1 | J146: =IF(P144=0,0,$F146*$G146) -> 0.00 | K146: =IF(K145=0,0,$F146*$G146) -> 0.00 | L146: 0.00 | M146: 0.00 | N146: 0.00 | O146: 0.00 | P146: 0.00 | Q146: 0.00 | R146: 0.00 | S146: 0.00 | T146: 0.00 | U146: 0.00 | V146: 0.00 | W146: 0.00 | X146: 0.00 | Y146: 0.00 | Z146: 0.00 | AA146: 0.00 | AB146: 0.00 | AC146: 0.00 | AD146: 0.00 | AE146: 0.00 | AF146: 0.00 | AG146: 0.00 | AH146: 0.00 | AI146: 0.00 | AJ146: 0.00 | AK146: 0.00 | AL146: 0.00 | AM146: 0.00 | AN146: 0.00 | AQ146: =IF(AQ145=0,0,$F146*$G146) -> 0.00 | AR146: 0.00 | AS146: 0.00 | AT146: 0.00 | AU146: 0.00 | AV146: 0.00 | AW146: 0.00 | AX146: 0.00 | AY146: 0.00 | AZ146: 0.00 | BA146: 0.00 | BB146: 0.00 | BC146: 0.00 | BD146: 0.00 | BE146: 0.00 | BF146: 0.00 | BG146: 0.00 | BH146: 0.00 | BI146: 0.00 | BJ146: 0.00 | BK146: 0.00 | BL146: 0.00 | BM146: 0.00 | BN146: 0.00 | BO146: 0.00 | BP146: 0.00 | BQ146: 0.00 | BR146: 0.00 | BS146: 0.00 | BT146: 0.00 | BU146: 0.00 | BV146: 0.00 | BW146: 0.00 | BX146: 0.00 | BY146: 0.00 | BZ146: 0.00 | CA146: 0.00 | CB146: 0.00 | CC146: 0.00 | CD146: 0.00 | CE146: 0.00 | CF146: 0.00 | CG146: 0.00
E147: Fabrication | F147: =+F146 -> 0.00 | G147: 0.77 | I147: =+I146 -> 1 | J147: 0.00 | K147: =IF(Q145=0,0,$F147*$G147) -> 0.00 | L147: =IF(R145=0,0,$F147*$G147) -> 0.00 | M147: =IF(S145=0,0,$F147*$G147) -> 0.00 | N147: =IF(T145=0,0,$F147*$G147) -> 0.00 | O147: =IF(U145=0,0,$F147*$G147) -> 0.00 | P147: =IF(V145=0,0,$F147*$G147) -> 0.00 | Q147: =IF(W145=0,0,$F147*$G147) -> 0.00 | R147: =IF(X145=0,0,$F147*$G147) -> 0.00 | S147: =IF(Y145=0,0,$F147*$G147) -> 0.00 | T147: =IF(Z145=0,0,$F147*$G147) -> 0.00 | U147: =IF(AA145=0,0,$F147*$G147) -> 0.00 | V147: =IF(AB145=0,0,$F147*$G147) -> 0.00 | W147: =IF(AC145=0,0,$F147*$G147) -> 0.00 | X147: =IF(AD145=0,0,$F147*$G147) -> 0.00 | Y147: =IF(AE145=0,0,$F147*$G147) -> 0.00 | Z147: =IF(AF145=0,0,$F147*$G147) -> 0.00 | AA147: =IF(AG145=0,0,$F147*$G147) -> 0.00 | AB147: =IF(AH145=0,0,$F147*$G147) -> 0.00 | AC147: =IF(AI145=0,0,$F147*$G147) -> 0.00 | AD147: =IF(AJ145=0,0,$F147*$G147) -> 0.00 | AE147: =IF(AK145=0,0,$F147*$G147) -> 0.00 | AF147: =IF(AL145=0,0,$F147*$G147) -> 0.00 | AG147: =IF(AM145=0,0,$F147*$G147) -> 0.00 | AH147: =IF(AN145=0,0,$F147*$G147) -> 0.00 | AI147: =IF(AO145=0,0,$F147*$G147) -> 0.00 | AJ147: =IF(AP145=0,0,$F147*$G147) -> 0.00 | AK147: =IF(AQ145=0,0,$F147*$G147) -> 0.00 | AL147: =IF(AR145=0,0,$F147*$G147) -> 0.00 | AM147: =IF(AS145=0,0,$F147*$G147) -> 0.00 | AN147: =IF(AT145=0,0,$F147*$G147) -> 0.00 | AQ147: =IF(AW145=0,0,$F147*$G147) -> 0.00 | AR147: =IF(AX145=0,0,$F147*$G147) -> 0.00 | AS147: =IF(AY145=0,0,$F147*$G147) -> 0.00 | AT147: =IF(AZ145=0,0,$F147*$G147) -> 0.00 | AU147: =IF(BA145=0,0,$F147*$G147) -> 0.00 | AV147: =IF(BB145=0,0,$F147*$G147) -> 0.00 | AW147: =IF(BC145=0,0,$F147*$G147) -> 0.00 | AX147: =IF(BD145=0,0,$F147*$G147) -> 0.00 | AY147: =IF(BE145=0,0,$F147*$G147) -> 0.00 | AZ147: =IF(BF145=0,0,$F147*$G147) -> 0.00 | BA147: =IF(BG145=0,0,$F147*$G147) -> 0.00 | BB147: =IF(BH145=0,0,$F147*$G147) -> 0.00 | BC147: =IF(BI145=0,0,$F147*$G147) -> 0.00 | BD147: =IF(BJ145=0,0,$F147*$G147) -> 0.00 | BE147: =IF(BK145=0,0,$F147*$G147) -> 0.00 | BF147: =IF(BL145=0,0,$F147*$G147) -> 0.00 | BG147: =IF(BM145=0,0,$F147*$G147) -> 0.00 | BH147: =IF(BN145=0,0,$F147*$G147) -> 0.00 | BI147: =IF(BO145=0,0,$F147*$G147) -> 0.00 | BJ147: =IF(BP145=0,0,$F147*$G147) -> 0.00 | BK147: =IF(BQ145=0,0,$F147*$G147) -> 0.00 | BL147: =IF(BR145=0,0,$F147*$G147) -> 0.00 | BM147: =IF(BS145=0,0,$F147*$G147) -> 0.00 | BN147: =IF(BT145=0,0,$F147*$G147) -> 0.00 | BO147: =IF(BU145=0,0,$F147*$G147) -> 0.00 | BP147: =IF(BV145=0,0,$F147*$G147) -> 0.00 | BQ147: =IF(BW145=0,0,$F147*$G147) -> 0.00 | BR147: =IF(BX145=0,0,$F147*$G147) -> 0.00 | BS147: =IF(BY145=0,0,$F147*$G147) -> 0.00 | BT147: =IF(BZ145=0,0,$F147*$G147) -> 0.00 | BU147: =IF(CA145=0,0,$F147*$G147) -> 0.00 | BV147: =IF(CB145=0,0,$F147*$G147) -> 0.00 | BW147: =IF(CC145=0,0,$F147*$G147) -> 0.00 | BX147: =IF(CD145=0,0,$F147*$G147) -> 0.00 | BY147: =IF(CE145=0,0,$F147*$G147) -> 0.00 | BZ147: =IF(CF145=0,0,$F147*$G147) -> 0.00 | CA147: =IF(CG145=0,0,$F147*$G147) -> 0.00 | CB147: =IF(CH145=0,0,$F147*$G147) -> 0.00 | CC147: =IF(CI145=0,0,$F147*$G147) -> 0.00 | CD147: =IF(CJ145=0,0,$F147*$G147) -> 0.00 | CE147: =IF(CK145=0,0,$F147*$G147) -> 0.00 | CF147: =IF(CL145=0,0,$F147*$G147) -> 0.00 | CG147: =IF(CM145=0,0,$F147*$G147) -> 0.00
E148: Emballage | F148: =+F147 -> 0.00 | G148: 0.58 | I148: =+I147 -> 1 | J148: =IF(P145=0,0,$F148*$G148) -> 0.00 | K148: =IF(Q145=0,0,$F148*$G148) -> 0.00 | L148: =IF(R145=0,0,$F148*$G148) -> 0.00 | M148: =IF(S145=0,0,$F148*$G148) -> 0.00 | N148: =IF(T145=0,0,$F148*$G148) -> 0.00 | O148: =IF(U145=0,0,$F148*$G148) -> 0.00 | P148: =IF(V145=0,0,$F148*$G148) -> 0.00 | Q148: =IF(W145=0,0,$F148*$G148) -> 0.00 | R148: =IF(X145=0,0,$F148*$G148) -> 0.00 | S148: =IF(Y145=0,0,$F148*$G148) -> 0.00 | T148: =IF(Z145=0,0,$F148*$G148) -> 0.00 | U148: =IF(AA145=0,0,$F148*$G148) -> 0.00 | V148: =IF(AB145=0,0,$F148*$G148) -> 0.00 | W148: =IF(AC145=0,0,$F148*$G148) -> 0.00 | X148: =IF(AD145=0,0,$F148*$G148) -> 0.00 | Y148: =IF(AE145=0,0,$F148*$G148) -> 0.00 | Z148: =IF(AF145=0,0,$F148*$G148) -> 0.00 | AA148: =IF(AG145=0,0,$F148*$G148) -> 0.00 | AB148: =IF(AH145=0,0,$F148*$G148) -> 0.00 | AC148: =IF(AI145=0,0,$F148*$G148) -> 0.00 | AD148: =IF(AJ145=0,0,$F148*$G148) -> 0.00 | AE148: =IF(AK145=0,0,$F148*$G148) -> 0.00 | AF148: =IF(AL145=0,0,$F148*$G148) -> 0.00 | AG148: =IF(AM145=0,0,$F148*$G148) -> 0.00 | AH148: =IF(AN145=0,0,$F148*$G148) -> 0.00 | AI148: =IF(AO145=0,0,$F148*$G148) -> 0.00 | AJ148: =IF(AP145=0,0,$F148*$G148) -> 0.00 | AK148: =IF(AQ145=0,0,$F148*$G148) -> 0.00 | AL148: =IF(AR145=0,0,$F148*$G148) -> 0.00 | AM148: =IF(AS145=0,0,$F148*$G148) -> 0.00 | AN148: =IF(AT145=0,0,$F148*$G148) -> 0.00 | AQ148: =IF(AW145=0,0,$F148*$G148) -> 0.00 | AR148: =IF(AX145=0,0,$F148*$G148) -> 0.00 | AS148: =IF(AY145=0,0,$F148*$G148) -> 0.00 | AT148: =IF(AZ145=0,0,$F148*$G148) -> 0.00 | AU148: =IF(BA145=0,0,$F148*$G148) -> 0.00 | AV148: =IF(BB145=0,0,$F148*$G148) -> 0.00 | AW148: =IF(BC145=0,0,$F148*$G148) -> 0.00 | AX148: =IF(BD145=0,0,$F148*$G148) -> 0.00 | AY148: =IF(BE145=0,0,$F148*$G148) -> 0.00 | AZ148: =IF(BF145=0,0,$F148*$G148) -> 0.00 | BA148: =IF(BG145=0,0,$F148*$G148) -> 0.00 | BB148: =IF(BH145=0,0,$F148*$G148) -> 0.00 | BC148: =IF(BI145=0,0,$F148*$G148) -> 0.00 | BD148: =IF(BJ145=0,0,$F148*$G148) -> 0.00 | BE148: =IF(BK145=0,0,$F148*$G148) -> 0.00 | BF148: =IF(BL145=0,0,$F148*$G148) -> 0.00 | BG148: =IF(BM145=0,0,$F148*$G148) -> 0.00 | BH148: =IF(BN145=0,0,$F148*$G148) -> 0.00 | BI148: =IF(BO145=0,0,$F148*$G148) -> 0.00 | BJ148: =IF(BP145=0,0,$F148*$G148) -> 0.00 | BK148: =IF(BQ145=0,0,$F148*$G148) -> 0.00 | BL148: =IF(BR145=0,0,$F148*$G148) -> 0.00 | BM148: =IF(BS145=0,0,$F148*$G148) -> 0.00 | BN148: =IF(BT145=0,0,$F148*$G148) -> 0.00 | BO148: =IF(BU145=0,0,$F148*$G148) -> 0.00 | BP148: =IF(BV145=0,0,$F148*$G148) -> 0.00 | BQ148: =IF(BW145=0,0,$F148*$G148) -> 0.00 | BR148: =IF(BX145=0,0,$F148*$G148) -> 0.00 | BS148: =IF(BY145=0,0,$F148*$G148) -> 0.00 | BT148: =IF(BZ145=0,0,$F148*$G148) -> 0.00 | BU148: =IF(CA145=0,0,$F148*$G148) -> 0.00 | BV148: =IF(CB145=0,0,$F148*$G148) -> 0.00 | BW148: =IF(CC145=0,0,$F148*$G148) -> 0.00 | BX148: =IF(CD145=0,0,$F148*$G148) -> 0.00 | BY148: =IF(CE145=0,0,$F148*$G148) -> 0.00 | BZ148: =IF(CF145=0,0,$F148*$G148) -> 0.00 | CA148: =IF(CG145=0,0,$F148*$G148) -> 0.00 | CB148: =IF(CH145=0,0,$F148*$G148) -> 0.00 | CC148: =IF(CI145=0,0,$F148*$G148) -> 0.00 | CD148: =IF(CJ145=0,0,$F148*$G148) -> 0.00 | CE148: =IF(CK145=0,0,$F148*$G148) -> 0.00 | CF148: =IF(CL145=0,0,$F148*$G148) -> 0.00 | CG148: =IF(CM145=0,0,$F148*$G148) -> 0.00
E149: Envoi | F149: 0.00 | G149: 0.10 | I149: =+I148 -> 1 | J149: =IF(P145=0,0,$F149*$G149) -> 0.00 | K149: =IF(Q145=0,0,$F149*$G149) -> 0.00 | L149: =IF(R145=0,0,$F149*$G149) -> 0.00 | M149: =IF(S145=0,0,$F149*$G149) -> 0.00 | N149: =IF(T145=0,0,$F149*$G149) -> 0.00 | O149: =IF(U145=0,0,$F149*$G149) -> 0.00 | P149: =IF(V145=0,0,$F149*$G149) -> 0.00 | Q149: =IF(W145=0,0,$F149*$G149) -> 0.00 | R149: =IF(X145=0,0,$F149*$G149) -> 0.00 | S149: =IF(Y145=0,0,$F149*$G149) -> 0.00 | T149: =IF(Z145=0,0,$F149*$G149) -> 0.00 | U149: =IF(AA145=0,0,$F149*$G149) -> 0.00 | V149: =IF(AB145=0,0,$F149*$G149) -> 0.00 | W149: =IF(AC145=0,0,$F149*$G149) -> 0.00 | X149: =IF(AD145=0,0,$F149*$G149) -> 0.00 | Y149: =IF(AE145=0,0,$F149*$G149) -> 0.00 | Z149: =IF(AF145=0,0,$F149*$G149) -> 0.00 | AA149: =IF(AG145=0,0,$F149*$G149) -> 0.00 | AB149: =IF(AH145=0,0,$F149*$G149) -> 0.00 | AC149: =IF(AI145=0,0,$F149*$G149) -> 0.00 | AD149: =IF(AJ145=0,0,$F149*$G149) -> 0.00 | AE149: =IF(AK145=0,0,$F149*$G149) -> 0.00 | AF149: =IF(AL145=0,0,$F149*$G149) -> 0.00 | AG149: =IF(AM145=0,0,$F149*$G149) -> 0.00 | AH149: =IF(AN145=0,0,$F149*$G149) -> 0.00 | AI149: =IF(AO145=0,0,$F149*$G149) -> 0.00 | AJ149: =IF(AP145=0,0,$F149*$G149) -> 0.00 | AK149: =IF(AQ145=0,0,$F149*$G149) -> 0.00 | AL149: =IF(AR145=0,0,$F149*$G149) -> 0.00 | AM149: =IF(AS145=0,0,$F149*$G149) -> 0.00 | AN149: =IF(AT145=0,0,$F149*$G149) -> 0.00 | AQ149: =IF(AW145=0,0,$F149*$G149) -> 0.00 | AR149: =IF(AX145=0,0,$F149*$G149) -> 0.00 | AS149: =IF(AY145=0,0,$F149*$G149) -> 0.00 | AT149: =IF(AZ145=0,0,$F149*$G149) -> 0.00 | AU149: =IF(BA145=0,0,$F149*$G149) -> 0.00 | AV149: =IF(BB145=0,0,$F149*$G149) -> 0.00 | AW149: =IF(BC145=0,0,$F149*$G149) -> 0.00 | AX149: =IF(BD145=0,0,$F149*$G149) -> 0.00 | AY149: =IF(BE145=0,0,$F149*$G149) -> 0.00 | AZ149: =IF(BF145=0,0,$F149*$G149) -> 0.00 | BA149: =IF(BG145=0,0,$F149*$G149) -> 0.00 | BB149: =IF(BH145=0,0,$F149*$G149) -> 0.00 | BC149: =IF(BI145=0,0,$F149*$G149) -> 0.00 | BD149: =IF(BJ145=0,0,$F149*$G149) -> 0.00 | BE149: =IF(BK145=0,0,$F149*$G149) -> 0.00 | BF149: =IF(BL145=0,0,$F149*$G149) -> 0.00 | BG149: =IF(BM145=0,0,$F149*$G149) -> 0.00 | BH149: =IF(BN145=0,0,$F149*$G149) -> 0.00 | BI149: =IF(BO145=0,0,$F149*$G149) -> 0.00 | BJ149: =IF(BP145=0,0,$F149*$G149) -> 0.00 | BK149: =IF(BQ145=0,0,$F149*$G149) -> 0.00 | BL149: =IF(BR145=0,0,$F149*$G149) -> 0.00 | BM149: =IF(BS145=0,0,$F149*$G149) -> 0.00 | BN149: =IF(BT145=0,0,$F149*$G149) -> 0.00 | BO149: =IF(BU145=0,0,$F149*$G149) -> 0.00 | BP149: =IF(BV145=0,0,$F149*$G149) -> 0.00 | BQ149: =IF(BW145=0,0,$F149*$G149) -> 0.00 | BR149: =IF(BX145=0,0,$F149*$G149) -> 0.00 | BS149: =IF(BY145=0,0,$F149*$G149) -> 0.00 | BT149: =IF(BZ145=0,0,$F149*$G149) -> 0.00 | BU149: =IF(CA145=0,0,$F149*$G149) -> 0.00 | BV149: =IF(CB145=0,0,$F149*$G149) -> 0.00 | BW149: =IF(CC145=0,0,$F149*$G149) -> 0.00 | BX149: =IF(CD145=0,0,$F149*$G149) -> 0.00 | BY149: =IF(CE145=0,0,$F149*$G149) -> 0.00 | BZ149: =IF(CF145=0,0,$F149*$G149) -> 0.00 | CA149: =IF(CG145=0,0,$F149*$G149) -> 0.00 | CB149: =IF(CH145=0,0,$F149*$G149) -> 0.00 | CC149: =IF(CI145=0,0,$F149*$G149) -> 0.00 | CD149: =IF(CJ145=0,0,$F149*$G149) -> 0.00 | CE149: =IF(CK145=0,0,$F149*$G149) -> 0.00 | CF149: =IF(CL145=0,0,$F149*$G149) -> 0.00 | CG149: =IF(CM145=0,0,$F149*$G149) -> 0.00
C151: =+C157+1 -> 11 | D151: =C151+$A$121 -> 132 | E151: VENTE | F151: =+C132 -> 11.00 | G151: =+G132 -> 4.00 | H151: =ROW(H151) -> 151 | I151: =$A$103+C151 -> 114 | J151: =IF(J114=0,0,J114) -> 0.00 | K151: =IF(K114=0,0,K114) -> 0.00 | L151: 0.00 | M151: 0.00 | N151: 0.00 | O151: 0.00 | P151: 0.00 | Q151: 0.00 | R151: 0.00 | S151: 0.00 | T151: 0.00 | U151: 0.00 | V151: 0.00 | W151: 0.00 | X151: 0.00 | Y151: 0.00 | Z151: 0.00 | AA151: 0.00 | AB151: 0.00 | AC151: 0.00 | AD151: 0.00 | AE151: 0.00 | AF151: 0.00 | AG151: 0.00 | AH151: 0.00 | AI151: 0.00 | AJ151: 0.00 | AK151: 0.00 | AL151: 0.00 | AM151: 0.00 | AN151: 0.00 | AO151: 0.00 | AP151: 0.00 | AQ151: 0.00 | AR151: 0.00 | AS151: 0.00 | AT151: 0.00 | AU151: 0.00 | AV151: 0.00 | AW151: 0.00 | AX151: 0.00 | AY151: 0.00 | AZ151: 0.00 | BA151: 0.00 | BB151: 0.00 | BC151: 0.00 | BD151: 0.00 | BE151: 0.00 | BF151: 0.00 | BG151: 0.00 | BH151: 0.00 | BI151: 0.00 | BJ151: 0.00 | BK151: 0.00 | BL151: 0.00 | BM151: 0.00 | BN151: 0.00 | BO151: 0.00 | BP151: 0.00 | BQ151: 0.00 | BR151: 0.00 | BS151: 0.00 | BT151: 0.00 | BU151: 0.00 | BV151: 0.00 | BW151: =IF(BW114=0,0,BW114) -> 0.00 | BX151: 0.00 | BY151: 0.00 | BZ151: 0.00 | CA151: 0.00 | CB151: 0.00 | CC151: 0.00 | CD151: 0.00 | CE151: 0.00 | CF151: 0.00 | CG151: 0.00
E152: ACHAT | F152: =+F132 -> 0.00 | G152: =G151-G153-G154-G155 -> 2.55 | I152: =+I132 -> 1 | J152: =IF(P150=0,0,$F152*$G152) -> 0.00 | K152: =IF(K151=0,0,$F152*$G152) -> 0.00 | L152: 0.00 | M152: 0.00 | N152: 0.00 | O152: 0.00 | P152: 0.00 | Q152: 0.00 | R152: 0.00 | S152: 0.00 | T152: 0.00 | U152: 0.00 | V152: 0.00 | W152: 0.00 | X152: 0.00 | Y152: 0.00 | Z152: 0.00 | AA152: 0.00 | AB152: 0.00 | AC152: 0.00 | AD152: 0.00 | AE152: 0.00 | AF152: 0.00 | AG152: 0.00 | AH152: 0.00 | AI152: 0.00 | AJ152: 0.00 | AK152: 0.00 | AL152: 0.00 | AM152: 0.00 | AN152: 0.00 | AQ152: =IF(AQ151=0,0,$F152*$G152) -> 0.00 | AR152: 0.00 | AS152: 0.00 | AT152: 0.00 | AU152: 0.00 | AV152: 0.00 | AW152: 0.00 | AX152: 0.00 | AY152: 0.00 | AZ152: 0.00 | BA152: 0.00 | BB152: 0.00 | BC152: 0.00 | BD152: 0.00 | BE152: 0.00 | BF152: 0.00 | BG152: 0.00 | BH152: 0.00 | BI152: 0.00 | BJ152: 0.00 | BK152: 0.00 | BL152: 0.00 | BM152: 0.00 | BN152: 0.00 | BO152: 0.00 | BP152: 0.00 | BQ152: 0.00 | BR152: 0.00 | BS152: 0.00 | BT152: 0.00 | BU152: 0.00 | BV152: 0.00 | BW152: 0.00 | BX152: 0.00 | BY152: 0.00 | BZ152: 0.00 | CA152: 0.00 | CB152: 0.00 | CC152: 0.00 | CD152: 0.00 | CE152: 0.00 | CF152: 0.00 | CG152: 0.00
E153: Fabrication | F153: =+F152 -> 0.00 | G153: 0.77 | I153: =+I152 -> 1 | J153: 0.00 | K153: =IF(Q151=0,0,$F153*$G153) -> 0.00 | L153: =IF(R151=0,0,$F153*$G153) -> 0.00 | M153: =IF(S151=0,0,$F153*$G153) -> 0.00 | N153: =IF(T151=0,0,$F153*$G153) -> 0.00 | O153: =IF(U151=0,0,$F153*$G153) -> 0.00 | P153: =IF(V151=0,0,$F153*$G153) -> 0.00 | Q153: =IF(W151=0,0,$F153*$G153) -> 0.00 | R153: =IF(X151=0,0,$F153*$G153) -> 0.00 | S153: =IF(Y151=0,0,$F153*$G153) -> 0.00 | T153: =IF(Z151=0,0,$F153*$G153) -> 0.00 | U153: =IF(AA151=0,0,$F153*$G153) -> 0.00 | V153: =IF(AB151=0,0,$F153*$G153) -> 0.00 | W153: =IF(AC151=0,0,$F153*$G153) -> 0.00 | X153: =IF(AD151=0,0,$F153*$G153) -> 0.00 | Y153: =IF(AE151=0,0,$F153*$G153) -> 0.00 | Z153: =IF(AF151=0,0,$F153*$G153) -> 0.00 | AA153: =IF(AG151=0,0,$F153*$G153) -> 0.00 | AB153: =IF(AH151=0,0,$F153*$G153) -> 0.00 | AC153: =IF(AI151=0,0,$F153*$G153) -> 0.00 | AD153: =IF(AJ151=0,0,$F153*$G153) -> 0.00 | AE153: =IF(AK151=0,0,$F153*$G153) -> 0.00 | AF153: =IF(AL151=0,0,$F153*$G153) -> 0.00 | AG153: =IF(AM151=0,0,$F153*$G153) -> 0.00 | AH153: =IF(AN151=0,0,$F153*$G153) -> 0.00 | AI153: =IF(AO151=0,0,$F153*$G153) -> 0.00 | AJ153: =IF(AP151=0,0,$F153*$G153) -> 0.00 | AK153: =IF(AQ151=0,0,$F153*$G153) -> 0.00 | AL153: =IF(AR151=0,0,$F153*$G153) -> 0.00 | AM153: =IF(AS151=0,0,$F153*$G153) -> 0.00 | AN153: =IF(AT151=0,0,$F153*$G153) -> 0.00 | AQ153: =IF(AW151=0,0,$F153*$G153) -> 0.00 | AR153: =IF(AX151=0,0,$F153*$G153) -> 0.00 | AS153: =IF(AY151=0,0,$F153*$G153) -> 0.00 | AT153: =IF(AZ151=0,0,$F153*$G153) -> 0.00 | AU153: =IF(BA151=0,0,$F153*$G153) -> 0.00 | AV153: =IF(BB151=0,0,$F153*$G153) -> 0.00 | AW153: =IF(BC151=0,0,$F153*$G153) -> 0.00 | AX153: =IF(BD151=0,0,$F153*$G153) -> 0.00 | AY153: =IF(BE151=0,0,$F153*$G153) -> 0.00 | AZ153: =IF(BF151=0,0,$F153*$G153) -> 0.00 | BA153: =IF(BG151=0,0,$F153*$G153) -> 0.00 | BB153: =IF(BH151=0,0,$F153*$G153) -> 0.00 | BC153: =IF(BI151=0,0,$F153*$G153) -> 0.00 | BD153: =IF(BJ151=0,0,$F153*$G153) -> 0.00 | BE153: =IF(BK151=0,0,$F153*$G153) -> 0.00 | BF153: =IF(BL151=0,0,$F153*$G153) -> 0.00 | BG153: =IF(BM151=0,0,$F153*$G153) -> 0.00 | BH153: =IF(BN151=0,0,$F153*$G153) -> 0.00 | BI153: =IF(BO151=0,0,$F153*$G153) -> 0.00 | BJ153: =IF(BP151=0,0,$F153*$G153) -> 0.00 | BK153: =IF(BQ151=0,0,$F153*$G153) -> 0.00 | BL153: =IF(BR151=0,0,$F153*$G153) -> 0.00 | BM153: =IF(BS151=0,0,$F153*$G153) -> 0.00 | BN153: =IF(BT151=0,0,$F153*$G153) -> 0.00 | BO153: =IF(BU151=0,0,$F153*$G153) -> 0.00 | BP153: =IF(BV151=0,0,$F153*$G153) -> 0.00 | BQ153: =IF(BW151=0,0,$F153*$G153) -> 0.00 | BR153: =IF(BX151=0,0,$F153*$G153) -> 0.00 | BS153: =IF(BY151=0,0,$F153*$G153) -> 0.00 | BT153: =IF(BZ151=0,0,$F153*$G153) -> 0.00 | BU153: =IF(CA151=0,0,$F153*$G153) -> 0.00 | BV153: =IF(CB151=0,0,$F153*$G153) -> 0.00 | BW153: =IF(CC151=0,0,$F153*$G153) -> 0.00 | BX153: =IF(CD151=0,0,$F153*$G153) -> 0.00 | BY153: =IF(CE151=0,0,$F153*$G153) -> 0.00 | BZ153: =IF(CF151=0,0,$F153*$G153) -> 0.00 | CA153: =IF(CG151=0,0,$F153*$G153) -> 0.00 | CB153: =IF(CH151=0,0,$F153*$G153) -> 0.00 | CC153: =IF(CI151=0,0,$F153*$G153) -> 0.00 | CD153: =IF(CJ151=0,0,$F153*$G153) -> 0.00 | CE153: =IF(CK151=0,0,$F153*$G153) -> 0.00 | CF153: =IF(CL151=0,0,$F153*$G153) -> 0.00 | CG153: =IF(CM151=0,0,$F153*$G153) -> 0.00
E154: Emballage | F154: =+F153 -> 0.00 | G154: 0.58 | I154: =+I153 -> 1 | J154: =IF(P151=0,0,$F154*$G154) -> 0.00 | K154: =IF(Q151=0,0,$F154*$G154) -> 0.00 | L154: =IF(R151=0,0,$F154*$G154) -> 0.00 | M154: =IF(S151=0,0,$F154*$G154) -> 0.00 | N154: =IF(T151=0,0,$F154*$G154) -> 0.00 | O154: =IF(U151=0,0,$F154*$G154) -> 0.00 | P154: =IF(V151=0,0,$F154*$G154) -> 0.00 | Q154: =IF(W151=0,0,$F154*$G154) -> 0.00 | R154: =IF(X151=0,0,$F154*$G154) -> 0.00 | S154: =IF(Y151=0,0,$F154*$G154) -> 0.00 | T154: =IF(Z151=0,0,$F154*$G154) -> 0.00 | U154: =IF(AA151=0,0,$F154*$G154) -> 0.00 | V154: =IF(AB151=0,0,$F154*$G154) -> 0.00 | W154: =IF(AC151=0,0,$F154*$G154) -> 0.00 | X154: =IF(AD151=0,0,$F154*$G154) -> 0.00 | Y154: =IF(AE151=0,0,$F154*$G154) -> 0.00 | Z154: =IF(AF151=0,0,$F154*$G154) -> 0.00 | AA154: =IF(AG151=0,0,$F154*$G154) -> 0.00 | AB154: =IF(AH151=0,0,$F154*$G154) -> 0.00 | AC154: =IF(AI151=0,0,$F154*$G154) -> 0.00 | AD154: =IF(AJ151=0,0,$F154*$G154) -> 0.00 | AE154: =IF(AK151=0,0,$F154*$G154) -> 0.00 | AF154: =IF(AL151=0,0,$F154*$G154) -> 0.00 | AG154: =IF(AM151=0,0,$F154*$G154) -> 0.00 | AH154: =IF(AN151=0,0,$F154*$G154) -> 0.00 | AI154: =IF(AO151=0,0,$F154*$G154) -> 0.00 | AJ154: =IF(AP151=0,0,$F154*$G154) -> 0.00 | AK154: =IF(AQ151=0,0,$F154*$G154) -> 0.00 | AL154: =IF(AR151=0,0,$F154*$G154) -> 0.00 | AM154: =IF(AS151=0,0,$F154*$G154) -> 0.00 | AN154: =IF(AT151=0,0,$F154*$G154) -> 0.00 | AQ154: =IF(AW151=0,0,$F154*$G154) -> 0.00 | AR154: =IF(AX151=0,0,$F154*$G154) -> 0.00 | AS154: =IF(AY151=0,0,$F154*$G154) -> 0.00 | AT154: =IF(AZ151=0,0,$F154*$G154) -> 0.00 | AU154: =IF(BA151=0,0,$F154*$G154) -> 0.00 | AV154: =IF(BB151=0,0,$F154*$G154) -> 0.00 | AW154: =IF(BC151=0,0,$F154*$G154) -> 0.00 | AX154: =IF(BD151=0,0,$F154*$G154) -> 0.00 | AY154: =IF(BE151=0,0,$F154*$G154) -> 0.00 | AZ154: =IF(BF151=0,0,$F154*$G154) -> 0.00 | BA154: =IF(BG151=0,0,$F154*$G154) -> 0.00 | BB154: =IF(BH151=0,0,$F154*$G154) -> 0.00 | BC154: =IF(BI151=0,0,$F154*$G154) -> 0.00 | BD154: =IF(BJ151=0,0,$F154*$G154) -> 0.00 | BE154: =IF(BK151=0,0,$F154*$G154) -> 0.00 | BF154: =IF(BL151=0,0,$F154*$G154) -> 0.00 | BG154: =IF(BM151=0,0,$F154*$G154) -> 0.00 | BH154: =IF(BN151=0,0,$F154*$G154) -> 0.00 | BI154: =IF(BO151=0,0,$F154*$G154) -> 0.00 | BJ154: =IF(BP151=0,0,$F154*$G154) -> 0.00 | BK154: =IF(BQ151=0,0,$F154*$G154) -> 0.00 | BL154: =IF(BR151=0,0,$F154*$G154) -> 0.00 | BM154: =IF(BS151=0,0,$F154*$G154) -> 0.00 | BN154: =IF(BT151=0,0,$F154*$G154) -> 0.00 | BO154: =IF(BU151=0,0,$F154*$G154) -> 0.00 | BP154: =IF(BV151=0,0,$F154*$G154) -> 0.00 | BQ154: =IF(BW151=0,0,$F154*$G154) -> 0.00 | BR154: =IF(BX151=0,0,$F154*$G154) -> 0.00 | BS154: =IF(BY151=0,0,$F154*$G154) -> 0.00 | BT154: =IF(BZ151=0,0,$F154*$G154) -> 0.00 | BU154: =IF(CA151=0,0,$F154*$G154) -> 0.00 | BV154: =IF(CB151=0,0,$F154*$G154) -> 0.00 | BW154: =IF(CC151=0,0,$F154*$G154) -> 0.00 | BX154: =IF(CD151=0,0,$F154*$G154) -> 0.00 | BY154: =IF(CE151=0,0,$F154*$G154) -> 0.00 | BZ154: =IF(CF151=0,0,$F154*$G154) -> 0.00 | CA154: =IF(CG151=0,0,$F154*$G154) -> 0.00 | CB154: =IF(CH151=0,0,$F154*$G154) -> 0.00 | CC154: =IF(CI151=0,0,$F154*$G154) -> 0.00 | CD154: =IF(CJ151=0,0,$F154*$G154) -> 0.00 | CE154: =IF(CK151=0,0,$F154*$G154) -> 0.00 | CF154: =IF(CL151=0,0,$F154*$G154) -> 0.00 | CG154: =IF(CM151=0,0,$F154*$G154) -> 0.00
E155: Envoi | F155: 0.00 | G155: 0.10 | I155: =+I154 -> 1 | J155: =IF(P151=0,0,$F155*$G155) -> 0.00 | K155: =IF(Q151=0,0,$F155*$G155) -> 0.00 | L155: =IF(R151=0,0,$F155*$G155) -> 0.00 | M155: =IF(S151=0,0,$F155*$G155) -> 0.00 | N155: =IF(T151=0,0,$F155*$G155) -> 0.00 | O155: =IF(U151=0,0,$F155*$G155) -> 0.00 | P155: =IF(V151=0,0,$F155*$G155) -> 0.00 | Q155: =IF(W151=0,0,$F155*$G155) -> 0.00 | R155: =IF(X151=0,0,$F155*$G155) -> 0.00 | S155: =IF(Y151=0,0,$F155*$G155) -> 0.00 | T155: =IF(Z151=0,0,$F155*$G155) -> 0.00 | U155: =IF(AA151=0,0,$F155*$G155) -> 0.00 | V155: =IF(AB151=0,0,$F155*$G155) -> 0.00 | W155: =IF(AC151=0,0,$F155*$G155) -> 0.00 | X155: =IF(AD151=0,0,$F155*$G155) -> 0.00 | Y155: =IF(AE151=0,0,$F155*$G155) -> 0.00 | Z155: =IF(AF151=0,0,$F155*$G155) -> 0.00 | AA155: =IF(AG151=0,0,$F155*$G155) -> 0.00 | AB155: =IF(AH151=0,0,$F155*$G155) -> 0.00 | AC155: =IF(AI151=0,0,$F155*$G155) -> 0.00 | AD155: =IF(AJ151=0,0,$F155*$G155) -> 0.00 | AE155: =IF(AK151=0,0,$F155*$G155) -> 0.00 | AF155: =IF(AL151=0,0,$F155*$G155) -> 0.00 | AG155: =IF(AM151=0,0,$F155*$G155) -> 0.00 | AH155: =IF(AN151=0,0,$F155*$G155) -> 0.00 | AI155: =IF(AO151=0,0,$F155*$G155) -> 0.00 | AJ155: =IF(AP151=0,0,$F155*$G155) -> 0.00 | AK155: =IF(AQ151=0,0,$F155*$G155) -> 0.00 | AL155: =IF(AR151=0,0,$F155*$G155) -> 0.00 | AM155: =IF(AS151=0,0,$F155*$G155) -> 0.00 | AN155: =IF(AT151=0,0,$F155*$G155) -> 0.00 | AQ155: =IF(AW151=0,0,$F155*$G155) -> 0.00 | AR155: =IF(AX151=0,0,$F155*$G155) -> 0.00 | AS155: =IF(AY151=0,0,$F155*$G155) -> 0.00 | AT155: =IF(AZ151=0,0,$F155*$G155) -> 0.00 | AU155: =IF(BA151=0,0,$F155*$G155) -> 0.00 | AV155: =IF(BB151=0,0,$F155*$G155) -> 0.00 | AW155: =IF(BC151=0,0,$F155*$G155) -> 0.00 | AX155: =IF(BD151=0,0,$F155*$G155) -> 0.00 | AY155: =IF(BE151=0,0,$F155*$G155) -> 0.00 | AZ155: =IF(BF151=0,0,$F155*$G155) -> 0.00 | BA155: =IF(BG151=0,0,$F155*$G155) -> 0.00 | BB155: =IF(BH151=0,0,$F155*$G155) -> 0.00 | BC155: =IF(BI151=0,0,$F155*$G155) -> 0.00 | BD155: =IF(BJ151=0,0,$F155*$G155) -> 0.00 | BE155: =IF(BK151=0,0,$F155*$G155) -> 0.00 | BF155: =IF(BL151=0,0,$F155*$G155) -> 0.00 | BG155: =IF(BM151=0,0,$F155*$G155) -> 0.00 | BH155: =IF(BN151=0,0,$F155*$G155) -> 0.00 | BI155: =IF(BO151=0,0,$F155*$G155) -> 0.00 | BJ155: =IF(BP151=0,0,$F155*$G155) -> 0.00 | BK155: =IF(BQ151=0,0,$F155*$G155) -> 0.00 | BL155: =IF(BR151=0,0,$F155*$G155) -> 0.00 | BM155: =IF(BS151=0,0,$F155*$G155) -> 0.00 | BN155: =IF(BT151=0,0,$F155*$G155) -> 0.00 | BO155: =IF(BU151=0,0,$F155*$G155) -> 0.00 | BP155: =IF(BV151=0,0,$F155*$G155) -> 0.00 | BQ155: =IF(BW151=0,0,$F155*$G155) -> 0.00 | BR155: =IF(BX151=0,0,$F155*$G155) -> 0.00 | BS155: =IF(BY151=0,0,$F155*$G155) -> 0.00 | BT155: =IF(BZ151=0,0,$F155*$G155) -> 0.00 | BU155: =IF(CA151=0,0,$F155*$G155) -> 0.00 | BV155: =IF(CB151=0,0,$F155*$G155) -> 0.00 | BW155: =IF(CC151=0,0,$F155*$G155) -> 0.00 | BX155: =IF(CD151=0,0,$F155*$G155) -> 0.00 | BY155: =IF(CE151=0,0,$F155*$G155) -> 0.00 | BZ155: =IF(CF151=0,0,$F155*$G155) -> 0.00 | CA155: =IF(CG151=0,0,$F155*$G155) -> 0.00 | CB155: =IF(CH151=0,0,$F155*$G155) -> 0.00 | CC155: =IF(CI151=0,0,$F155*$G155) -> 0.00 | CD155: =IF(CJ151=0,0,$F155*$G155) -> 0.00 | CE155: =IF(CK151=0,0,$F155*$G155) -> 0.00 | CF155: =IF(CL151=0,0,$F155*$G155) -> 0.00 | CG155: =IF(CM151=0,0,$F155*$G155) -> 0.00
C157: =+C163+1 -> 10 | D157: =C157+$A$121 -> 131 | E157: VENTE | F157: =+C131 -> 10.00 | G157: =+G131 -> 4.00 | H157: =ROW(H157) -> 157 | I157: =$A$103+C157 -> 113 | J157: =IF(J113=0,0,J113) -> 0.00 | K157: =IF(K113=0,0,K113) -> 0.00 | L157: 0.00 | M157: 0.00 | N157: 0.00 | O157: 0.00 | P157: 0.00 | Q157: 0.00 | R157: 0.00 | S157: 0.00 | T157: 0.00 | U157: 0.00 | V157: 0.00 | W157: 0.00 | X157: 0.00 | Y157: 0.00 | Z157: 0.00 | AA157: 0.00 | AB157: 0.00 | AC157: 0.00 | AD157: 0.00 | AE157: 0.00 | AF157: 0.00 | AG157: 0.00 | AH157: 0.00 | AI157: 0.00 | AJ157: 0.00 | AK157: 0.00 | AL157: 0.00 | AM157: 0.00 | AN157: 0.00 | AO157: 0.00 | AP157: 0.00 | AQ157: 0.00 | AR157: 0.00 | AS157: 0.00 | AT157: 0.00 | AU157: 0.00 | AV157: 0.00 | AW157: 0.00 | AX157: 0.00 | AY157: 0.00 | AZ157: 0.00 | BA157: 0.00 | BB157: 0.00 | BC157: 0.00 | BD157: 0.00 | BE157: 0.00 | BF157: 0.00 | BG157: 0.00 | BH157: 0.00 | BI157: 0.00 | BJ157: 0.00 | BK157: 0.00 | BL157: 0.00 | BM157: 0.00 | BN157: 0.00 | BO157: 0.00 | BP157: 0.00 | BQ157: 0.00 | BR157: 0.00 | BS157: 0.00 | BT157: 0.00 | BU157: 0.00 | BV157: 0.00 | BW157: =IF(BW113=0,0,BW113) -> 0.00 | BX157: 0.00 | BY157: 0.00 | BZ157: 0.00 | CA157: 0.00 | CB157: 0.00 | CC157: 0.00 | CD157: 0.00 | CE157: 0.00 | CF157: 0.00 | CG157: 0.00
E158: ACHAT | F158: =+F131 -> 0.00 | G158: =G157-G159-G160-G161 -> 2.55 | I158: =+I131 -> 1 | J158: =IF(J157=0,0,$F158*$G158) -> 0.00 | K158: 0.00 | L158: 0.00 | M158: 0.00 | N158: 0.00 | O158: 0.00 | P158: 0.00 | Q158: 0.00 | R158: 0.00 | S158: 0.00 | T158: 0.00 | U158: 0.00 | V158: 0.00 | W158: 0.00 | X158: 0.00 | Y158: 0.00 | Z158: 0.00 | AA158: 0.00 | AB158: 0.00 | AC158: 0.00 | AD158: 0.00 | AE158: 0.00 | AF158: 0.00 | AG158: 0.00 | AH158: 0.00 | AI158: 0.00 | AJ158: 0.00 | AK158: 0.00 | AL158: 0.00 | AM158: 0.00 | AN158: 0.00 | AQ158: =IF(AQ157=0,0,$F158*$G158) -> 0.00 | AR158: 0.00 | AS158: 0.00 | AT158: 0.00 | AU158: 0.00 | AV158: 0.00 | AW158: 0.00 | AX158: 0.00 | AY158: 0.00 | AZ158: 0.00 | BA158: 0.00 | BB158: 0.00 | BC158: 0.00 | BD158: 0.00 | BE158: 0.00 | BF158: 0.00 | BG158: 0.00 | BH158: 0.00 | BI158: 0.00 | BJ158: 0.00 | BK158: 0.00 | BL158: 0.00 | BM158: 0.00 | BN158: 0.00 | BO158: 0.00 | BP158: 0.00 | BQ158: 0.00 | BR158: 0.00 | BS158: 0.00 | BT158: 0.00 | BU158: 0.00 | BV158: 0.00 | BW158: 0.00 | BX158: 0.00 | BY158: 0.00 | BZ158: 0.00 | CA158: 0.00 | CB158: 0.00 | CC158: 0.00 | CD158: 0.00 | CE158: 0.00 | CF158: 0.00 | CG158: 0.00
E159: Fabrication | F159: =+F158 -> 0.00 | G159: 0.77 | I159: =+I158 -> 1 | J159: =IF(P157=0,0,$F159*$G159) -> 0.00 | K159: =IF(Q157=0,0,$F159*$G159) -> 0.00 | L159: =IF(R157=0,0,$F159*$G159) -> 0.00 | M159: =IF(S157=0,0,$F159*$G159) -> 0.00 | N159: =IF(T157=0,0,$F159*$G159) -> 0.00 | O159: =IF(U157=0,0,$F159*$G159) -> 0.00 | P159: =IF(V157=0,0,$F159*$G159) -> 0.00 | Q159: =IF(W157=0,0,$F159*$G159) -> 0.00 | R159: =IF(X157=0,0,$F159*$G159) -> 0.00 | S159: =IF(Y157=0,0,$F159*$G159) -> 0.00 | T159: =IF(Z157=0,0,$F159*$G159) -> 0.00 | U159: =IF(AA157=0,0,$F159*$G159) -> 0.00 | V159: =IF(AB157=0,0,$F159*$G159) -> 0.00 | W159: =IF(AC157=0,0,$F159*$G159) -> 0.00 | X159: =IF(AD157=0,0,$F159*$G159) -> 0.00 | Y159: =IF(AE157=0,0,$F159*$G159) -> 0.00 | Z159: =IF(AF157=0,0,$F159*$G159) -> 0.00 | AA159: =IF(AG157=0,0,$F159*$G159) -> 0.00 | AB159: =IF(AH157=0,0,$F159*$G159) -> 0.00 | AC159: =IF(AI157=0,0,$F159*$G159) -> 0.00 | AD159: =IF(AJ157=0,0,$F159*$G159) -> 0.00 | AE159: =IF(AK157=0,0,$F159*$G159) -> 0.00 | AF159: =IF(AL157=0,0,$F159*$G159) -> 0.00 | AG159: =IF(AM157=0,0,$F159*$G159) -> 0.00 | AH159: =IF(AN157=0,0,$F159*$G159) -> 0.00 | AI159: =IF(AO157=0,0,$F159*$G159) -> 0.00 | AJ159: =IF(AP157=0,0,$F159*$G159) -> 0.00 | AK159: =IF(AQ157=0,0,$F159*$G159) -> 0.00 | AL159: =IF(AR157=0,0,$F159*$G159) -> 0.00 | AM159: =IF(AS157=0,0,$F159*$G159) -> 0.00 | AN159: =IF(AT157=0,0,$F159*$G159) -> 0.00 | AQ159: =IF(AW157=0,0,$F159*$G159) -> 0.00 | AR159: =IF(AX157=0,0,$F159*$G159) -> 0.00 | AS159: =IF(AY157=0,0,$F159*$G159) -> 0.00 | AT159: =IF(AZ157=0,0,$F159*$G159) -> 0.00 | AU159: =IF(BA157=0,0,$F159*$G159) -> 0.00 | AV159: =IF(BB157=0,0,$F159*$G159) -> 0.00 | AW159: =IF(BC157=0,0,$F159*$G159) -> 0.00 | AX159: =IF(BD157=0,0,$F159*$G159) -> 0.00 | AY159: =IF(BE157=0,0,$F159*$G159) -> 0.00 | AZ159: =IF(BF157=0,0,$F159*$G159) -> 0.00 | BA159: =IF(BG157=0,0,$F159*$G159) -> 0.00 | BB159: =IF(BH157=0,0,$F159*$G159) -> 0.00 | BC159: =IF(BI157=0,0,$F159*$G159) -> 0.00 | BD159: =IF(BJ157=0,0,$F159*$G159) -> 0.00 | BE159: =IF(BK157=0,0,$F159*$G159) -> 0.00 | BF159: =IF(BL157=0,0,$F159*$G159) -> 0.00 | BG159: =IF(BM157=0,0,$F159*$G159) -> 0.00 | BH159: =IF(BN157=0,0,$F159*$G159) -> 0.00 | BI159: =IF(BO157=0,0,$F159*$G159) -> 0.00 | BJ159: =IF(BP157=0,0,$F159*$G159) -> 0.00 | BK159: =IF(BQ157=0,0,$F159*$G159) -> 0.00 | BL159: =IF(BR157=0,0,$F159*$G159) -> 0.00 | BM159: =IF(BS157=0,0,$F159*$G159) -> 0.00 | BN159: =IF(BT157=0,0,$F159*$G159) -> 0.00 | BO159: =IF(BU157=0,0,$F159*$G159) -> 0.00 | BP159: =IF(BV157=0,0,$F159*$G159) -> 0.00 | BQ159: =IF(BW157=0,0,$F159*$G159) -> 0.00 | BR159: =IF(BX157=0,0,$F159*$G159) -> 0.00 | BS159: =IF(BY157=0,0,$F159*$G159) -> 0.00 | BT159: =IF(BZ157=0,0,$F159*$G159) -> 0.00 | BU159: =IF(CA157=0,0,$F159*$G159) -> 0.00 | BV159: =IF(CB157=0,0,$F159*$G159) -> 0.00 | BW159: =IF(CC157=0,0,$F159*$G159) -> 0.00 | BX159: =IF(CD157=0,0,$F159*$G159) -> 0.00 | BY159: =IF(CE157=0,0,$F159*$G159) -> 0.00 | BZ159: =IF(CF157=0,0,$F159*$G159) -> 0.00 | CA159: =IF(CG157=0,0,$F159*$G159) -> 0.00 | CB159: =IF(CH157=0,0,$F159*$G159) -> 0.00 | CC159: =IF(CI157=0,0,$F159*$G159) -> 0.00 | CD159: =IF(CJ157=0,0,$F159*$G159) -> 0.00 | CE159: =IF(CK157=0,0,$F159*$G159) -> 0.00 | CF159: =IF(CL157=0,0,$F159*$G159) -> 0.00 | CG159: =IF(CM157=0,0,$F159*$G159) -> 0.00
E160: Emballage | F160: =+F159 -> 0.00 | G160: 0.58 | I160: =+I159 -> 1 | J160: =IF(P157=0,0,$F160*$G160) -> 0.00 | K160: =IF(Q157=0,0,$F160*$G160) -> 0.00 | L160: =IF(R157=0,0,$F160*$G160) -> 0.00 | M160: =IF(S157=0,0,$F160*$G160) -> 0.00 | N160: =IF(T157=0,0,$F160*$G160) -> 0.00 | O160: =IF(U157=0,0,$F160*$G160) -> 0.00 | P160: =IF(V157=0,0,$F160*$G160) -> 0.00 | Q160: =IF(W157=0,0,$F160*$G160) -> 0.00 | R160: =IF(X157=0,0,$F160*$G160) -> 0.00 | S160: =IF(Y157=0,0,$F160*$G160) -> 0.00 | T160: =IF(Z157=0,0,$F160*$G160) -> 0.00 | U160: =IF(AA157=0,0,$F160*$G160) -> 0.00 | V160: =IF(AB157=0,0,$F160*$G160) -> 0.00 | W160: =IF(AC157=0,0,$F160*$G160) -> 0.00 | X160: =IF(AD157=0,0,$F160*$G160) -> 0.00 | Y160: =IF(AE157=0,0,$F160*$G160) -> 0.00 | Z160: =IF(AF157=0,0,$F160*$G160) -> 0.00 | AA160: =IF(AG157=0,0,$F160*$G160) -> 0.00 | AB160: =IF(AH157=0,0,$F160*$G160) -> 0.00 | AC160: =IF(AI157=0,0,$F160*$G160) -> 0.00 | AD160: =IF(AJ157=0,0,$F160*$G160) -> 0.00 | AE160: =IF(AK157=0,0,$F160*$G160) -> 0.00 | AF160: =IF(AL157=0,0,$F160*$G160) -> 0.00 | AG160: =IF(AM157=0,0,$F160*$G160) -> 0.00 | AH160: =IF(AN157=0,0,$F160*$G160) -> 0.00 | AI160: =IF(AO157=0,0,$F160*$G160) -> 0.00 | AJ160: =IF(AP157=0,0,$F160*$G160) -> 0.00 | AK160: =IF(AQ157=0,0,$F160*$G160) -> 0.00 | AL160: =IF(AR157=0,0,$F160*$G160) -> 0.00 | AM160: =IF(AS157=0,0,$F160*$G160) -> 0.00 | AN160: =IF(AT157=0,0,$F160*$G160) -> 0.00 | AQ160: =IF(AW157=0,0,$F160*$G160) -> 0.00 | AR160: =IF(AX157=0,0,$F160*$G160) -> 0.00 | AS160: =IF(AY157=0,0,$F160*$G160) -> 0.00 | AT160: =IF(AZ157=0,0,$F160*$G160) -> 0.00 | AU160: =IF(BA157=0,0,$F160*$G160) -> 0.00 | AV160: =IF(BB157=0,0,$F160*$G160) -> 0.00 | AW160: =IF(BC157=0,0,$F160*$G160) -> 0.00 | AX160: =IF(BD157=0,0,$F160*$G160) -> 0.00 | AY160: =IF(BE157=0,0,$F160*$G160) -> 0.00 | AZ160: =IF(BF157=0,0,$F160*$G160) -> 0.00 | BA160: =IF(BG157=0,0,$F160*$G160) -> 0.00 | BB160: =IF(BH157=0,0,$F160*$G160) -> 0.00 | BC160: =IF(BI157=0,0,$F160*$G160) -> 0.00 | BD160: =IF(BJ157=0,0,$F160*$G160) -> 0.00 | BE160: =IF(BK157=0,0,$F160*$G160) -> 0.00 | BF160: =IF(BL157=0,0,$F160*$G160) -> 0.00 | BG160: =IF(BM157=0,0,$F160*$G160) -> 0.00 | BH160: =IF(BN157=0,0,$F160*$G160) -> 0.00 | BI160: =IF(BO157=0,0,$F160*$G160) -> 0.00 | BJ160: =IF(BP157=0,0,$F160*$G160) -> 0.00 | BK160: =IF(BQ157=0,0,$F160*$G160) -> 0.00 | BL160: =IF(BR157=0,0,$F160*$G160) -> 0.00 | BM160: =IF(BS157=0,0,$F160*$G160) -> 0.00 | BN160: =IF(BT157=0,0,$F160*$G160) -> 0.00 | BO160: =IF(BU157=0,0,$F160*$G160) -> 0.00 | BP160: =IF(BV157=0,0,$F160*$G160) -> 0.00 | BQ160: =IF(BW157=0,0,$F160*$G160) -> 0.00 | BR160: =IF(BX157=0,0,$F160*$G160) -> 0.00 | BS160: =IF(BY157=0,0,$F160*$G160) -> 0.00 | BT160: =IF(BZ157=0,0,$F160*$G160) -> 0.00 | BU160: =IF(CA157=0,0,$F160*$G160) -> 0.00 | BV160: =IF(CB157=0,0,$F160*$G160) -> 0.00 | BW160: =IF(CC157=0,0,$F160*$G160) -> 0.00 | BX160: =IF(CD157=0,0,$F160*$G160) -> 0.00 | BY160: =IF(CE157=0,0,$F160*$G160) -> 0.00 | BZ160: =IF(CF157=0,0,$F160*$G160) -> 0.00 | CA160: =IF(CG157=0,0,$F160*$G160) -> 0.00 | CB160: =IF(CH157=0,0,$F160*$G160) -> 0.00 | CC160: =IF(CI157=0,0,$F160*$G160) -> 0.00 | CD160: =IF(CJ157=0,0,$F160*$G160) -> 0.00 | CE160: =IF(CK157=0,0,$F160*$G160) -> 0.00 | CF160: =IF(CL157=0,0,$F160*$G160) -> 0.00 | CG160: =IF(CM157=0,0,$F160*$G160) -> 0.00
E161: Envoi | F161: 0.00 | G161: 0.10 | I161: =+I160 -> 1 | J161: =IF(P157=0,0,$F161*$G161) -> 0.00 | K161: =IF(Q157=0,0,$F161*$G161) -> 0.00 | L161: =IF(R157=0,0,$F161*$G161) -> 0.00 | M161: =IF(S157=0,0,$F161*$G161) -> 0.00 | N161: =IF(T157=0,0,$F161*$G161) -> 0.00 | O161: =IF(U157=0,0,$F161*$G161) -> 0.00 | P161: =IF(V157=0,0,$F161*$G161) -> 0.00 | Q161: =IF(W157=0,0,$F161*$G161) -> 0.00 | R161: =IF(X157=0,0,$F161*$G161) -> 0.00 | S161: =IF(Y157=0,0,$F161*$G161) -> 0.00 | T161: =IF(Z157=0,0,$F161*$G161) -> 0.00 | U161: =IF(AA157=0,0,$F161*$G161) -> 0.00 | V161: =IF(AB157=0,0,$F161*$G161) -> 0.00 | W161: =IF(AC157=0,0,$F161*$G161) -> 0.00 | X161: =IF(AD157=0,0,$F161*$G161) -> 0.00 | Y161: =IF(AE157=0,0,$F161*$G161) -> 0.00 | Z161: =IF(AF157=0,0,$F161*$G161) -> 0.00 | AA161: =IF(AG157=0,0,$F161*$G161) -> 0.00 | AB161: =IF(AH157=0,0,$F161*$G161) -> 0.00 | AC161: =IF(AI157=0,0,$F161*$G161) -> 0.00 | AD161: =IF(AJ157=0,0,$F161*$G161) -> 0.00 | AE161: =IF(AK157=0,0,$F161*$G161) -> 0.00 | AF161: =IF(AL157=0,0,$F161*$G161) -> 0.00 | AG161: =IF(AM157=0,0,$F161*$G161) -> 0.00 | AH161: =IF(AN157=0,0,$F161*$G161) -> 0.00 | AI161: =IF(AO157=0,0,$F161*$G161) -> 0.00 | AJ161: =IF(AP157=0,0,$F161*$G161) -> 0.00 | AK161: =IF(AQ157=0,0,$F161*$G161) -> 0.00 | AL161: =IF(AR157=0,0,$F161*$G161) -> 0.00 | AM161: =IF(AS157=0,0,$F161*$G161) -> 0.00 | AN161: =IF(AT157=0,0,$F161*$G161) -> 0.00 | AQ161: =IF(AW157=0,0,$F161*$G161) -> 0.00 | AR161: =IF(AX157=0,0,$F161*$G161) -> 0.00 | AS161: =IF(AY157=0,0,$F161*$G161) -> 0.00 | AT161: =IF(AZ157=0,0,$F161*$G161) -> 0.00 | AU161: =IF(BA157=0,0,$F161*$G161) -> 0.00 | AV161: =IF(BB157=0,0,$F161*$G161) -> 0.00 | AW161: =IF(BC157=0,0,$F161*$G161) -> 0.00 | AX161: =IF(BD157=0,0,$F161*$G161) -> 0.00 | AY161: =IF(BE157=0,0,$F161*$G161) -> 0.00 | AZ161: =IF(BF157=0,0,$F161*$G161) -> 0.00 | BA161: =IF(BG157=0,0,$F161*$G161) -> 0.00 | BB161: =IF(BH157=0,0,$F161*$G161) -> 0.00 | BC161: =IF(BI157=0,0,$F161*$G161) -> 0.00 | BD161: =IF(BJ157=0,0,$F161*$G161) -> 0.00 | BE161: =IF(BK157=0,0,$F161*$G161) -> 0.00 | BF161: =IF(BL157=0,0,$F161*$G161) -> 0.00 | BG161: =IF(BM157=0,0,$F161*$G161) -> 0.00 | BH161: =IF(BN157=0,0,$F161*$G161) -> 0.00 | BI161: =IF(BO157=0,0,$F161*$G161) -> 0.00 | BJ161: =IF(BP157=0,0,$F161*$G161) -> 0.00 | BK161: =IF(BQ157=0,0,$F161*$G161) -> 0.00 | BL161: =IF(BR157=0,0,$F161*$G161) -> 0.00 | BM161: =IF(BS157=0,0,$F161*$G161) -> 0.00 | BN161: =IF(BT157=0,0,$F161*$G161) -> 0.00 | BO161: =IF(BU157=0,0,$F161*$G161) -> 0.00 | BP161: =IF(BV157=0,0,$F161*$G161) -> 0.00 | BQ161: =IF(BW157=0,0,$F161*$G161) -> 0.00 | BR161: =IF(BX157=0,0,$F161*$G161) -> 0.00 | BS161: =IF(BY157=0,0,$F161*$G161) -> 0.00 | BT161: =IF(BZ157=0,0,$F161*$G161) -> 0.00 | BU161: =IF(CA157=0,0,$F161*$G161) -> 0.00 | BV161: =IF(CB157=0,0,$F161*$G161) -> 0.00 | BW161: =IF(CC157=0,0,$F161*$G161) -> 0.00 | BX161: =IF(CD157=0,0,$F161*$G161) -> 0.00 | BY161: =IF(CE157=0,0,$F161*$G161) -> 0.00 | BZ161: =IF(CF157=0,0,$F161*$G161) -> 0.00 | CA161: =IF(CG157=0,0,$F161*$G161) -> 0.00 | CB161: =IF(CH157=0,0,$F161*$G161) -> 0.00 | CC161: =IF(CI157=0,0,$F161*$G161) -> 0.00 | CD161: =IF(CJ157=0,0,$F161*$G161) -> 0.00 | CE161: =IF(CK157=0,0,$F161*$G161) -> 0.00 | CF161: =IF(CL157=0,0,$F161*$G161) -> 0.00 | CG161: =IF(CM157=0,0,$F161*$G161) -> 0.00
C163: =+C169+1 -> 9 | D163: =C163+$A$121 -> 130 | E163: VENTE | F163: =+C130 -> 9.00 | G163: =+G130 -> 4.00 | H163: =ROW(H163) -> 163 | I163: =$A$103+C163 -> 112 | J163: =IF(J112=0,0,J112) -> 0.00 | K163: =IF(K112=0,0,K112) -> 0.00 | L163: 0.00 | M163: 0.00 | N163: 0.00 | O163: 0.00 | P163: 0.00 | Q163: 0.00 | R163: 0.00 | S163: 0.00 | T163: 0.00 | U163: 0.00 | V163: 0.00 | W163: 0.00 | X163: 0.00 | Y163: 0.00 | Z163: 0.00 | AA163: 0.00 | AB163: 0.00 | AC163: 0.00 | AD163: 0.00 | AE163: 0.00 | AF163: 0.00 | AG163: 0.00 | AH163: 0.00 | AI163: 0.00 | AJ163: 0.00 | AK163: 0.00 | AL163: 0.00 | AM163: 0.00 | AN163: 0.00 | AO163: 0.00 | AP163: 0.00 | AQ163: 0.00 | AR163: 0.00 | AS163: 0.00 | AT163: 0.00 | AU163: 0.00 | AV163: 0.00 | AW163: 0.00 | AX163: 0.00 | AY163: 0.00 | AZ163: 0.00 | BA163: 0.00 | BB163: 0.00 | BC163: 0.00 | BD163: 0.00 | BE163: 0.00 | BF163: 0.00 | BG163: 0.00 | BH163: 0.00 | BI163: 0.00 | BJ163: 0.00 | BK163: 0.00 | BL163: 0.00 | BM163: 0.00 | BN163: 0.00 | BO163: 0.00 | BP163: 0.00 | BQ163: 0.00 | BR163: 0.00 | BS163: 0.00 | BT163: 0.00 | BU163: 0.00 | BV163: 0.00 | BW163: =IF(BW112=0,0,BW112) -> 0.00 | BX163: 0.00 | BY163: 0.00 | BZ163: 0.00 | CA163: 0.00 | CB163: 0.00 | CC163: 0.00 | CD163: 0.00 | CE163: 0.00 | CF163: 0.00 | CG163: 0.00
E164: ACHAT | F164: =+F130 -> 0.00 | G164: =G163-G165-G166-G167 -> 2.55 | I164: =+I130 -> 1 | J164: =IF(J163=0,0,$F164*$G164) -> 0.00 | K164: 0.00 | L164: 0.00 | M164: 0.00 | N164: 0.00 | O164: 0.00 | P164: 0.00 | Q164: 0.00 | R164: 0.00 | S164: 0.00 | T164: 0.00 | U164: 0.00 | V164: 0.00 | W164: 0.00 | X164: 0.00 | Y164: 0.00 | Z164: 0.00 | AA164: 0.00 | AB164: 0.00 | AC164: 0.00 | AD164: 0.00 | AE164: 0.00 | AF164: 0.00 | AG164: 0.00 | AH164: 0.00 | AI164: 0.00 | AJ164: 0.00 | AK164: 0.00 | AL164: 0.00 | AM164: 0.00 | AN164: 0.00 | AQ164: =IF(AQ163=0,0,$F164*$G164) -> 0.00 | AR164: 0.00 | AS164: 0.00 | AT164: 0.00 | AU164: 0.00 | AV164: 0.00 | AW164: 0.00 | AX164: 0.00 | AY164: 0.00 | AZ164: 0.00 | BA164: 0.00 | BB164: 0.00 | BC164: 0.00 | BD164: 0.00 | BE164: 0.00 | BF164: 0.00 | BG164: 0.00 | BH164: 0.00 | BI164: 0.00 | BJ164: 0.00 | BK164: 0.00 | BL164: 0.00 | BM164: 0.00 | BN164: 0.00 | BO164: 0.00 | BP164: 0.00 | BQ164: 0.00 | BR164: 0.00 | BS164: 0.00 | BT164: 0.00 | BU164: 0.00 | BV164: 0.00 | BW164: 0.00 | BX164: 0.00 | BY164: 0.00 | BZ164: 0.00 | CA164: 0.00 | CB164: 0.00 | CC164: 0.00 | CD164: 0.00 | CE164: 0.00 | CF164: 0.00 | CG164: 0.00
E165: Fabrication | F165: =+F164 -> 0.00 | G165: 0.77 | I165: =+I164 -> 1 | J165: =IF(P163=0,0,$F165*$G165) -> 0.00 | K165: =IF(Q163=0,0,$F165*$G165) -> 0.00 | L165: =IF(R163=0,0,$F165*$G165) -> 0.00 | M165: =IF(S163=0,0,$F165*$G165) -> 0.00 | N165: =IF(T163=0,0,$F165*$G165) -> 0.00 | O165: =IF(U163=0,0,$F165*$G165) -> 0.00 | P165: =IF(V163=0,0,$F165*$G165) -> 0.00 | Q165: =IF(W163=0,0,$F165*$G165) -> 0.00 | R165: =IF(X163=0,0,$F165*$G165) -> 0.00 | S165: =IF(Y163=0,0,$F165*$G165) -> 0.00 | T165: =IF(Z163=0,0,$F165*$G165) -> 0.00 | U165: =IF(AA163=0,0,$F165*$G165) -> 0.00 | V165: =IF(AB163=0,0,$F165*$G165) -> 0.00 | W165: =IF(AC163=0,0,$F165*$G165) -> 0.00 | X165: =IF(AD163=0,0,$F165*$G165) -> 0.00 | Y165: =IF(AE163=0,0,$F165*$G165) -> 0.00 | Z165: =IF(AF163=0,0,$F165*$G165) -> 0.00 | AA165: =IF(AG163=0,0,$F165*$G165) -> 0.00 | AB165: =IF(AH163=0,0,$F165*$G165) -> 0.00 | AC165: =IF(AI163=0,0,$F165*$G165) -> 0.00 | AD165: =IF(AJ163=0,0,$F165*$G165) -> 0.00 | AE165: =IF(AK163=0,0,$F165*$G165) -> 0.00 | AF165: =IF(AL163=0,0,$F165*$G165) -> 0.00 | AG165: =IF(AM163=0,0,$F165*$G165) -> 0.00 | AH165: =IF(AN163=0,0,$F165*$G165) -> 0.00 | AI165: =IF(AO163=0,0,$F165*$G165) -> 0.00 | AJ165: =IF(AP163=0,0,$F165*$G165) -> 0.00 | AK165: =IF(AQ163=0,0,$F165*$G165) -> 0.00 | AL165: =IF(AR163=0,0,$F165*$G165) -> 0.00 | AM165: =IF(AS163=0,0,$F165*$G165) -> 0.00 | AN165: =IF(AT163=0,0,$F165*$G165) -> 0.00 | AQ165: =IF(AW163=0,0,$F165*$G165) -> 0.00 | AR165: =IF(AX163=0,0,$F165*$G165) -> 0.00 | AS165: =IF(AY163=0,0,$F165*$G165) -> 0.00 | AT165: =IF(AZ163=0,0,$F165*$G165) -> 0.00 | AU165: =IF(BA163=0,0,$F165*$G165) -> 0.00 | AV165: =IF(BB163=0,0,$F165*$G165) -> 0.00 | AW165: =IF(BC163=0,0,$F165*$G165) -> 0.00 | AX165: =IF(BD163=0,0,$F165*$G165) -> 0.00 | AY165: =IF(BE163=0,0,$F165*$G165) -> 0.00 | AZ165: =IF(BF163=0,0,$F165*$G165) -> 0.00 | BA165: =IF(BG163=0,0,$F165*$G165) -> 0.00 | BB165: =IF(BH163=0,0,$F165*$G165) -> 0.00 | BC165: =IF(BI163=0,0,$F165*$G165) -> 0.00 | BD165: =IF(BJ163=0,0,$F165*$G165) -> 0.00 | BE165: =IF(BK163=0,0,$F165*$G165) -> 0.00 | BF165: =IF(BL163=0,0,$F165*$G165) -> 0.00 | BG165: =IF(BM163=0,0,$F165*$G165) -> 0.00 | BH165: =IF(BN163=0,0,$F165*$G165) -> 0.00 | BI165: =IF(BO163=0,0,$F165*$G165) -> 0.00 | BJ165: =IF(BP163=0,0,$F165*$G165) -> 0.00 | BK165: =IF(BQ163=0,0,$F165*$G165) -> 0.00 | BL165: =IF(BR163=0,0,$F165*$G165) -> 0.00 | BM165: =IF(BS163=0,0,$F165*$G165) -> 0.00 | BN165: =IF(BT163=0,0,$F165*$G165) -> 0.00 | BO165: =IF(BU163=0,0,$F165*$G165) -> 0.00 | BP165: =IF(BV163=0,0,$F165*$G165) -> 0.00 | BQ165: =IF(BW163=0,0,$F165*$G165) -> 0.00 | BR165: =IF(BX163=0,0,$F165*$G165) -> 0.00 | BS165: =IF(BY163=0,0,$F165*$G165) -> 0.00 | BT165: =IF(BZ163=0,0,$F165*$G165) -> 0.00 | BU165: =IF(CA163=0,0,$F165*$G165) -> 0.00 | BV165: =IF(CB163=0,0,$F165*$G165) -> 0.00 | BW165: =IF(CC163=0,0,$F165*$G165) -> 0.00 | BX165: =IF(CD163=0,0,$F165*$G165) -> 0.00 | BY165: =IF(CE163=0,0,$F165*$G165) -> 0.00 | BZ165: =IF(CF163=0,0,$F165*$G165) -> 0.00 | CA165: =IF(CG163=0,0,$F165*$G165) -> 0.00 | CB165: =IF(CH163=0,0,$F165*$G165) -> 0.00 | CC165: =IF(CI163=0,0,$F165*$G165) -> 0.00 | CD165: =IF(CJ163=0,0,$F165*$G165) -> 0.00 | CE165: =IF(CK163=0,0,$F165*$G165) -> 0.00 | CF165: =IF(CL163=0,0,$F165*$G165) -> 0.00 | CG165: =IF(CM163=0,0,$F165*$G165) -> 0.00
E166: Emballage | F166: =+F165 -> 0.00 | G166: 0.58 | I166: =+I165 -> 1 | J166: =IF(P163=0,0,$F166*$G166) -> 0.00 | K166: =IF(Q163=0,0,$F166*$G166) -> 0.00 | L166: =IF(R163=0,0,$F166*$G166) -> 0.00 | M166: =IF(S163=0,0,$F166*$G166) -> 0.00 | N166: =IF(T163=0,0,$F166*$G166) -> 0.00 | O166: =IF(U163=0,0,$F166*$G166) -> 0.00 | P166: =IF(V163=0,0,$F166*$G166) -> 0.00 | Q166: =IF(W163=0,0,$F166*$G166) -> 0.00 | R166: =IF(X163=0,0,$F166*$G166) -> 0.00 | S166: =IF(Y163=0,0,$F166*$G166) -> 0.00 | T166: =IF(Z163=0,0,$F166*$G166) -> 0.00 | U166: =IF(AA163=0,0,$F166*$G166) -> 0.00 | V166: =IF(AB163=0,0,$F166*$G166) -> 0.00 | W166: =IF(AC163=0,0,$F166*$G166) -> 0.00 | X166: =IF(AD163=0,0,$F166*$G166) -> 0.00 | Y166: =IF(AE163=0,0,$F166*$G166) -> 0.00 | Z166: =IF(AF163=0,0,$F166*$G166) -> 0.00 | AA166: =IF(AG163=0,0,$F166*$G166) -> 0.00 | AB166: =IF(AH163=0,0,$F166*$G166) -> 0.00 | AC166: =IF(AI163=0,0,$F166*$G166) -> 0.00 | AD166: =IF(AJ163=0,0,$F166*$G166) -> 0.00 | AE166: =IF(AK163=0,0,$F166*$G166) -> 0.00 | AF166: =IF(AL163=0,0,$F166*$G166) -> 0.00 | AG166: =IF(AM163=0,0,$F166*$G166) -> 0.00 | AH166: =IF(AN163=0,0,$F166*$G166) -> 0.00 | AI166: =IF(AO163=0,0,$F166*$G166) -> 0.00 | AJ166: =IF(AP163=0,0,$F166*$G166) -> 0.00 | AK166: =IF(AQ163=0,0,$F166*$G166) -> 0.00 | AL166: =IF(AR163=0,0,$F166*$G166) -> 0.00 | AM166: =IF(AS163=0,0,$F166*$G166) -> 0.00 | AN166: =IF(AT163=0,0,$F166*$G166) -> 0.00 | AQ166: =IF(AW163=0,0,$F166*$G166) -> 0.00 | AR166: =IF(AX163=0,0,$F166*$G166) -> 0.00 | AS166: =IF(AY163=0,0,$F166*$G166) -> 0.00 | AT166: =IF(AZ163=0,0,$F166*$G166) -> 0.00 | AU166: =IF(BA163=0,0,$F166*$G166) -> 0.00 | AV166: =IF(BB163=0,0,$F166*$G166) -> 0.00 | AW166: =IF(BC163=0,0,$F166*$G166) -> 0.00 | AX166: =IF(BD163=0,0,$F166*$G166) -> 0.00 | AY166: =IF(BE163=0,0,$F166*$G166) -> 0.00 | AZ166: =IF(BF163=0,0,$F166*$G166) -> 0.00 | BA166: =IF(BG163=0,0,$F166*$G166) -> 0.00 | BB166: =IF(BH163=0,0,$F166*$G166) -> 0.00 | BC166: =IF(BI163=0,0,$F166*$G166) -> 0.00 | BD166: =IF(BJ163=0,0,$F166*$G166) -> 0.00 | BE166: =IF(BK163=0,0,$F166*$G166) -> 0.00 | BF166: =IF(BL163=0,0,$F166*$G166) -> 0.00 | BG166: =IF(BM163=0,0,$F166*$G166) -> 0.00 | BH166: =IF(BN163=0,0,$F166*$G166) -> 0.00 | BI166: =IF(BO163=0,0,$F166*$G166) -> 0.00 | BJ166: =IF(BP163=0,0,$F166*$G166) -> 0.00 | BK166: =IF(BQ163=0,0,$F166*$G166) -> 0.00 | BL166: =IF(BR163=0,0,$F166*$G166) -> 0.00 | BM166: =IF(BS163=0,0,$F166*$G166) -> 0.00 | BN166: =IF(BT163=0,0,$F166*$G166) -> 0.00 | BO166: =IF(BU163=0,0,$F166*$G166) -> 0.00 | BP166: =IF(BV163=0,0,$F166*$G166) -> 0.00 | BQ166: =IF(BW163=0,0,$F166*$G166) -> 0.00 | BR166: =IF(BX163=0,0,$F166*$G166) -> 0.00 | BS166: =IF(BY163=0,0,$F166*$G166) -> 0.00 | BT166: =IF(BZ163=0,0,$F166*$G166) -> 0.00 | BU166: =IF(CA163=0,0,$F166*$G166) -> 0.00 | BV166: =IF(CB163=0,0,$F166*$G166) -> 0.00 | BW166: =IF(CC163=0,0,$F166*$G166) -> 0.00 | BX166: =IF(CD163=0,0,$F166*$G166) -> 0.00 | BY166: =IF(CE163=0,0,$F166*$G166) -> 0.00 | BZ166: =IF(CF163=0,0,$F166*$G166) -> 0.00 | CA166: =IF(CG163=0,0,$F166*$G166) -> 0.00 | CB166: =IF(CH163=0,0,$F166*$G166) -> 0.00 | CC166: =IF(CI163=0,0,$F166*$G166) -> 0.00 | CD166: =IF(CJ163=0,0,$F166*$G166) -> 0.00 | CE166: =IF(CK163=0,0,$F166*$G166) -> 0.00 | CF166: =IF(CL163=0,0,$F166*$G166) -> 0.00 | CG166: =IF(CM163=0,0,$F166*$G166) -> 0.00
E167: Envoi | F167: 0.00 | G167: 0.10 | I167: =+I166 -> 1 | J167: =IF(P163=0,0,$F167*$G167) -> 0.00 | K167: =IF(Q163=0,0,$F167*$G167) -> 0.00 | L167: =IF(R163=0,0,$F167*$G167) -> 0.00 | M167: =IF(S163=0,0,$F167*$G167) -> 0.00 | N167: =IF(T163=0,0,$F167*$G167) -> 0.00 | O167: =IF(U163=0,0,$F167*$G167) -> 0.00 | P167: =IF(V163=0,0,$F167*$G167) -> 0.00 | Q167: =IF(W163=0,0,$F167*$G167) -> 0.00 | R167: =IF(X163=0,0,$F167*$G167) -> 0.00 | S167: =IF(Y163=0,0,$F167*$G167) -> 0.00 | T167: =IF(Z163=0,0,$F167*$G167) -> 0.00 | U167: =IF(AA163=0,0,$F167*$G167) -> 0.00 | V167: =IF(AB163=0,0,$F167*$G167) -> 0.00 | W167: =IF(AC163=0,0,$F167*$G167) -> 0.00 | X167: =IF(AD163=0,0,$F167*$G167) -> 0.00 | Y167: =IF(AE163=0,0,$F167*$G167) -> 0.00 | Z167: =IF(AF163=0,0,$F167*$G167) -> 0.00 | AA167: =IF(AG163=0,0,$F167*$G167) -> 0.00 | AB167: =IF(AH163=0,0,$F167*$G167) -> 0.00 | AC167: =IF(AI163=0,0,$F167*$G167) -> 0.00 | AD167: =IF(AJ163=0,0,$F167*$G167) -> 0.00 | AE167: =IF(AK163=0,0,$F167*$G167) -> 0.00 | AF167: =IF(AL163=0,0,$F167*$G167) -> 0.00 | AG167: =IF(AM163=0,0,$F167*$G167) -> 0.00 | AH167: =IF(AN163=0,0,$F167*$G167) -> 0.00 | AI167: =IF(AO163=0,0,$F167*$G167) -> 0.00 | AJ167: =IF(AP163=0,0,$F167*$G167) -> 0.00 | AK167: =IF(AQ163=0,0,$F167*$G167) -> 0.00 | AL167: =IF(AR163=0,0,$F167*$G167) -> 0.00 | AM167: =IF(AS163=0,0,$F167*$G167) -> 0.00 | AN167: =IF(AT163=0,0,$F167*$G167) -> 0.00 | AQ167: =IF(AW163=0,0,$F167*$G167) -> 0.00 | AR167: =IF(AX163=0,0,$F167*$G167) -> 0.00 | AS167: =IF(AY163=0,0,$F167*$G167) -> 0.00 | AT167: =IF(AZ163=0,0,$F167*$G167) -> 0.00 | AU167: =IF(BA163=0,0,$F167*$G167) -> 0.00 | AV167: =IF(BB163=0,0,$F167*$G167) -> 0.00 | AW167: =IF(BC163=0,0,$F167*$G167) -> 0.00 | AX167: =IF(BD163=0,0,$F167*$G167) -> 0.00 | AY167: =IF(BE163=0,0,$F167*$G167) -> 0.00 | AZ167: =IF(BF163=0,0,$F167*$G167) -> 0.00 | BA167: =IF(BG163=0,0,$F167*$G167) -> 0.00 | BB167: =IF(BH163=0,0,$F167*$G167) -> 0.00 | BC167: =IF(BI163=0,0,$F167*$G167) -> 0.00 | BD167: =IF(BJ163=0,0,$F167*$G167) -> 0.00 | BE167: =IF(BK163=0,0,$F167*$G167) -> 0.00 | BF167: =IF(BL163=0,0,$F167*$G167) -> 0.00 | BG167: =IF(BM163=0,0,$F167*$G167) -> 0.00 | BH167: =IF(BN163=0,0,$F167*$G167) -> 0.00 | BI167: =IF(BO163=0,0,$F167*$G167) -> 0.00 | BJ167: =IF(BP163=0,0,$F167*$G167) -> 0.00 | BK167: =IF(BQ163=0,0,$F167*$G167) -> 0.00 | BL167: =IF(BR163=0,0,$F167*$G167) -> 0.00 | BM167: =IF(BS163=0,0,$F167*$G167) -> 0.00 | BN167: =IF(BT163=0,0,$F167*$G167) -> 0.00 | BO167: =IF(BU163=0,0,$F167*$G167) -> 0.00 | BP167: =IF(BV163=0,0,$F167*$G167) -> 0.00 | BQ167: =IF(BW163=0,0,$F167*$G167) -> 0.00 | BR167: =IF(BX163=0,0,$F167*$G167) -> 0.00 | BS167: =IF(BY163=0,0,$F167*$G167) -> 0.00 | BT167: =IF(BZ163=0,0,$F167*$G167) -> 0.00 | BU167: =IF(CA163=0,0,$F167*$G167) -> 0.00 | BV167: =IF(CB163=0,0,$F167*$G167) -> 0.00 | BW167: =IF(CC163=0,0,$F167*$G167) -> 0.00 | BX167: =IF(CD163=0,0,$F167*$G167) -> 0.00 | BY167: =IF(CE163=0,0,$F167*$G167) -> 0.00 | BZ167: =IF(CF163=0,0,$F167*$G167) -> 0.00 | CA167: =IF(CG163=0,0,$F167*$G167) -> 0.00 | CB167: =IF(CH163=0,0,$F167*$G167) -> 0.00 | CC167: =IF(CI163=0,0,$F167*$G167) -> 0.00 | CD167: =IF(CJ163=0,0,$F167*$G167) -> 0.00 | CE167: =IF(CK163=0,0,$F167*$G167) -> 0.00 | CF167: =IF(CL163=0,0,$F167*$G167) -> 0.00 | CG167: =IF(CM163=0,0,$F167*$G167) -> 0.00
C169: =+C175+1 -> 8 | D169: =C169+$A$121 -> 129 | E169: VENTE | F169: =+C129 -> 8.00 | G169: =+G129 -> 4.00 | H169: =ROW(H169) -> 169 | I169: =$A$103+C169 -> 111 | J169: =IF(J111=0,0,J111) -> 0.00 | K169: =IF(K111=0,0,K111) -> 0.00 | L169: 0.00 | M169: 0.00 | N169: 0.00 | O169: 0.00 | P169: 0.00 | Q169: 0.00 | R169: 0.00 | S169: 0.00 | T169: 0.00 | U169: 0.00 | V169: 0.00 | W169: 0.00 | X169: 0.00 | Y169: 0.00 | Z169: 0.00 | AA169: 0.00 | AB169: 0.00 | AC169: 0.00 | AD169: 0.00 | AE169: 0.00 | AF169: 0.00 | AG169: 0.00 | AH169: 0.00 | AI169: 0.00 | AJ169: 0.00 | AK169: 0.00 | AL169: 0.00 | AM169: 0.00 | AN169: 0.00 | AO169: 0.00 | AP169: 0.00 | AQ169: 0.00 | AR169: 0.00 | AS169: 0.00 | AT169: 0.00 | AU169: 0.00 | AV169: 0.00 | AW169: 0.00 | AX169: 0.00 | AY169: 0.00 | AZ169: 0.00 | BA169: 0.00 | BB169: 0.00 | BC169: 0.00 | BD169: 0.00 | BE169: 0.00 | BF169: 0.00 | BG169: 0.00 | BH169: 0.00 | BI169: 0.00 | BJ169: 0.00 | BK169: 0.00 | BL169: 0.00 | BM169: 0.00 | BN169: 0.00 | BO169: 0.00 | BP169: 0.00 | BQ169: 0.00 | BR169: 0.00 | BS169: 0.00 | BT169: 0.00 | BU169: 0.00 | BV169: 0.00 | BW169: =IF(BW111=0,0,BW111) -> 0.00 | BX169: 0.00 | BY169: 0.00 | BZ169: 0.00 | CA169: 0.00 | CB169: 0.00 | CC169: 0.00 | CD169: 0.00 | CE169: 0.00 | CF169: 0.00 | CG169: 0.00
E170: ACHAT | F170: =+F129 -> 0.00 | G170: =G169-G171-G172-G173 -> 2.55 | I170: =+I129 -> 1 | J170: =IF(J169=0,0,$F170*$G170) -> 0.00 | K170: 0.00 | L170: 0.00 | M170: 0.00 | N170: 0.00 | O170: 0.00 | P170: 0.00 | Q170: 0.00 | R170: 0.00 | S170: 0.00 | T170: 0.00 | U170: 0.00 | V170: 0.00 | W170: 0.00 | X170: 0.00 | Y170: 0.00 | Z170: 0.00 | AA170: 0.00 | AB170: 0.00 | AC170: 0.00 | AD170: 0.00 | AE170: 0.00 | AF170: 0.00 | AG170: 0.00 | AH170: 0.00 | AI170: 0.00 | AJ170: 0.00 | AK170: 0.00 | AL170: 0.00 | AM170: 0.00 | AN170: 0.00 | AQ170: =IF(AQ169=0,0,$F170*$G170) -> 0.00 | AR170: 0.00 | AS170: 0.00 | AT170: 0.00 | AU170: 0.00 | AV170: 0.00 | AW170: 0.00 | AX170: 0.00 | AY170: 0.00 | AZ170: 0.00 | BA170: 0.00 | BB170: 0.00 | BC170: 0.00 | BD170: 0.00 | BE170: 0.00 | BF170: 0.00 | BG170: 0.00 | BH170: 0.00 | BI170: 0.00 | BJ170: 0.00 | BK170: 0.00 | BL170: 0.00 | BM170: 0.00 | BN170: 0.00 | BO170: 0.00 | BP170: 0.00 | BQ170: 0.00 | BR170: 0.00 | BS170: 0.00 | BT170: 0.00 | BU170: 0.00 | BV170: 0.00 | BW170: 0.00 | BX170: 0.00 | BY170: 0.00 | BZ170: 0.00 | CA170: 0.00 | CB170: 0.00 | CC170: 0.00 | CD170: 0.00 | CE170: 0.00 | CF170: 0.00 | CG170: 0.00
E171: Fabrication | F171: =+F170 -> 0.00 | G171: 0.77 | I171: =+I170 -> 1 | J171: =IF(P169=0,0,$F171*$G171) -> 0.00 | K171: =IF(Q169=0,0,$F171*$G171) -> 0.00 | L171: =IF(R169=0,0,$F171*$G171) -> 0.00 | M171: =IF(S169=0,0,$F171*$G171) -> 0.00 | N171: =IF(T169=0,0,$F171*$G171) -> 0.00 | O171: =IF(U169=0,0,$F171*$G171) -> 0.00 | P171: =IF(V169=0,0,$F171*$G171) -> 0.00 | Q171: =IF(W169=0,0,$F171*$G171) -> 0.00 | R171: =IF(X169=0,0,$F171*$G171) -> 0.00 | S171: =IF(Y169=0,0,$F171*$G171) -> 0.00 | T171: =IF(Z169=0,0,$F171*$G171) -> 0.00 | U171: =IF(AA169=0,0,$F171*$G171) -> 0.00 | V171: =IF(AB169=0,0,$F171*$G171) -> 0.00 | W171: =IF(AC169=0,0,$F171*$G171) -> 0.00 | X171: =IF(AD169=0,0,$F171*$G171) -> 0.00 | Y171: =IF(AE169=0,0,$F171*$G171) -> 0.00 | Z171: =IF(AF169=0,0,$F171*$G171) -> 0.00 | AA171: =IF(AG169=0,0,$F171*$G171) -> 0.00 | AB171: =IF(AH169=0,0,$F171*$G171) -> 0.00 | AC171: =IF(AI169=0,0,$F171*$G171) -> 0.00 | AD171: =IF(AJ169=0,0,$F171*$G171) -> 0.00 | AE171: =IF(AK169=0,0,$F171*$G171) -> 0.00 | AF171: =IF(AL169=0,0,$F171*$G171) -> 0.00 | AG171: =IF(AM169=0,0,$F171*$G171) -> 0.00 | AH171: =IF(AN169=0,0,$F171*$G171) -> 0.00 | AI171: =IF(AO169=0,0,$F171*$G171) -> 0.00 | AJ171: =IF(AP169=0,0,$F171*$G171) -> 0.00 | AK171: =IF(AQ169=0,0,$F171*$G171) -> 0.00 | AL171: =IF(AR169=0,0,$F171*$G171) -> 0.00 | AM171: =IF(AS169=0,0,$F171*$G171) -> 0.00 | AN171: =IF(AT169=0,0,$F171*$G171) -> 0.00 | AQ171: =IF(AW169=0,0,$F171*$G171) -> 0.00 | AR171: =IF(AX169=0,0,$F171*$G171) -> 0.00 | AS171: =IF(AY169=0,0,$F171*$G171) -> 0.00 | AT171: =IF(AZ169=0,0,$F171*$G171) -> 0.00 | AU171: =IF(BA169=0,0,$F171*$G171) -> 0.00 | AV171: =IF(BB169=0,0,$F171*$G171) -> 0.00 | AW171: =IF(BC169=0,0,$F171*$G171) -> 0.00 | AX171: =IF(BD169=0,0,$F171*$G171) -> 0.00 | AY171: =IF(BE169=0,0,$F171*$G171) -> 0.00 | AZ171: =IF(BF169=0,0,$F171*$G171) -> 0.00 | BA171: =IF(BG169=0,0,$F171*$G171) -> 0.00 | BB171: =IF(BH169=0,0,$F171*$G171) -> 0.00 | BC171: =IF(BI169=0,0,$F171*$G171) -> 0.00 | BD171: =IF(BJ169=0,0,$F171*$G171) -> 0.00 | BE171: =IF(BK169=0,0,$F171*$G171) -> 0.00 | BF171: =IF(BL169=0,0,$F171*$G171) -> 0.00 | BG171: =IF(BM169=0,0,$F171*$G171) -> 0.00 | BH171: =IF(BN169=0,0,$F171*$G171) -> 0.00 | BI171: =IF(BO169=0,0,$F171*$G171) -> 0.00 | BJ171: =IF(BP169=0,0,$F171*$G171) -> 0.00 | BK171: =IF(BQ169=0,0,$F171*$G171) -> 0.00 | BL171: =IF(BR169=0,0,$F171*$G171) -> 0.00 | BM171: =IF(BS169=0,0,$F171*$G171) -> 0.00 | BN171: =IF(BT169=0,0,$F171*$G171) -> 0.00 | BO171: =IF(BU169=0,0,$F171*$G171) -> 0.00 | BP171: =IF(BV169=0,0,$F171*$G171) -> 0.00 | BQ171: =IF(BW169=0,0,$F171*$G171) -> 0.00 | BR171: =IF(BX169=0,0,$F171*$G171) -> 0.00 | BS171: =IF(BY169=0,0,$F171*$G171) -> 0.00 | BT171: =IF(BZ169=0,0,$F171*$G171) -> 0.00 | BU171: =IF(CA169=0,0,$F171*$G171) -> 0.00 | BV171: =IF(CB169=0,0,$F171*$G171) -> 0.00 | BW171: =IF(CC169=0,0,$F171*$G171) -> 0.00 | BX171: =IF(CD169=0,0,$F171*$G171) -> 0.00 | BY171: =IF(CE169=0,0,$F171*$G171) -> 0.00 | BZ171: =IF(CF169=0,0,$F171*$G171) -> 0.00 | CA171: =IF(CG169=0,0,$F171*$G171) -> 0.00 | CB171: =IF(CH169=0,0,$F171*$G171) -> 0.00 | CC171: =IF(CI169=0,0,$F171*$G171) -> 0.00 | CD171: =IF(CJ169=0,0,$F171*$G171) -> 0.00 | CE171: =IF(CK169=0,0,$F171*$G171) -> 0.00 | CF171: =IF(CL169=0,0,$F171*$G171) -> 0.00 | CG171: =IF(CM169=0,0,$F171*$G171) -> 0.00
E172: Emballage | F172: =+F171 -> 0.00 | G172: 0.58 | I172: =+I171 -> 1 | J172: =IF(P169=0,0,$F172*$G172) -> 0.00 | K172: =IF(Q169=0,0,$F172*$G172) -> 0.00 | L172: =IF(R169=0,0,$F172*$G172) -> 0.00 | M172: =IF(S169=0,0,$F172*$G172) -> 0.00 | N172: =IF(T169=0,0,$F172*$G172) -> 0.00 | O172: =IF(U169=0,0,$F172*$G172) -> 0.00 | P172: =IF(V169=0,0,$F172*$G172) -> 0.00 | Q172: =IF(W169=0,0,$F172*$G172) -> 0.00 | R172: =IF(X169=0,0,$F172*$G172) -> 0.00 | S172: =IF(Y169=0,0,$F172*$G172) -> 0.00 | T172: =IF(Z169=0,0,$F172*$G172) -> 0.00 | U172: =IF(AA169=0,0,$F172*$G172) -> 0.00 | V172: =IF(AB169=0,0,$F172*$G172) -> 0.00 | W172: =IF(AC169=0,0,$F172*$G172) -> 0.00 | X172: =IF(AD169=0,0,$F172*$G172) -> 0.00 | Y172: =IF(AE169=0,0,$F172*$G172) -> 0.00 | Z172: =IF(AF169=0,0,$F172*$G172) -> 0.00 | AA172: =IF(AG169=0,0,$F172*$G172) -> 0.00 | AB172: =IF(AH169=0,0,$F172*$G172) -> 0.00 | AC172: =IF(AI169=0,0,$F172*$G172) -> 0.00 | AD172: =IF(AJ169=0,0,$F172*$G172) -> 0.00 | AE172: =IF(AK169=0,0,$F172*$G172) -> 0.00 | AF172: =IF(AL169=0,0,$F172*$G172) -> 0.00 | AG172: =IF(AM169=0,0,$F172*$G172) -> 0.00 | AH172: =IF(AN169=0,0,$F172*$G172) -> 0.00 | AI172: =IF(AO169=0,0,$F172*$G172) -> 0.00 | AJ172: =IF(AP169=0,0,$F172*$G172) -> 0.00 | AK172: =IF(AQ169=0,0,$F172*$G172) -> 0.00 | AL172: =IF(AR169=0,0,$F172*$G172) -> 0.00 | AM172: =IF(AS169=0,0,$F172*$G172) -> 0.00 | AN172: =IF(AT169=0,0,$F172*$G172) -> 0.00 | AQ172: =IF(AW169=0,0,$F172*$G172) -> 0.00 | AR172: =IF(AX169=0,0,$F172*$G172) -> 0.00 | AS172: =IF(AY169=0,0,$F172*$G172) -> 0.00 | AT172: =IF(AZ169=0,0,$F172*$G172) -> 0.00 | AU172: =IF(BA169=0,0,$F172*$G172) -> 0.00 | AV172: =IF(BB169=0,0,$F172*$G172) -> 0.00 | AW172: =IF(BC169=0,0,$F172*$G172) -> 0.00 | AX172: =IF(BD169=0,0,$F172*$G172) -> 0.00 | AY172: =IF(BE169=0,0,$F172*$G172) -> 0.00 | AZ172: =IF(BF169=0,0,$F172*$G172) -> 0.00 | BA172: =IF(BG169=0,0,$F172*$G172) -> 0.00 | BB172: =IF(BH169=0,0,$F172*$G172) -> 0.00 | BC172: =IF(BI169=0,0,$F172*$G172) -> 0.00 | BD172: =IF(BJ169=0,0,$F172*$G172) -> 0.00 | BE172: =IF(BK169=0,0,$F172*$G172) -> 0.00 | BF172: =IF(BL169=0,0,$F172*$G172) -> 0.00 | BG172: =IF(BM169=0,0,$F172*$G172) -> 0.00 | BH172: =IF(BN169=0,0,$F172*$G172) -> 0.00 | BI172: =IF(BO169=0,0,$F172*$G172) -> 0.00 | BJ172: =IF(BP169=0,0,$F172*$G172) -> 0.00 | BK172: =IF(BQ169=0,0,$F172*$G172) -> 0.00 | BL172: =IF(BR169=0,0,$F172*$G172) -> 0.00 | BM172: =IF(BS169=0,0,$F172*$G172) -> 0.00 | BN172: =IF(BT169=0,0,$F172*$G172) -> 0.00 | BO172: =IF(BU169=0,0,$F172*$G172) -> 0.00 | BP172: =IF(BV169=0,0,$F172*$G172) -> 0.00 | BQ172: =IF(BW169=0,0,$F172*$G172) -> 0.00 | BR172: =IF(BX169=0,0,$F172*$G172) -> 0.00 | BS172: =IF(BY169=0,0,$F172*$G172) -> 0.00 | BT172: =IF(BZ169=0,0,$F172*$G172) -> 0.00 | BU172: =IF(CA169=0,0,$F172*$G172) -> 0.00 | BV172: =IF(CB169=0,0,$F172*$G172) -> 0.00 | BW172: =IF(CC169=0,0,$F172*$G172) -> 0.00 | BX172: =IF(CD169=0,0,$F172*$G172) -> 0.00 | BY172: =IF(CE169=0,0,$F172*$G172) -> 0.00 | BZ172: =IF(CF169=0,0,$F172*$G172) -> 0.00 | CA172: =IF(CG169=0,0,$F172*$G172) -> 0.00 | CB172: =IF(CH169=0,0,$F172*$G172) -> 0.00 | CC172: =IF(CI169=0,0,$F172*$G172) -> 0.00 | CD172: =IF(CJ169=0,0,$F172*$G172) -> 0.00 | CE172: =IF(CK169=0,0,$F172*$G172) -> 0.00 | CF172: =IF(CL169=0,0,$F172*$G172) -> 0.00 | CG172: =IF(CM169=0,0,$F172*$G172) -> 0.00
E173: Envoi | F173: 0.00 | G173: 0.10 | I173: =+I172 -> 1 | J173: =IF(P169=0,0,$F173*$G173) -> 0.00 | K173: =IF(Q169=0,0,$F173*$G173) -> 0.00 | L173: =IF(R169=0,0,$F173*$G173) -> 0.00 | M173: =IF(S169=0,0,$F173*$G173) -> 0.00 | N173: =IF(T169=0,0,$F173*$G173) -> 0.00 | O173: =IF(U169=0,0,$F173*$G173) -> 0.00 | P173: =IF(V169=0,0,$F173*$G173) -> 0.00 | Q173: =IF(W169=0,0,$F173*$G173) -> 0.00 | R173: =IF(X169=0,0,$F173*$G173) -> 0.00 | S173: =IF(Y169=0,0,$F173*$G173) -> 0.00 | T173: =IF(Z169=0,0,$F173*$G173) -> 0.00 | U173: =IF(AA169=0,0,$F173*$G173) -> 0.00 | V173: =IF(AB169=0,0,$F173*$G173) -> 0.00 | W173: =IF(AC169=0,0,$F173*$G173) -> 0.00 | X173: =IF(AD169=0,0,$F173*$G173) -> 0.00 | Y173: =IF(AE169=0,0,$F173*$G173) -> 0.00 | Z173: =IF(AF169=0,0,$F173*$G173) -> 0.00 | AA173: =IF(AG169=0,0,$F173*$G173) -> 0.00 | AB173: =IF(AH169=0,0,$F173*$G173) -> 0.00 | AC173: =IF(AI169=0,0,$F173*$G173) -> 0.00 | AD173: =IF(AJ169=0,0,$F173*$G173) -> 0.00 | AE173: =IF(AK169=0,0,$F173*$G173) -> 0.00 | AF173: =IF(AL169=0,0,$F173*$G173) -> 0.00 | AG173: =IF(AM169=0,0,$F173*$G173) -> 0.00 | AH173: =IF(AN169=0,0,$F173*$G173) -> 0.00 | AI173: =IF(AO169=0,0,$F173*$G173) -> 0.00 | AJ173: =IF(AP169=0,0,$F173*$G173) -> 0.00 | AK173: =IF(AQ169=0,0,$F173*$G173) -> 0.00 | AL173: =IF(AR169=0,0,$F173*$G173) -> 0.00 | AM173: =IF(AS169=0,0,$F173*$G173) -> 0.00 | AN173: =IF(AT169=0,0,$F173*$G173) -> 0.00 | AQ173: =IF(AW169=0,0,$F173*$G173) -> 0.00 | AR173: =IF(AX169=0,0,$F173*$G173) -> 0.00 | AS173: =IF(AY169=0,0,$F173*$G173) -> 0.00 | AT173: =IF(AZ169=0,0,$F173*$G173) -> 0.00 | AU173: =IF(BA169=0,0,$F173*$G173) -> 0.00 | AV173: =IF(BB169=0,0,$F173*$G173) -> 0.00 | AW173: =IF(BC169=0,0,$F173*$G173) -> 0.00 | AX173: =IF(BD169=0,0,$F173*$G173) -> 0.00 | AY173: =IF(BE169=0,0,$F173*$G173) -> 0.00 | AZ173: =IF(BF169=0,0,$F173*$G173) -> 0.00 | BA173: =IF(BG169=0,0,$F173*$G173) -> 0.00 | BB173: =IF(BH169=0,0,$F173*$G173) -> 0.00 | BC173: =IF(BI169=0,0,$F173*$G173) -> 0.00 | BD173: =IF(BJ169=0,0,$F173*$G173) -> 0.00 | BE173: =IF(BK169=0,0,$F173*$G173) -> 0.00 | BF173: =IF(BL169=0,0,$F173*$G173) -> 0.00 | BG173: =IF(BM169=0,0,$F173*$G173) -> 0.00 | BH173: =IF(BN169=0,0,$F173*$G173) -> 0.00 | BI173: =IF(BO169=0,0,$F173*$G173) -> 0.00 | BJ173: =IF(BP169=0,0,$F173*$G173) -> 0.00 | BK173: =IF(BQ169=0,0,$F173*$G173) -> 0.00 | BL173: =IF(BR169=0,0,$F173*$G173) -> 0.00 | BM173: =IF(BS169=0,0,$F173*$G173) -> 0.00 | BN173: =IF(BT169=0,0,$F173*$G173) -> 0.00 | BO173: =IF(BU169=0,0,$F173*$G173) -> 0.00 | BP173: =IF(BV169=0,0,$F173*$G173) -> 0.00 | BQ173: =IF(BW169=0,0,$F173*$G173) -> 0.00 | BR173: =IF(BX169=0,0,$F173*$G173) -> 0.00 | BS173: =IF(BY169=0,0,$F173*$G173) -> 0.00 | BT173: =IF(BZ169=0,0,$F173*$G173) -> 0.00 | BU173: =IF(CA169=0,0,$F173*$G173) -> 0.00 | BV173: =IF(CB169=0,0,$F173*$G173) -> 0.00 | BW173: =IF(CC169=0,0,$F173*$G173) -> 0.00 | BX173: =IF(CD169=0,0,$F173*$G173) -> 0.00 | BY173: =IF(CE169=0,0,$F173*$G173) -> 0.00 | BZ173: =IF(CF169=0,0,$F173*$G173) -> 0.00 | CA173: =IF(CG169=0,0,$F173*$G173) -> 0.00 | CB173: =IF(CH169=0,0,$F173*$G173) -> 0.00 | CC173: =IF(CI169=0,0,$F173*$G173) -> 0.00 | CD173: =IF(CJ169=0,0,$F173*$G173) -> 0.00 | CE173: =IF(CK169=0,0,$F173*$G173) -> 0.00 | CF173: =IF(CL169=0,0,$F173*$G173) -> 0.00 | CG173: =IF(CM169=0,0,$F173*$G173) -> 0.00
C175: =+C181+1 -> 7 | D175: =C175+$A$121 -> 128 | E175: VENTE | F175: =+C128 -> 7.00 | G175: =+G128 -> 4.00 | H175: =ROW(H175) -> 175 | I175: =$A$103+C175 -> 110 | J175: =IF(J110=0,0,J110) -> 0.00 | K175: =IF(K110=0,0,K110) -> 0.00 | L175: 0.00 | M175: 0.00 | N175: 0.00 | O175: 0.00 | P175: 0.00 | Q175: 0.00 | R175: 0.00 | S175: 0.00 | T175: 0.00 | U175: 0.00 | V175: 0.00 | W175: 0.00 | X175: 0.00 | Y175: 0.00 | Z175: 0.00 | AA175: 0.00 | AB175: 0.00 | AC175: 0.00 | AD175: 0.00 | AE175: 0.00 | AF175: 0.00 | AG175: 0.00 | AH175: 0.00 | AI175: 0.00 | AJ175: 0.00 | AK175: 0.00 | AL175: 0.00 | AM175: 0.00 | AN175: 0.00 | AO175: 0.00 | AP175: 0.00 | AQ175: 0.00 | AR175: 0.00 | AS175: 0.00 | AT175: 0.00 | AU175: 0.00 | AV175: 0.00 | AW175: 0.00 | AX175: 0.00 | AY175: 0.00 | AZ175: 0.00 | BA175: 0.00 | BB175: 0.00 | BC175: 0.00 | BD175: 0.00 | BE175: 0.00 | BF175: 0.00 | BG175: 0.00 | BH175: 0.00 | BI175: 0.00 | BJ175: 0.00 | BK175: 0.00 | BL175: 0.00 | BM175: 0.00 | BN175: 0.00 | BO175: 0.00 | BP175: 0.00 | BQ175: 0.00 | BR175: 0.00 | BS175: 0.00 | BT175: 0.00 | BU175: 0.00 | BV175: 0.00 | BW175: =IF(BW110=0,0,BW110) -> 0.00 | BX175: 0.00 | BY175: 0.00 | BZ175: 0.00 | CA175: 0.00 | CB175: 0.00 | CC175: 0.00 | CD175: 0.00 | CE175: 0.00 | CF175: 0.00 | CG175: 0.00
E176: ACHAT | F176: =+F128 -> 0.00 | G176: =G175-G177-G178-G179 -> 2.55 | I176: =+I128 -> 1 | J176: =IF(J175=0,0,$F176*$G176) -> 0.00 | K176: 0.00 | L176: 0.00 | M176: 0.00 | N176: 0.00 | O176: 0.00 | P176: 0.00 | Q176: 0.00 | R176: 0.00 | S176: 0.00 | T176: 0.00 | U176: 0.00 | V176: 0.00 | W176: 0.00 | X176: 0.00 | Y176: 0.00 | Z176: 0.00 | AA176: 0.00 | AB176: 0.00 | AC176: 0.00 | AD176: 0.00 | AE176: 0.00 | AF176: 0.00 | AG176: 0.00 | AH176: 0.00 | AI176: 0.00 | AJ176: 0.00 | AK176: 0.00 | AL176: 0.00 | AM176: 0.00 | AN176: 0.00 | AQ176: =IF(AQ175=0,0,$F176*$G176) -> 0.00 | AR176: 0.00 | AS176: 0.00 | AT176: 0.00 | AU176: 0.00 | AV176: 0.00 | AW176: 0.00 | AX176: 0.00 | AY176: 0.00 | AZ176: 0.00 | BA176: 0.00 | BB176: 0.00 | BC176: 0.00 | BD176: 0.00 | BE176: 0.00 | BF176: 0.00 | BG176: 0.00 | BH176: 0.00 | BI176: 0.00 | BJ176: 0.00 | BK176: 0.00 | BL176: 0.00 | BM176: 0.00 | BN176: 0.00 | BO176: 0.00 | BP176: 0.00 | BQ176: 0.00 | BR176: 0.00 | BS176: 0.00 | BT176: 0.00 | BU176: 0.00 | BV176: 0.00 | BW176: 0.00 | BX176: 0.00 | BY176: 0.00 | BZ176: 0.00 | CA176: 0.00 | CB176: 0.00 | CC176: 0.00 | CD176: 0.00 | CE176: 0.00 | CF176: 0.00 | CG176: 0.00
E177: Fabrication | F177: =+F176 -> 0.00 | G177: 0.77 | I177: =+I176 -> 1 | J177: =IF(P175=0,0,$F177*$G177) -> 0.00 | K177: 0.00 | L177: 0.00 | M177: 0.00 | N177: 0.00 | O177: 0.00 | P177: 0.00 | Q177: 0.00 | R177: 0.00 | S177: 0.00 | T177: 0.00 | U177: 0.00 | V177: 0.00 | W177: 0.00 | X177: 0.00 | Y177: 0.00 | Z177: 0.00 | AA177: 0.00 | AB177: 0.00 | AC177: 0.00 | AD177: 0.00 | AE177: 0.00 | AF177: 0.00 | AG177: 0.00 | AH177: 0.00 | AI177: 0.00 | AJ177: 0.00 | AK177: 0.00 | AL177: 0.00 | AM177: 0.00 | AN177: 0.00 | AQ177: =IF(AW175=0,0,$F177*$G177) -> 0.00 | AR177: 0.00 | AS177: 0.00 | AT177: 0.00 | AU177: 0.00 | AV177: 0.00 | AW177: 0.00 | AX177: 0.00 | AY177: 0.00 | AZ177: 0.00 | BA177: 0.00 | BB177: 0.00 | BC177: 0.00 | BD177: 0.00 | BE177: 0.00 | BF177: 0.00 | BG177: 0.00 | BH177: 0.00 | BI177: 0.00 | BJ177: 0.00 | BK177: 0.00 | BL177: 0.00 | BM177: 0.00 | BN177: 0.00 | BO177: 0.00 | BP177: 0.00 | BQ177: 0.00 | BR177: 0.00 | BS177: 0.00 | BT177: 0.00 | BU177: 0.00 | BV177: 0.00 | BW177: 0.00 | BX177: 0.00 | BY177: 0.00 | BZ177: 0.00 | CA177: 0.00 | CB177: 0.00 | CC177: 0.00 | CD177: 0.00 | CE177: 0.00 | CF177: 0.00 | CG177: 0.00
E178: Emballage | F178: =+F177 -> 0.00 | G178: 0.58 | I178: =+I177 -> 1 | J178: =IF(P175=0,0,$F178*$G178) -> 0.00 | K178: 0.00 | L178: 0.00 | M178: 0.00 | N178: 0.00 | O178: 0.00 | P178: 0.00 | Q178: 0.00 | R178: 0.00 | S178: 0.00 | T178: 0.00 | U178: 0.00 | V178: 0.00 | W178: 0.00 | X178: 0.00 | Y178: 0.00 | Z178: 0.00 | AA178: 0.00 | AB178: 0.00 | AC178: 0.00 | AD178: 0.00 | AE178: 0.00 | AF178: 0.00 | AG178: 0.00 | AH178: 0.00 | AI178: 0.00 | AJ178: 0.00 | AK178: 0.00 | AL178: 0.00 | AM178: 0.00 | AN178: 0.00 | AQ178: =IF(AW175=0,0,$F178*$G178) -> 0.00 | AR178: 0.00 | AS178: 0.00 | AT178: 0.00 | AU178: 0.00 | AV178: 0.00 | AW178: 0.00 | AX178: 0.00 | AY178: 0.00 | AZ178: 0.00 | BA178: 0.00 | BB178: 0.00 | BC178: 0.00 | BD178: 0.00 | BE178: 0.00 | BF178: 0.00 | BG178: 0.00 | BH178: 0.00 | BI178: 0.00 | BJ178: 0.00 | BK178: 0.00 | BL178: 0.00 | BM178: 0.00 | BN178: 0.00 | BO178: 0.00 | BP178: 0.00 | BQ178: 0.00 | BR178: 0.00 | BS178: 0.00 | BT178: 0.00 | BU178: 0.00 | BV178: 0.00 | BW178: 0.00 | BX178: 0.00 | BY178: 0.00 | BZ178: 0.00 | CA178: 0.00 | CB178: 0.00 | CC178: 0.00 | CD178: 0.00 | CE178: 0.00 | CF178: 0.00 | CG178: 0.00
E179: Envoi | F179: 0.00 | G179: 0.10 | I179: =+I178 -> 1 | J179: =IF(P175=0,0,$F179*$G179) -> 0.00 | K179: 0.00 | L179: 0.00 | M179: 0.00 | N179: 0.00 | O179: 0.00 | P179: 0.00 | Q179: 0.00 | R179: 0.00 | S179: 0.00 | T179: 0.00 | U179: 0.00 | V179: 0.00 | W179: 0.00 | X179: 0.00 | Y179: 0.00 | Z179: 0.00 | AA179: 0.00 | AB179: 0.00 | AC179: 0.00 | AD179: 0.00 | AE179: 0.00 | AF179: 0.00 | AG179: 0.00 | AH179: 0.00 | AI179: 0.00 | AJ179: 0.00 | AK179: 0.00 | AL179: 0.00 | AM179: 0.00 | AN179: 0.00 | AQ179: =IF(AW175=0,0,$F179*$G179) -> 0.00 | AR179: 0.00 | AS179: 0.00 | AT179: 0.00 | AU179: 0.00 | AV179: 0.00 | AW179: 0.00 | AX179: 0.00 | AY179: 0.00 | AZ179: 0.00 | BA179: 0.00 | BB179: 0.00 | BC179: 0.00 | BD179: 0.00 | BE179: 0.00 | BF179: 0.00 | BG179: 0.00 | BH179: 0.00 | BI179: 0.00 | BJ179: 0.00 | BK179: 0.00 | BL179: 0.00 | BM179: 0.00 | BN179: 0.00 | BO179: 0.00 | BP179: 0.00 | BQ179: 0.00 | BR179: 0.00 | BS179: 0.00 | BT179: 0.00 | BU179: 0.00 | BV179: 0.00 | BW179: 0.00 | BX179: 0.00 | BY179: 0.00 | BZ179: 0.00 | CA179: 0.00 | CB179: 0.00 | CC179: 0.00 | CD179: 0.00 | CE179: 0.00 | CF179: 0.00 | CG179: 0.00
C181: =+C187+1 -> 6 | D181: =C181+$A$121 -> 127 | E181: VENTE | F181: =+C127 -> 6.00 | G181: =+G127 -> 4.00 | H181: Prix achat | I181: =$A$103+C181 -> 109 | J181: =IF(J109=0,0,J109) -> 0.00 | K181: =IF(K109=0,0,K109) -> 0.00 | L181: 0.00 | M181: 0.00 | N181: 0.00 | O181: 0.00 | P181: 0.00 | Q181: 0.00 | R181: 0.00 | S181: 0.00 | T181: 0.00 | U181: 0.00 | V181: 0.00 | W181: 0.00 | X181: 0.00 | Y181: 0.00 | Z181: 0.00 | AA181: 0.00 | AB181: 0.00 | AC181: 0.00 | AD181: 0.00 | AE181: 0.00 | AF181: 0.00 | AG181: 0.00 | AH181: 0.00 | AI181: 0.00 | AJ181: 0.00 | AK181: 0.00 | AL181: 0.00 | AM181: 0.00 | AN181: 0.00 | AO181: 0.00 | AP181: 0.00 | AQ181: 0.00 | AR181: 0.00 | AS181: 0.00 | AT181: 0.00 | AU181: 0.00 | AV181: 0.00 | AW181: 0.00 | AX181: 0.00 | AY181: 0.00 | AZ181: 0.00 | BA181: 0.00 | BB181: 0.00 | BC181: 0.00 | BD181: 0.00 | BE181: 0.00 | BF181: 0.00 | BG181: 0.00 | BH181: 0.00 | BI181: 0.00 | BJ181: 0.00 | BK181: 0.00 | BL181: 0.00 | BM181: 0.00 | BN181: 0.00 | BO181: 0.00 | BP181: 0.00 | BQ181: 0.00 | BR181: 0.00 | BS181: 0.00 | BT181: 0.00 | BU181: 0.00 | BV181: 0.00 | BW181: =IF(BW109=0,0,BW109) -> 0.00 | BX181: 0.00 | BY181: 0.00 | BZ181: 0.00 | CA181: 0.00 | CB181: 0.00 | CC181: 0.00 | CD181: 0.00 | CE181: 0.00 | CF181: 0.00 | CG181: 0.00
E182: ACHAT | F182: =+F127 -> 0.00 | G182: =G181-G183-G184-G185 -> 2.55 | I182: =+I127 -> 1 | J182: =IF(J181=0,0,$F182*$G182) -> 0.00 | K182: 0.00 | L182: 0.00 | M182: 0.00 | N182: 0.00 | O182: 0.00 | P182: 0.00 | Q182: 0.00 | R182: 0.00 | S182: 0.00 | T182: 0.00 | U182: 0.00 | V182: 0.00 | W182: 0.00 | X182: 0.00 | Y182: 0.00 | Z182: 0.00 | AA182: 0.00 | AB182: 0.00 | AC182: 0.00 | AD182: 0.00 | AE182: 0.00 | AF182: 0.00 | AG182: 0.00 | AH182: 0.00 | AI182: 0.00 | AJ182: 0.00 | AK182: 0.00 | AL182: 0.00 | AM182: 0.00 | AN182: 0.00 | AQ182: =IF(AQ181=0,0,$F182*$G182) -> 0.00 | AR182: 0.00 | AS182: 0.00 | AT182: 0.00 | AU182: 0.00 | AV182: 0.00 | AW182: 0.00 | AX182: 0.00 | AY182: 0.00 | AZ182: 0.00 | BA182: 0.00 | BB182: 0.00 | BC182: 0.00 | BD182: 0.00 | BE182: 0.00 | BF182: 0.00 | BG182: 0.00 | BH182: 0.00 | BI182: 0.00 | BJ182: 0.00 | BK182: 0.00 | BL182: 0.00 | BM182: 0.00 | BN182: 0.00 | BO182: 0.00 | BP182: 0.00 | BQ182: 0.00 | BR182: 0.00 | BS182: 0.00 | BT182: 0.00 | BU182: 0.00 | BV182: 0.00 | BW182: 0.00 | BX182: 0.00 | BY182: 0.00 | BZ182: 0.00 | CA182: 0.00 | CB182: 0.00 | CC182: 0.00 | CD182: 0.00 | CE182: 0.00 | CF182: 0.00 | CG182: 0.00
E183: Fabrication | F183: =+F182 -> 0.00 | G183: 0.77 | I183: =+I182 -> 1 | J183: =IF(P181=0,0,$F183*$G183) -> 0.00 | K183: 0.00 | L183: 0.00 | M183: 0.00 | N183: 0.00 | O183: 0.00 | P183: 0.00 | Q183: 0.00 | R183: 0.00 | S183: 0.00 | T183: 0.00 | U183: 0.00 | V183: 0.00 | W183: 0.00 | X183: 0.00 | Y183: 0.00 | Z183: 0.00 | AA183: 0.00 | AB183: 0.00 | AC183: 0.00 | AD183: 0.00 | AE183: 0.00 | AF183: 0.00 | AG183: 0.00 | AH183: 0.00 | AI183: 0.00 | AJ183: 0.00 | AK183: 0.00 | AL183: 0.00 | AM183: 0.00 | AN183: 0.00 | AQ183: =IF(AW181=0,0,$F183*$G183) -> 0.00 | AR183: 0.00 | AS183: 0.00 | AT183: 0.00 | AU183: 0.00 | AV183: 0.00 | AW183: 0.00 | AX183: 0.00 | AY183: 0.00 | AZ183: 0.00 | BA183: 0.00 | BB183: 0.00 | BC183: 0.00 | BD183: 0.00 | BE183: 0.00 | BF183: 0.00 | BG183: 0.00 | BH183: 0.00 | BI183: 0.00 | BJ183: 0.00 | BK183: 0.00 | BL183: 0.00 | BM183: 0.00 | BN183: 0.00 | BO183: 0.00 | BP183: 0.00 | BQ183: 0.00 | BR183: 0.00 | BS183: 0.00 | BT183: 0.00 | BU183: 0.00 | BV183: 0.00 | BW183: 0.00 | BX183: 0.00 | BY183: 0.00 | BZ183: 0.00 | CA183: 0.00 | CB183: 0.00 | CC183: 0.00 | CD183: 0.00 | CE183: 0.00 | CF183: 0.00 | CG183: 0.00
E184: Emballage | F184: =+F183 -> 0.00 | G184: 0.58 | I184: =+I183 -> 1 | J184: =IF(P181=0,0,$F184*$G184) -> 0.00 | K184: 0.00 | L184: 0.00 | M184: 0.00 | N184: 0.00 | O184: 0.00 | P184: 0.00 | Q184: 0.00 | R184: 0.00 | S184: 0.00 | T184: 0.00 | U184: 0.00 | V184: 0.00 | W184: 0.00 | X184: 0.00 | Y184: 0.00 | Z184: 0.00 | AA184: 0.00 | AB184: 0.00 | AC184: 0.00 | AD184: 0.00 | AE184: 0.00 | AF184: 0.00 | AG184: 0.00 | AH184: 0.00 | AI184: 0.00 | AJ184: 0.00 | AK184: 0.00 | AL184: 0.00 | AM184: 0.00 | AN184: 0.00 | AQ184: =IF(AW181=0,0,$F184*$G184) -> 0.00 | AR184: 0.00 | AS184: 0.00 | AT184: 0.00 | AU184: 0.00 | AV184: 0.00 | AW184: 0.00 | AX184: 0.00 | AY184: 0.00 | AZ184: 0.00 | BA184: 0.00 | BB184: 0.00 | BC184: 0.00 | BD184: 0.00 | BE184: 0.00 | BF184: 0.00 | BG184: 0.00 | BH184: 0.00 | BI184: 0.00 | BJ184: 0.00 | BK184: 0.00 | BL184: 0.00 | BM184: 0.00 | BN184: 0.00 | BO184: 0.00 | BP184: 0.00 | BQ184: 0.00 | BR184: 0.00 | BS184: 0.00 | BT184: 0.00 | BU184: 0.00 | BV184: 0.00 | BW184: 0.00 | BX184: 0.00 | BY184: 0.00 | BZ184: 0.00 | CA184: 0.00 | CB184: 0.00 | CC184: 0.00 | CD184: 0.00 | CE184: 0.00 | CF184: 0.00 | CG184: 0.00
E185: Envoi | F185: 0.00 | G185: 0.10 | I185: =+I184 -> 1 | J185: =IF(P181=0,0,$F185*$G185) -> 0.00 | K185: 0.00 | L185: 0.00 | M185: 0.00 | N185: 0.00 | O185: 0.00 | P185: 0.00 | Q185: 0.00 | R185: 0.00 | S185: 0.00 | T185: 0.00 | U185: 0.00 | V185: 0.00 | W185: 0.00 | X185: 0.00 | Y185: 0.00 | Z185: 0.00 | AA185: 0.00 | AB185: 0.00 | AC185: 0.00 | AD185: 0.00 | AE185: 0.00 | AF185: 0.00 | AG185: 0.00 | AH185: 0.00 | AI185: 0.00 | AJ185: 0.00 | AK185: 0.00 | AL185: 0.00 | AM185: 0.00 | AN185: 0.00 | AQ185: =IF(AW181=0,0,$F185*$G185) -> 0.00 | AR185: 0.00 | AS185: 0.00 | AT185: 0.00 | AU185: 0.00 | AV185: 0.00 | AW185: 0.00 | AX185: 0.00 | AY185: 0.00 | AZ185: 0.00 | BA185: 0.00 | BB185: 0.00 | BC185: 0.00 | BD185: 0.00 | BE185: 0.00 | BF185: 0.00 | BG185: 0.00 | BH185: 0.00 | BI185: 0.00 | BJ185: 0.00 | BK185: 0.00 | BL185: 0.00 | BM185: 0.00 | BN185: 0.00 | BO185: 0.00 | BP185: 0.00 | BQ185: 0.00 | BR185: 0.00 | BS185: 0.00 | BT185: 0.00 | BU185: 0.00 | BV185: 0.00 | BW185: 0.00 | BX185: 0.00 | BY185: 0.00 | BZ185: 0.00 | CA185: 0.00 | CB185: 0.00 | CC185: 0.00 | CD185: 0.00 | CE185: 0.00 | CF185: 0.00 | CG185: 0.00
C187: =+C193+1 -> 5 | D187: =C187+$A$121 -> 126 | E187: VENTE | F187: =+C126 -> 5.00 | G187: =+G126 -> 4.00 | H187: Prix achat | I187: =$A$103+C187 -> 108 | J187: =IF(J108=0,0,J108) -> 0.00 | K187: =IF(K108=0,0,K108) -> 0.00 | L187: 0.00 | M187: 0.00 | N187: 0.00 | O187: 0.00 | P187: 0.00 | Q187: 0.00 | R187: 0.00 | S187: 0.00 | T187: 0.00 | U187: 0.00 | V187: 0.00 | W187: 0.00 | X187: 0.00 | Y187: 0.00 | Z187: 0.00 | AA187: 0.00 | AB187: 0.00 | AC187: 0.00 | AD187: 0.00 | AE187: 0.00 | AF187: 0.00 | AG187: 0.00 | AH187: 0.00 | AI187: 0.00 | AJ187: 0.00 | AK187: 0.00 | AL187: 0.00 | AM187: 0.00 | AN187: 0.00 | AO187: 0.00 | AP187: 0.00 | AQ187: 0.00 | AR187: 0.00 | AS187: 0.00 | AT187: 0.00 | AU187: 0.00 | AV187: 0.00 | AW187: 0.00 | AX187: 0.00 | AY187: 0.00 | AZ187: 0.00 | BA187: 0.00 | BB187: 0.00 | BC187: 0.00 | BD187: 0.00 | BE187: 0.00 | BF187: 0.00 | BG187: 0.00 | BH187: 0.00 | BI187: 0.00 | BJ187: 0.00 | BK187: 0.00 | BL187: 0.00 | BM187: 0.00 | BN187: 0.00 | BO187: 0.00 | BP187: 0.00 | BQ187: 0.00 | BR187: 0.00 | BS187: 0.00 | BT187: 0.00 | BU187: 0.00 | BV187: 0.00 | BW187: =IF(BW108=0,0,BW108) -> 0.00 | BX187: 0.00 | BY187: 0.00 | BZ187: 0.00 | CA187: 0.00 | CB187: 0.00 | CC187: 0.00 | CD187: 0.00 | CE187: 0.00 | CF187: 0.00 | CG187: 0.00
E188: ACHAT | F188: =+F126 -> 0.00 | G188: =G187-G189-G190-G191 -> 2.55 | I188: =+I126 -> 1 | J188: =IF(J187=0,0,$F188*$G188) -> 0.00 | K188: 0.00 | L188: 0.00 | M188: 0.00 | N188: 0.00 | O188: 0.00 | P188: 0.00 | Q188: 0.00 | R188: 0.00 | S188: 0.00 | T188: 0.00 | U188: 0.00 | V188: 0.00 | W188: 0.00 | X188: 0.00 | Y188: 0.00 | Z188: 0.00 | AA188: 0.00 | AB188: 0.00 | AC188: 0.00 | AD188: 0.00 | AE188: 0.00 | AF188: 0.00 | AG188: 0.00 | AH188: 0.00 | AI188: 0.00 | AJ188: 0.00 | AK188: 0.00 | AL188: 0.00 | AM188: 0.00 | AN188: 0.00 | AQ188: =IF(AQ187=0,0,$F188*$G188) -> 0.00 | AR188: 0.00 | AS188: 0.00 | AT188: 0.00 | AU188: 0.00 | AV188: 0.00 | AW188: 0.00 | AX188: 0.00 | AY188: 0.00 | AZ188: 0.00 | BA188: 0.00 | BB188: 0.00 | BC188: 0.00 | BD188: 0.00 | BE188: 0.00 | BF188: 0.00 | BG188: 0.00 | BH188: 0.00 | BI188: 0.00 | BJ188: 0.00 | BK188: 0.00 | BL188: 0.00 | BM188: 0.00 | BN188: 0.00 | BO188: 0.00 | BP188: 0.00 | BQ188: 0.00 | BR188: 0.00 | BS188: 0.00 | BT188: 0.00 | BU188: 0.00 | BV188: 0.00 | BW188: 0.00 | BX188: 0.00 | BY188: 0.00 | BZ188: 0.00 | CA188: 0.00 | CB188: 0.00 | CC188: 0.00 | CD188: 0.00 | CE188: 0.00 | CF188: 0.00 | CG188: 0.00
E189: Fabrication | F189: =+F188 -> 0.00 | G189: 0.77 | I189: =+I188 -> 1 | J189: =IF(P187=0,0,$F189*$G189) -> 0.00 | K189: 0.00 | L189: 0.00 | M189: 0.00 | N189: 0.00 | O189: 0.00 | P189: 0.00 | Q189: 0.00 | R189: 0.00 | S189: 0.00 | T189: 0.00 | U189: 0.00 | V189: 0.00 | W189: 0.00 | X189: 0.00 | Y189: 0.00 | Z189: 0.00 | AA189: 0.00 | AB189: 0.00 | AC189: 0.00 | AD189: 0.00 | AE189: 0.00 | AF189: 0.00 | AG189: 0.00 | AH189: 0.00 | AI189: 0.00 | AJ189: 0.00 | AK189: 0.00 | AL189: 0.00 | AM189: 0.00 | AN189: 0.00 | AQ189: =IF(AW187=0,0,$F189*$G189) -> 0.00 | AR189: 0.00 | AS189: 0.00 | AT189: 0.00 | AU189: 0.00 | AV189: 0.00 | AW189: 0.00 | AX189: 0.00 | AY189: 0.00 | AZ189: 0.00 | BA189: 0.00 | BB189: 0.00 | BC189: 0.00 | BD189: 0.00 | BE189: 0.00 | BF189: 0.00 | BG189: 0.00 | BH189: 0.00 | BI189: 0.00 | BJ189: 0.00 | BK189: 0.00 | BL189: 0.00 | BM189: 0.00 | BN189: 0.00 | BO189: 0.00 | BP189: 0.00 | BQ189: 0.00 | BR189: 0.00 | BS189: 0.00 | BT189: 0.00 | BU189: 0.00 | BV189: 0.00 | BW189: 0.00 | BX189: 0.00 | BY189: 0.00 | BZ189: 0.00 | CA189: 0.00 | CB189: 0.00 | CC189: 0.00 | CD189: 0.00 | CE189: 0.00 | CF189: 0.00 | CG189: 0.00
E190: Emballage | F190: =+F189 -> 0.00 | G190: 0.58 | I190: =+I189 -> 1 | J190: =IF(P187=0,0,$F190*$G190) -> 0.00 | K190: 0.00 | L190: 0.00 | M190: 0.00 | N190: 0.00 | O190: 0.00 | P190: 0.00 | Q190: 0.00 | R190: 0.00 | S190: 0.00 | T190: 0.00 | U190: 0.00 | V190: 0.00 | W190: 0.00 | X190: 0.00 | Y190: 0.00 | Z190: 0.00 | AA190: 0.00 | AB190: 0.00 | AC190: 0.00 | AD190: 0.00 | AE190: 0.00 | AF190: 0.00 | AG190: 0.00 | AH190: 0.00 | AI190: 0.00 | AJ190: 0.00 | AK190: 0.00 | AL190: 0.00 | AM190: 0.00 | AN190: 0.00 | AQ190: =IF(AW187=0,0,$F190*$G190) -> 0.00 | AR190: 0.00 | AS190: 0.00 | AT190: 0.00 | AU190: 0.00 | AV190: 0.00 | AW190: 0.00 | AX190: 0.00 | AY190: 0.00 | AZ190: 0.00 | BA190: 0.00 | BB190: 0.00 | BC190: 0.00 | BD190: 0.00 | BE190: 0.00 | BF190: 0.00 | BG190: 0.00 | BH190: 0.00 | BI190: 0.00 | BJ190: 0.00 | BK190: 0.00 | BL190: 0.00 | BM190: 0.00 | BN190: 0.00 | BO190: 0.00 | BP190: 0.00 | BQ190: 0.00 | BR190: 0.00 | BS190: 0.00 | BT190: 0.00 | BU190: 0.00 | BV190: 0.00 | BW190: 0.00 | BX190: 0.00 | BY190: 0.00 | BZ190: 0.00 | CA190: 0.00 | CB190: 0.00 | CC190: 0.00 | CD190: 0.00 | CE190: 0.00 | CF190: 0.00 | CG190: 0.00
E191: Envoi | F191: 0.00 | G191: 0.10 | I191: =+I190 -> 1 | J191: =IF(P187=0,0,$F191*$G191) -> 0.00 | K191: 0.00 | L191: 0.00 | M191: 0.00 | N191: 0.00 | O191: 0.00 | P191: 0.00 | Q191: 0.00 | R191: 0.00 | S191: 0.00 | T191: 0.00 | U191: 0.00 | V191: 0.00 | W191: 0.00 | X191: 0.00 | Y191: 0.00 | Z191: 0.00 | AA191: 0.00 | AB191: 0.00 | AC191: 0.00 | AD191: 0.00 | AE191: 0.00 | AF191: 0.00 | AG191: 0.00 | AH191: 0.00 | AI191: 0.00 | AJ191: 0.00 | AK191: 0.00 | AL191: 0.00 | AM191: 0.00 | AN191: 0.00 | AQ191: =IF(AW187=0,0,$F191*$G191) -> 0.00 | AR191: 0.00 | AS191: 0.00 | AT191: 0.00 | AU191: 0.00 | AV191: 0.00 | AW191: 0.00 | AX191: 0.00 | AY191: 0.00 | AZ191: 0.00 | BA191: 0.00 | BB191: 0.00 | BC191: 0.00 | BD191: 0.00 | BE191: 0.00 | BF191: 0.00 | BG191: 0.00 | BH191: 0.00 | BI191: 0.00 | BJ191: 0.00 | BK191: 0.00 | BL191: 0.00 | BM191: 0.00 | BN191: 0.00 | BO191: 0.00 | BP191: 0.00 | BQ191: 0.00 | BR191: 0.00 | BS191: 0.00 | BT191: 0.00 | BU191: 0.00 | BV191: 0.00 | BW191: 0.00 | BX191: 0.00 | BY191: 0.00 | BZ191: 0.00 | CA191: 0.00 | CB191: 0.00 | CC191: 0.00 | CD191: 0.00 | CE191: 0.00 | CF191: 0.00 | CG191: 0.00
C193: =+C199+1 -> 4 | D193: =C193+$A$121 -> 125 | E193: VENTE | F193: =+C125 -> 4.00 | G193: =+G125 -> 4.00 | H193: Prix achat | I193: =$A$103+C193 -> 107 | J193: =IF(J107=0,0,J107) -> 0.00 | K193: =IF(K107=0,0,K107) -> 0.00 | L193: 0.00 | M193: 0.00 | N193: 0.00 | O193: 0.00 | P193: 0.00 | Q193: 0.00 | R193: 0.00 | S193: 0.00 | T193: 0.00 | U193: 0.00 | V193: 0.00 | W193: 0.00 | X193: 0.00 | Y193: 0.00 | Z193: 0.00 | AA193: 0.00 | AB193: 0.00 | AC193: 0.00 | AD193: 0.00 | AE193: 0.00 | AF193: 0.00 | AG193: 0.00 | AH193: 0.00 | AI193: 0.00 | AJ193: 0.00 | AK193: 0.00 | AL193: 0.00 | AM193: 0.00 | AN193: 0.00 | AO193: 0.00 | AP193: 0.00 | AQ193: 0.00 | AR193: 0.00 | AS193: 0.00 | AT193: 0.00 | AU193: 0.00 | AV193: 0.00 | AW193: 0.00 | AX193: 0.00 | AY193: 0.00 | AZ193: 0.00 | BA193: 0.00 | BB193: 0.00 | BC193: 0.00 | BD193: 0.00 | BE193: 0.00 | BF193: 0.00 | BG193: 0.00 | BH193: 0.00 | BI193: 0.00 | BJ193: 0.00 | BK193: 0.00 | BL193: 0.00 | BM193: 0.00 | BN193: 0.00 | BO193: 0.00 | BP193: 0.00 | BQ193: 0.00 | BR193: 0.00 | BS193: 0.00 | BT193: 0.00 | BU193: 0.00 | BV193: 0.00 | BW193: =IF(BW107=0,0,BW107) -> 0.00 | BX193: 0.00 | BY193: 0.00 | BZ193: 0.00 | CA193: 0.00 | CB193: 0.00 | CC193: 0.00 | CD193: 0.00 | CE193: 0.00 | CF193: 0.00 | CG193: 0.00
E194: ACHAT | F194: =+F125 -> 10,000.00 | G194: =G193-G195-G196-G197 -> 2.55 | I194: =+I125 -> 1 | J194: =IF(J193=0,0,$F194*$G194) -> 0.00 | K194: 0.00 | L194: 0.00 | M194: 0.00 | N194: 0.00 | O194: 0.00 | P194: 0.00 | Q194: 0.00 | R194: 0.00 | S194: 0.00 | T194: 0.00 | U194: 0.00 | V194: 0.00 | W194: 0.00 | X194: 0.00 | Y194: 0.00 | Z194: 0.00 | AA194: 0.00 | AB194: 0.00 | AC194: 0.00 | AD194: 0.00 | AE194: 0.00 | AF194: 0.00 | AG194: 0.00 | AH194: 0.00 | AI194: 0.00 | AJ194: 0.00 | AK194: 0.00 | AL194: 0.00 | AM194: 0.00 | AN194: 0.00 | AQ194: =IF(AQ193=0,0,$F194*$G194) -> 0.00 | AR194: 0.00 | AS194: 0.00 | AT194: 0.00 | AU194: 0.00 | AV194: 0.00 | AW194: 0.00 | AX194: 0.00 | AY194: 0.00 | AZ194: 0.00 | BA194: 0.00 | BB194: 0.00 | BC194: 0.00 | BD194: 0.00 | BE194: 0.00 | BF194: 0.00 | BG194: 0.00 | BH194: 0.00 | BI194: 0.00 | BJ194: 0.00 | BK194: 0.00 | BL194: 0.00 | BM194: 0.00 | BN194: 0.00 | BO194: 0.00 | BP194: 0.00 | BQ194: 0.00 | BR194: 0.00 | BS194: 0.00 | BT194: 0.00 | BU194: 0.00 | BV194: 0.00 | BW194: 0.00 | BX194: 0.00 | BY194: 0.00 | BZ194: 0.00 | CA194: 0.00 | CB194: 0.00 | CC194: 0.00 | CD194: 0.00 | CE194: 0.00 | CF194: 0.00 | CG194: 0.00
E195: Fabrication | F195: =+F194 -> 10,000.00 | G195: 0.77 | I195: =+I194 -> 1 | J195: =IF(P193=0,0,$F195*$G195) -> 0.00 | K195: 0.00 | L195: 0.00 | M195: 0.00 | N195: 0.00 | O195: 0.00 | P195: 0.00 | Q195: 0.00 | R195: 0.00 | S195: 0.00 | T195: 0.00 | U195: 0.00 | V195: 0.00 | W195: 0.00 | X195: 0.00 | Y195: 0.00 | Z195: 0.00 | AA195: 0.00 | AB195: 0.00 | AC195: 0.00 | AD195: 0.00 | AE195: 0.00 | AF195: 0.00 | AG195: 0.00 | AH195: 0.00 | AI195: 0.00 | AJ195: 0.00 | AK195: 0.00 | AL195: 0.00 | AM195: 0.00 | AN195: 0.00 | AQ195: =IF(AW193=0,0,$F195*$G195) -> 0.00 | AR195: 0.00 | AS195: 0.00 | AT195: 0.00 | AU195: 0.00 | AV195: 0.00 | AW195: 0.00 | AX195: 0.00 | AY195: 0.00 | AZ195: 0.00 | BA195: 0.00 | BB195: 0.00 | BC195: 0.00 | BD195: 0.00 | BE195: 0.00 | BF195: 0.00 | BG195: 0.00 | BH195: 0.00 | BI195: 0.00 | BJ195: 0.00 | BK195: 0.00 | BL195: 0.00 | BM195: 0.00 | BN195: 0.00 | BO195: 0.00 | BP195: 0.00 | BQ195: 0.00 | BR195: 0.00 | BS195: 0.00 | BT195: 0.00 | BU195: 0.00 | BV195: 0.00 | BW195: 0.00 | BX195: 0.00 | BY195: 0.00 | BZ195: 0.00 | CA195: 0.00 | CB195: 0.00 | CC195: 0.00 | CD195: 0.00 | CE195: 0.00 | CF195: 0.00 | CG195: 0.00
E196: Emballage | F196: =+F195 -> 10,000.00 | G196: 0.58 | I196: =+I195 -> 1 | J196: =IF(P193=0,0,$F196*$G196) -> 0.00 | K196: 0.00 | L196: 0.00 | M196: 0.00 | N196: 0.00 | O196: 0.00 | P196: 0.00 | Q196: 0.00 | R196: 0.00 | S196: 0.00 | T196: 0.00 | U196: 0.00 | V196: 0.00 | W196: 0.00 | X196: 0.00 | Y196: 0.00 | Z196: 0.00 | AA196: 0.00 | AB196: 0.00 | AC196: 0.00 | AD196: 0.00 | AE196: 0.00 | AF196: 0.00 | AG196: 0.00 | AH196: 0.00 | AI196: 0.00 | AJ196: 0.00 | AK196: 0.00 | AL196: 0.00 | AM196: 0.00 | AN196: 0.00 | AQ196: =IF(AW193=0,0,$F196*$G196) -> 0.00 | AR196: 0.00 | AS196: 0.00 | AT196: 0.00 | AU196: 0.00 | AV196: 0.00 | AW196: 0.00 | AX196: 0.00 | AY196: 0.00 | AZ196: 0.00 | BA196: 0.00 | BB196: 0.00 | BC196: 0.00 | BD196: 0.00 | BE196: 0.00 | BF196: 0.00 | BG196: 0.00 | BH196: 0.00 | BI196: 0.00 | BJ196: 0.00 | BK196: 0.00 | BL196: 0.00 | BM196: 0.00 | BN196: 0.00 | BO196: 0.00 | BP196: 0.00 | BQ196: 0.00 | BR196: 0.00 | BS196: 0.00 | BT196: 0.00 | BU196: 0.00 | BV196: 0.00 | BW196: 0.00 | BX196: 0.00 | BY196: 0.00 | BZ196: 0.00 | CA196: 0.00 | CB196: 0.00 | CC196: 0.00 | CD196: 0.00 | CE196: 0.00 | CF196: 0.00 | CG196: 0.00
E197: Envoi | F197: 10,000.00 | G197: 0.10 | I197: =+I196 -> 1 | J197: =IF(P193=0,0,$F197*$G197) -> 0.00 | K197: 0.00 | L197: 0.00 | M197: 0.00 | N197: 0.00 | O197: 0.00 | P197: 0.00 | Q197: 0.00 | R197: 0.00 | S197: 0.00 | T197: 0.00 | U197: 0.00 | V197: 0.00 | W197: 0.00 | X197: 0.00 | Y197: 0.00 | Z197: 0.00 | AA197: 0.00 | AB197: 0.00 | AC197: 0.00 | AD197: 0.00 | AE197: 0.00 | AF197: 0.00 | AG197: 0.00 | AH197: 0.00 | AI197: 0.00 | AJ197: 0.00 | AK197: 0.00 | AL197: 0.00 | AM197: 0.00 | AN197: 0.00 | AQ197: =IF(AW193=0,0,$F197*$G197) -> 0.00 | AR197: 0.00 | AS197: 0.00 | AT197: 0.00 | AU197: 0.00 | AV197: 0.00 | AW197: 0.00 | AX197: 0.00 | AY197: 0.00 | AZ197: 0.00 | BA197: 0.00 | BB197: 0.00 | BC197: 0.00 | BD197: 0.00 | BE197: 0.00 | BF197: 0.00 | BG197: 0.00 | BH197: 0.00 | BI197: 0.00 | BJ197: 0.00 | BK197: 0.00 | BL197: 0.00 | BM197: 0.00 | BN197: 0.00 | BO197: 0.00 | BP197: 0.00 | BQ197: 0.00 | BR197: 0.00 | BS197: 0.00 | BT197: 0.00 | BU197: 0.00 | BV197: 0.00 | BW197: 0.00 | BX197: 0.00 | BY197: 0.00 | BZ197: 0.00 | CA197: 0.00 | CB197: 0.00 | CC197: 0.00 | CD197: 0.00 | CE197: 0.00 | CF197: 0.00 | CG197: 0.00
C199: =+C205+1 -> 3 | D199: =C199+$A$121 -> 124 | E199: VENTE | F199: =+C124 -> Adeps | G199: =+G124 -> 4.00 | H199: Prix achat | I199: =$A$103+C199 -> 106 | J199: =IF(J106=0,0,J106) -> 0.00 | K199: =IF(K106=0,0,K106) -> 0.00 | L199: 0.00 | M199: 0.00 | N199: 0.00 | O199: 0.00 | P199: 0.00 | Q199: 0.00 | R199: 0.00 | S199: 0.00 | T199: 0.00 | U199: 0.00 | V199: 0.00 | W199: 0.00 | X199: 0.00 | Y199: 0.00 | Z199: 0.00 | AA199: 0.00 | AB199: 0.00 | AC199: 0.00 | AD199: 0.00 | AE199: 0.00 | AF199: 0.00 | AG199: 0.00 | AH199: 0.00 | AI199: 0.00 | AJ199: 154,500.00 | AK199: 154,500.00 | AL199: 0.00 | AM199: 154,500.00 | AN199: 0.00 | AO199: 0.00 | AP199: 0.00 | AQ199: 0.00 | AR199: 0.00 | AS199: 0.00 | AT199: 0.00 | AU199: 0.00 | AV199: 0.00 | AW199: 0.00 | AX199: 0.00 | AY199: 0.00 | AZ199: 0.00 | BA199: 0.00 | BB199: 0.00 | BC199: 0.00 | BD199: 0.00 | BE199: 0.00 | BF199: 0.00 | BG199: 0.00 | BH199: 0.00 | BI199: 0.00 | BJ199: 0.00 | BK199: 0.00 | BL199: 0.00 | BM199: 0.00 | BN199: 0.00 | BO199: 0.00 | BP199: 0.00 | BQ199: 0.00 | BR199: 0.00 | BS199: 0.00 | BT199: 0.00 | BU199: 0.00 | BV199: 0.00 | BW199: =IF(BW106=0,0,BW106) -> 0.00 | BX199: 0.00 | BY199: 0.00 | BZ199: 0.00 | CA199: 0.00 | CB199: 0.00 | CC199: 0.00 | CD199: 0.00 | CE199: 0.00 | CF199: 0.00 | CG199: 0.00
E200: ACHAT | F200: =+F124 -> 15,000.00 | G200: =G199-G201-G202-G203 -> 2.55 | I200: =+I124 -> 1 | J200: =IF(J199=0,0,$F200*$G200) -> 0.00 | K200: 0.00 | L200: 0.00 | M200: 0.00 | N200: 0.00 | O200: 0.00 | P200: 0.00 | Q200: 0.00 | R200: 0.00 | S200: 0.00 | T200: 0.00 | U200: 0.00 | V200: 0.00 | W200: 0.00 | X200: 0.00 | Y200: 0.00 | Z200: 0.00 | AA200: 0.00 | AB200: 0.00 | AC200: 0.00 | AD200: 0.00 | AE200: 0.00 | AF200: 0.00 | AG200: 0.00 | AH200: 0.00 | AI200: 0.00 | AJ200: 38,250.00 | AK200: 38,250.00 | AL200: 0.00 | AM200: 38,250.00 | AN200: 0.00 | AQ200: =IF(AQ199=0,0,$F200*$G200) -> 0.00 | AR200: 0.00 | AS200: 0.00 | AT200: 0.00 | AU200: 0.00 | AV200: 0.00 | AW200: 0.00 | AX200: 0.00 | AY200: 0.00 | AZ200: 0.00 | BA200: 0.00 | BB200: 0.00 | BC200: 0.00 | BD200: 0.00 | BE200: 0.00 | BF200: 0.00 | BG200: 0.00 | BH200: 0.00 | BI200: 0.00 | BJ200: 0.00 | BK200: 0.00 | BL200: 0.00 | BM200: 0.00 | BN200: 0.00 | BO200: 0.00 | BP200: 0.00 | BQ200: 0.00 | BR200: 0.00 | BS200: 0.00 | BT200: 0.00 | BU200: 0.00 | BV200: 0.00 | BW200: 0.00 | BX200: 0.00 | BY200: 0.00 | BZ200: 0.00 | CA200: 0.00 | CB200: 0.00 | CC200: 0.00 | CD200: 0.00 | CE200: 0.00 | CF200: 0.00 | CG200: 0.00
E201: Fabrication | F201: =+F200 -> 15,000.00 | G201: 0.77 | I201: =+I200 -> 1 | J201: =IF(P199=0,0,$F201*$G201) -> 0.00 | K201: 0.00 | L201: 0.00 | M201: 0.00 | N201: 0.00 | O201: 0.00 | P201: 0.00 | Q201: 0.00 | R201: 0.00 | S201: 0.00 | T201: 0.00 | U201: 0.00 | V201: 0.00 | W201: 0.00 | X201: 0.00 | Y201: 0.00 | Z201: 0.00 | AA201: 0.00 | AB201: 0.00 | AC201: 0.00 | AD201: 11,550.00 | AE201: 11,550.00 | AF201: 0.00 | AG201: 11,550.00 | AH201: 0.00 | AI201: 0.00 | AJ201: 0.00 | AK201: 0.00 | AL201: 0.00 | AM201: 0.00 | AN201: 0.00 | AQ201: =IF(AW199=0,0,$F201*$G201) -> 0.00 | AR201: 0.00 | AS201: 0.00 | AT201: 0.00 | AU201: 0.00 | AV201: 0.00 | AW201: 0.00 | AX201: 0.00 | AY201: 0.00 | AZ201: 0.00 | BA201: 0.00 | BB201: 0.00 | BC201: 0.00 | BD201: 0.00 | BE201: 0.00 | BF201: 0.00 | BG201: 0.00 | BH201: 0.00 | BI201: 0.00 | BJ201: 0.00 | BK201: 0.00 | BL201: 0.00 | BM201: 0.00 | BN201: 0.00 | BO201: 0.00 | BP201: 0.00 | BQ201: 0.00 | BR201: 0.00 | BS201: 0.00 | BT201: 0.00 | BU201: 0.00 | BV201: 0.00 | BW201: 0.00 | BX201: 0.00 | BY201: 0.00 | BZ201: 0.00 | CA201: 0.00 | CB201: 0.00 | CC201: 0.00 | CD201: 0.00 | CE201: 0.00 | CF201: 0.00 | CG201: 0.00
E202: Emballage | F202: =+F201 -> 15,000.00 | G202: 0.58 | I202: =+I201 -> 1 | J202: =IF(P199=0,0,$F202*$G202) -> 0.00 | K202: 0.00 | L202: 0.00 | M202: 0.00 | N202: 0.00 | O202: 0.00 | P202: 0.00 | Q202: 0.00 | R202: 0.00 | S202: 0.00 | T202: 0.00 | U202: 0.00 | V202: 0.00 | W202: 0.00 | X202: 0.00 | Y202: 0.00 | Z202: 0.00 | AA202: 0.00 | AB202: 0.00 | AC202: 0.00 | AD202: 8,700.00 | AE202: 8,700.00 | AF202: 0.00 | AG202: 8,700.00 | AH202: 0.00 | AI202: 0.00 | AJ202: 0.00 | AK202: 0.00 | AL202: 0.00 | AM202: 0.00 | AN202: 0.00 | AQ202: =IF(AW199=0,0,$F202*$G202) -> 0.00 | AR202: 0.00 | AS202: 0.00 | AT202: 0.00 | AU202: 0.00 | AV202: 0.00 | AW202: 0.00 | AX202: 0.00 | AY202: 0.00 | AZ202: 0.00 | BA202: 0.00 | BB202: 0.00 | BC202: 0.00 | BD202: 0.00 | BE202: 0.00 | BF202: 0.00 | BG202: 0.00 | BH202: 0.00 | BI202: 0.00 | BJ202: 0.00 | BK202: 0.00 | BL202: 0.00 | BM202: 0.00 | BN202: 0.00 | BO202: 0.00 | BP202: 0.00 | BQ202: 0.00 | BR202: 0.00 | BS202: 0.00 | BT202: 0.00 | BU202: 0.00 | BV202: 0.00 | BW202: 0.00 | BX202: 0.00 | BY202: 0.00 | BZ202: 0.00 | CA202: 0.00 | CB202: 0.00 | CC202: 0.00 | CD202: 0.00 | CE202: 0.00 | CF202: 0.00 | CG202: 0.00
E203: Envoi | F203: 15,000.00 | G203: 0.10 | I203: =+I202 -> 1 | J203: =IF(P199=0,0,$F203*$G203) -> 0.00 | K203: 0.00 | L203: 0.00 | M203: 0.00 | N203: 0.00 | O203: 0.00 | P203: 0.00 | Q203: 0.00 | R203: 0.00 | S203: 0.00 | T203: 0.00 | U203: 0.00 | V203: 0.00 | W203: 0.00 | X203: 0.00 | Y203: 0.00 | Z203: 0.00 | AA203: 0.00 | AB203: 0.00 | AC203: 0.00 | AD203: 1,500.00 | AE203: 1,500.00 | AF203: 0.00 | AG203: 1,500.00 | AH203: 0.00 | AI203: 0.00 | AJ203: 0.00 | AK203: 0.00 | AL203: 0.00 | AM203: 0.00 | AN203: 0.00 | AQ203: =IF(AW199=0,0,$F203*$G203) -> 0.00 | AR203: 0.00 | AS203: 0.00 | AT203: 0.00 | AU203: 0.00 | AV203: 0.00 | AW203: 0.00 | AX203: 0.00 | AY203: 0.00 | AZ203: 0.00 | BA203: 0.00 | BB203: 0.00 | BC203: 0.00 | BD203: 0.00 | BE203: 0.00 | BF203: 0.00 | BG203: 0.00 | BH203: 0.00 | BI203: 0.00 | BJ203: 0.00 | BK203: 0.00 | BL203: 0.00 | BM203: 0.00 | BN203: 0.00 | BO203: 0.00 | BP203: 0.00 | BQ203: 0.00 | BR203: 0.00 | BS203: 0.00 | BT203: 0.00 | BU203: 0.00 | BV203: 0.00 | BW203: 0.00 | BX203: 0.00 | BY203: 0.00 | BZ203: 0.00 | CA203: 0.00 | CB203: 0.00 | CC203: 0.00 | CD203: 0.00 | CE203: 0.00 | CF203: 0.00 | CG203: 0.00
C205: =+C211+1 -> 2 | D205: =C205+$A$121 -> 123 | E205: VENTE | F205: =+C123 -> FOYER | G205: =+G123 -> 3.80 | H205: Prix achat | I205: =$A$103+C205 -> 105 | J205: =IF(J105=0,0,J105) -> 0.00 | K205: =IF(K105=0,0,K105) -> 0.00 | L205: 0.00 | M205: 0.00 | N205: 0.00 | O205: 0.00 | P205: 0.00 | Q205: 0.00 | R205: 0.00 | S205: 0.00 | T205: 0.00 | U205: 0.00 | V205: 0.00 | W205: 0.00 | X205: 0.00 | Y205: 0.00 | Z205: 0.00 | AA205: 0.00 | AB205: 0.00 | AC205: 0.00 | AD205: 0.00 | AE205: 0.00 | AF205: 0.00 | AG205: 0.00 | AH205: 0.00 | AI205: 0.00 | AJ205: 245,000.00 | AK205: 245,000.00 | AL205: 0.00 | AM205: 245,000.00 | AN205: 0.00 | AO205: 0.00 | AP205: 0.00 | AQ205: 0.00 | AR205: 0.00 | AS205: 0.00 | AT205: 0.00 | AU205: 0.00 | AV205: 0.00 | AW205: 0.00 | AX205: 0.00 | AY205: 0.00 | AZ205: 0.00 | BA205: 0.00 | BB205: 0.00 | BC205: 0.00 | BD205: 0.00 | BE205: 0.00 | BF205: 0.00 | BG205: 0.00 | BH205: 0.00 | BI205: 0.00 | BJ205: 0.00 | BK205: 0.00 | BL205: 0.00 | BM205: 0.00 | BN205: 0.00 | BO205: 0.00 | BP205: 0.00 | BQ205: 0.00 | BR205: 0.00 | BS205: 0.00 | BT205: 0.00 | BU205: 0.00 | BV205: 0.00 | BW205: =IF(BW105=0,0,BW105) -> 0.00 | BX205: 0.00 | BY205: 0.00 | BZ205: 0.00 | CA205: 0.00 | CB205: 0.00 | CC205: 0.00 | CD205: 0.00 | CE205: 0.00 | CF205: 0.00 | CG205: 0.00
E206: ACHAT | F206: =+F123 -> 25,000.00 | G206: =G205-G207-G208-G209 -> 2.35 | I206: =+I123 -> 1 | J206: =IF(J205=0,0,$F206*$G206) -> 0.00 | K206: 0.00 | L206: 0.00 | M206: 0.00 | N206: 0.00 | O206: 0.00 | P206: 0.00 | Q206: 0.00 | R206: 0.00 | S206: 0.00 | T206: 0.00 | U206: 0.00 | V206: 0.00 | W206: 0.00 | X206: 0.00 | Y206: 0.00 | Z206: 0.00 | AA206: 0.00 | AB206: 0.00 | AC206: 0.00 | AD206: 0.00 | AE206: 0.00 | AF206: 0.00 | AG206: 0.00 | AH206: 0.00 | AI206: 0.00 | AJ206: 58,750.00 | AK206: 58,750.00 | AL206: 0.00 | AM206: 58,750.00 | AN206: 0.00 | AQ206: =IF(AQ205=0,0,$F206*$G206) -> 0.00 | AR206: 0.00 | AS206: 0.00 | AT206: 0.00 | AU206: 0.00 | AV206: 0.00 | AW206: 0.00 | AX206: 0.00 | AY206: 0.00 | AZ206: 0.00 | BA206: 0.00 | BB206: 0.00 | BC206: 0.00 | BD206: 0.00 | BE206: 0.00 | BF206: 0.00 | BG206: 0.00 | BH206: 0.00 | BI206: 0.00 | BJ206: 0.00 | BK206: 0.00 | BL206: 0.00 | BM206: 0.00 | BN206: 0.00 | BO206: 0.00 | BP206: 0.00 | BQ206: 0.00 | BR206: 0.00 | BS206: 0.00 | BT206: 0.00 | BU206: 0.00 | BV206: 0.00 | BW206: 0.00 | BX206: 0.00 | BY206: 0.00 | BZ206: 0.00 | CA206: 0.00 | CB206: 0.00 | CC206: 0.00 | CD206: 0.00 | CE206: 0.00 | CF206: 0.00 | CG206: 0.00
E207: Fabrication | F207: =+F206 -> 25,000.00 | G207: 0.77 | I207: =+I206 -> 1 | J207: =IF(P205=0,0,$F207*$G207) -> 0.00 | K207: 0.00 | L207: 0.00 | M207: 0.00 | N207: 0.00 | O207: 0.00 | P207: 0.00 | Q207: 0.00 | R207: 0.00 | S207: 0.00 | T207: 0.00 | U207: 0.00 | V207: 0.00 | W207: 0.00 | X207: 0.00 | Y207: 0.00 | Z207: 0.00 | AA207: 0.00 | AB207: 0.00 | AC207: 0.00 | AD207: 19,250.00 | AE207: 19,250.00 | AF207: 0.00 | AG207: 19,250.00 | AH207: 0.00 | AI207: 0.00 | AJ207: 0.00 | AK207: 0.00 | AL207: 0.00 | AM207: 0.00 | AN207: 0.00 | AQ207: =IF(AW205=0,0,$F207*$G207) -> 0.00 | AR207: 0.00 | AS207: 0.00 | AT207: 0.00 | AU207: 0.00 | AV207: 0.00 | AW207: 0.00 | AX207: 0.00 | AY207: 0.00 | AZ207: 0.00 | BA207: 0.00 | BB207: 0.00 | BC207: 0.00 | BD207: 0.00 | BE207: 0.00 | BF207: 0.00 | BG207: 0.00 | BH207: 0.00 | BI207: 0.00 | BJ207: 0.00 | BK207: 0.00 | BL207: 0.00 | BM207: 0.00 | BN207: 0.00 | BO207: 0.00 | BP207: 0.00 | BQ207: 0.00 | BR207: 0.00 | BS207: 0.00 | BT207: 0.00 | BU207: 0.00 | BV207: 0.00 | BW207: 0.00 | BX207: 0.00 | BY207: 0.00 | BZ207: 0.00 | CA207: 0.00 | CB207: 0.00 | CC207: 0.00 | CD207: 0.00 | CE207: 0.00 | CF207: 0.00 | CG207: 0.00
E208: Emballage | F208: =+F207 -> 25,000.00 | G208: 0.58 | I208: =+I207 -> 1 | J208: =IF(P205=0,0,$F208*$G208) -> 0.00 | K208: 0.00 | L208: 0.00 | M208: 0.00 | N208: 0.00 | O208: 0.00 | P208: 0.00 | Q208: 0.00 | R208: 0.00 | S208: 0.00 | T208: 0.00 | U208: 0.00 | V208: 0.00 | W208: 0.00 | X208: 0.00 | Y208: 0.00 | Z208: 0.00 | AA208: 0.00 | AB208: 0.00 | AC208: 0.00 | AD208: 14,500.00 | AE208: 14,500.00 | AF208: 0.00 | AG208: 14,500.00 | AH208: 0.00 | AI208: 0.00 | AJ208: 0.00 | AK208: 0.00 | AL208: 0.00 | AM208: 0.00 | AN208: 0.00 | AQ208: =IF(AW205=0,0,$F208*$G208) -> 0.00 | AR208: 0.00 | AS208: 0.00 | AT208: 0.00 | AU208: 0.00 | AV208: 0.00 | AW208: 0.00 | AX208: 0.00 | AY208: 0.00 | AZ208: 0.00 | BA208: 0.00 | BB208: 0.00 | BC208: 0.00 | BD208: 0.00 | BE208: 0.00 | BF208: 0.00 | BG208: 0.00 | BH208: 0.00 | BI208: 0.00 | BJ208: 0.00 | BK208: 0.00 | BL208: 0.00 | BM208: 0.00 | BN208: 0.00 | BO208: 0.00 | BP208: 0.00 | BQ208: 0.00 | BR208: 0.00 | BS208: 0.00 | BT208: 0.00 | BU208: 0.00 | BV208: 0.00 | BW208: 0.00 | BX208: 0.00 | BY208: 0.00 | BZ208: 0.00 | CA208: 0.00 | CB208: 0.00 | CC208: 0.00 | CD208: 0.00 | CE208: 0.00 | CF208: 0.00 | CG208: 0.00
E209: Envoi | F209: 25,000.00 | G209: 0.10 | I209: =+I208 -> 1 | J209: =IF(P205=0,0,$F209*$G209) -> 0.00 | K209: 0.00 | L209: 0.00 | M209: 0.00 | N209: 0.00 | O209: 0.00 | P209: 0.00 | Q209: 0.00 | R209: 0.00 | S209: 0.00 | T209: 0.00 | U209: 0.00 | V209: 0.00 | W209: 0.00 | X209: 0.00 | Y209: 0.00 | Z209: 0.00 | AA209: 0.00 | AB209: 0.00 | AC209: 0.00 | AD209: 2,500.00 | AE209: 2,500.00 | AF209: 0.00 | AG209: 2,500.00 | AH209: 0.00 | AI209: 0.00 | AJ209: 0.00 | AK209: 0.00 | AL209: 0.00 | AM209: 0.00 | AN209: 0.00 | AQ209: =IF(AW205=0,0,$F209*$G209) -> 0.00 | AR209: 0.00 | AS209: 0.00 | AT209: 0.00 | AU209: 0.00 | AV209: 0.00 | AW209: 0.00 | AX209: 0.00 | AY209: 0.00 | AZ209: 0.00 | BA209: 0.00 | BB209: 0.00 | BC209: 0.00 | BD209: 0.00 | BE209: 0.00 | BF209: 0.00 | BG209: 0.00 | BH209: 0.00 | BI209: 0.00 | BJ209: 0.00 | BK209: 0.00 | BL209: 0.00 | BM209: 0.00 | BN209: 0.00 | BO209: 0.00 | BP209: 0.00 | BQ209: 0.00 | BR209: 0.00 | BS209: 0.00 | BT209: 0.00 | BU209: 0.00 | BV209: 0.00 | BW209: 0.00 | BX209: 0.00 | BY209: 0.00 | BZ209: 0.00 | CA209: 0.00 | CB209: 0.00 | CC209: 0.00 | CD209: 0.00 | CE209: 0.00 | CF209: 0.00 | CG209: 0.00
C211: 1 | D211: =C211+$A$121 -> 122 | E211: VENTE | F211: =+C122 -> UGAP | G211: =+G122 -> 3.80 | H211: Prix achat | I211: =$A$103+C211 -> 104 | J211: =IF(J104=0,0,J104) -> 0.00 | K211: =IF(K104=0,0,K104) -> 0.00 | L211: 0.00 | M211: 0.00 | N211: 0.00 | O211: 0.00 | P211: 0.00 | Q211: 0.00 | R211: 0.00 | S211: 0.00 | T211: 0.00 | U211: 0.00 | V211: 0.00 | W211: 0.00 | X211: 0.00 | Y211: 0.00 | Z211: 0.00 | AA211: 0.00 | AB211: =IF(AB104=0,0,AB104) -> 0.00 | AC211: 0.00 | AD211: 0.00 | AE211: 0.00 | AF211: 0.00 | AG211: 0.00 | AH211: 245,000.00 | AI211: =IF(AI104=0,0,AI104) -> 0.00 | AJ211: 0.00 | AK211: 0.00 | AL211: 0.00 | AM211: 0.00 | AN211: 0.00 | AO211: 0.00 | AP211: 0.00 | AQ211: 0.00 | AR211: 0.00 | AS211: 0.00 | AT211: 0.00 | AU211: 0.00 | AV211: 0.00 | AW211: 0.00 | AX211: 0.00 | AY211: 0.00 | AZ211: 0.00 | BA211: 0.00 | BB211: 0.00 | BC211: 0.00 | BD211: 0.00 | BE211: 0.00 | BF211: 0.00 | BG211: 0.00 | BH211: 0.00 | BI211: 0.00 | BJ211: 0.00 | BK211: 0.00 | BL211: 0.00 | BM211: 0.00 | BN211: 0.00 | BO211: 0.00 | BP211: 0.00 | BQ211: 0.00 | BR211: 0.00 | BS211: 0.00 | BT211: 0.00 | BU211: 0.00 | BV211: 0.00 | BW211: 0.00 | BX211: 0.00 | BY211: 0.00 | BZ211: 0.00 | CA211: 0.00 | CB211: 0.00 | CC211: 0.00 | CD211: 0.00 | CE211: 0.00 | CF211: 0.00 | CG211: 0.00
E212: ACHAT | F212: =+F122 -> 25,000.00 | G212: =G211-G213-G214-G215 -> 2.35 | I212: =+I122 -> 1 | J212: =IF(J211=0,0,$F212*$G212) -> 0.00 | K212: =IF(K211=0,0,$F212*$G212) -> 0.00 | L212: 0.00 | M212: 0.00 | N212: 0.00 | O212: 0.00 | P212: 0.00 | Q212: 0.00 | R212: 0.00 | S212: 0.00 | T212: 0.00 | U212: 0.00 | V212: 0.00 | W212: 0.00 | X212: 0.00 | Y212: 0.00 | Z212: 0.00 | AA212: 0.00 | AB212: =IF(AB211=0,0,$F212*$G212) -> 0.00 | AC212: 0.00 | AD212: 0.00 | AE212: 0.00 | AF212: 0.00 | AG212: 0.00 | AH212: 58,750.00 | AI212: =IF(AI211=0,0,$F212*$G212) -> 0.00 | AJ212: 0.00 | AK212: 0.00 | AL212: 0.00 | AM212: 0.00 | AN212: 0.00 | AO212: 0.00 | AP212: 0.00 | AQ212: 0.00 | AR212: 0.00 | AS212: 0.00 | AT212: 0.00 | AU212: 0.00 | AV212: 0.00 | AW212: 0.00 | AX212: 0.00 | AY212: 0.00 | AZ212: 0.00 | BA212: 0.00 | BB212: 0.00 | BC212: 0.00 | BD212: 0.00 | BE212: 0.00 | BF212: 0.00 | BG212: 0.00 | BH212: 0.00 | BI212: 0.00 | BJ212: 0.00 | BK212: 0.00 | BL212: 0.00 | BM212: 0.00 | BN212: 0.00 | BO212: 0.00 | BP212: 0.00 | BQ212: 0.00 | BR212: 0.00 | BS212: 0.00 | BT212: 0.00 | BU212: 0.00 | BV212: 0.00 | BW212: 0.00 | BX212: 0.00 | BY212: 0.00 | BZ212: 0.00 | CA212: 0.00 | CB212: 0.00 | CC212: 0.00 | CD212: 0.00 | CE212: 0.00 | CF212: 0.00 | CG212: 0.00
E213: Fabrication | F213: =+F212 -> 25,000.00 | G213: 0.77 | I213: =+I212 -> 1 | J213: =IF(P211=0,0,$F213*$G213) -> 0.00 | K213: =IF(Q211=0,0,$F213*$G213) -> 0.00 | L213: 0.00 | M213: 0.00 | N213: 0.00 | O213: 0.00 | P213: 0.00 | Q213: 0.00 | R213: 0.00 | S213: 0.00 | T213: 0.00 | U213: 0.00 | V213: 0.00 | W213: 0.00 | X213: 0.00 | Y213: 0.00 | Z213: 0.00 | AA213: 0.00 | AB213: 0.00 | AC213: 0.00 | AD213: 0.00 | AE213: 0.00 | AF213: 0.00 | AG213: 0.00 | AH213: =IF(AH212=0,0,$F213*$G213) -> 19,250.00 | AI213: 0.00 | AJ213: 0.00 | AK213: 0.00 | AL213: 0.00 | AM213: 0.00 | AN213: 0.00 | AO213: 0.00 | AP213: 0.00 | AQ213: 0.00 | AR213: 0.00 | AS213: 0.00 | AT213: 0.00 | AU213: 0.00 | AV213: 0.00 | AW213: 0.00 | AX213: 0.00 | AY213: 0.00 | AZ213: 0.00 | BA213: 0.00 | BB213: 0.00 | BC213: 0.00 | BD213: 0.00 | BE213: 0.00 | BF213: 0.00 | BG213: 0.00 | BH213: 0.00 | BI213: 0.00 | BJ213: 0.00 | BK213: 0.00 | BL213: 0.00 | BM213: 0.00 | BN213: 0.00 | BO213: 0.00 | BP213: 0.00 | BQ213: 0.00 | BR213: 0.00 | BS213: 0.00 | BT213: 0.00 | BU213: 0.00 | BV213: 0.00 | BW213: 0.00 | BX213: 0.00 | BY213: 0.00 | BZ213: 0.00 | CA213: 0.00 | CB213: 0.00 | CC213: 0.00 | CD213: 0.00 | CE213: 0.00 | CF213: 0.00 | CG213: 0.00
E214: Emballage | F214: =+F213 -> 25,000.00 | G214: 0.58 | I214: =+I213 -> 1 | J214: =IF(P211=0,0,$F214*$G214) -> 0.00 | K214: =IF(Q211=0,0,$F214*$G214) -> 0.00 | L214: 0.00 | M214: 0.00 | N214: 0.00 | O214: 0.00 | P214: 0.00 | Q214: 0.00 | R214: 0.00 | S214: 0.00 | T214: 0.00 | U214: 0.00 | V214: 0.00 | W214: 0.00 | X214: 0.00 | Y214: 0.00 | Z214: 0.00 | AA214: 0.00 | AB214: 0.00 | AC214: 0.00 | AD214: 0.00 | AE214: 0.00 | AF214: 0.00 | AG214: 0.00 | AH214: =IF(AH213=0,0,$F214*$G214) -> 14,500.00 | AI214: 0.00 | AJ214: 0.00 | AK214: 0.00 | AL214: 0.00 | AM214: 0.00 | AN214: 0.00 | AO214: 0.00 | AP214: 0.00 | AQ214: 0.00 | AR214: 0.00 | AS214: 0.00 | AT214: 0.00 | AU214: 0.00 | AV214: 0.00 | AW214: 0.00 | AX214: 0.00 | AY214: 0.00 | AZ214: 0.00 | BA214: 0.00 | BB214: 0.00 | BC214: 0.00 | BD214: 0.00 | BE214: 0.00 | BF214: 0.00 | BG214: 0.00 | BH214: 0.00 | BI214: 0.00 | BJ214: 0.00 | BK214: 0.00 | BL214: 0.00 | BM214: 0.00 | BN214: 0.00 | BO214: 0.00 | BP214: 0.00 | BQ214: 0.00 | BR214: 0.00 | BS214: 0.00 | BT214: 0.00 | BU214: 0.00 | BV214: 0.00 | BW214: 0.00 | BX214: 0.00 | BY214: 0.00 | BZ214: 0.00 | CA214: 0.00 | CB214: 0.00 | CC214: 0.00 | CD214: 0.00 | CE214: 0.00 | CF214: 0.00 | CG214: 0.00
E215: Envoi | F215: =+F214 -> 25,000.00 | G215: 0.10 | I215: =+I214 -> 1 | J215: =IF(P211=0,0,$F215*$G215) -> 0.00 | K215: =IF(Q211=0,0,$F215*$G215) -> 0.00 | L215: 0.00 | M215: 0.00 | N215: 0.00 | O215: 0.00 | P215: 0.00 | Q215: 0.00 | R215: 0.00 | S215: 0.00 | T215: 0.00 | U215: 0.00 | V215: 0.00 | W215: 0.00 | X215: 0.00 | Y215: 0.00 | Z215: 0.00 | AA215: 0.00 | AB215: 0.00 | AC215: 0.00 | AD215: 0.00 | AE215: 0.00 | AF215: 0.00 | AG215: 0.00 | AH215: =IF(AH214=0,0,$F215*$G215) -> 2,500.00 | AI215: 0.00 | AJ215: 0.00 | AK215: 0.00 | AL215: 0.00 | AM215: 0.00 | AN215: 0.00 | AO215: 0.00 | AP215: 0.00 | AQ215: 0.00 | AR215: 0.00 | AS215: 0.00 | AT215: 0.00 | AU215: 0.00 | AV215: 0.00 | AW215: 0.00 | AX215: 0.00 | AY215: 0.00 | AZ215: 0.00 | BA215: 0.00 | BB215: 0.00 | BC215: 0.00 | BD215: 0.00 | BE215: 0.00 | BF215: 0.00 | BG215: 0.00 | BH215: 0.00 | BI215: 0.00 | BJ215: 0.00 | BK215: 0.00 | BL215: 0.00 | BM215: 0.00 | BN215: 0.00 | BO215: 0.00 | BP215: 0.00 | BQ215: 0.00 | BR215: 0.00 | BS215: 0.00 | BT215: 0.00 | BU215: 0.00 | BV215: 0.00 | BW215: 0.00 | BX215: 0.00 | BY215: 0.00 | BZ215: 0.00 | CA215: 0.00 | CB215: 0.00 | CC215: 0.00 | CD215: 0.00 | CE215: 0.00 | CF215: 0.00 | CG215: 0.00

Sheet F_NDF
A1: NOTE DE FRAIS | E1: JUIN | F1: 2018
A2: , | B2: ELLIPSE Feet sprl
A3: , | B3: BE6180 Courcelles - Rue de Monceau 19
A4: , | B4: TÉLÉPHONE | C4: =VLOOKUP(F4,TAB_Utilisateur,3) -> +32 475 31 44 01 | E4: NOM | F4: DEMAN Gérard | I4: OBJET | J4: =VLOOKUP(E1,tab_mois,2,FALSE) -> 6 | L4: FORFAIT KILOMÉTRE | N4: 0.50 €/km
A5: , | B5: TÉLÉCOPIE | E5: SERVICE | F5: Administration | I5: DÉBUT | J5: =DATE(F1,J4,1) -> 2018-06-01 | L5: FORFAIT REPAS
A6: , | B6: MAIL | C6: =VLOOKUP($F$4,TAB_Utilisateur,2) -> demang@skynet.be | E6: POSITION | F6: =VLOOKUP($F$4,TAB_Utilisateur,4) -> Gérant | I6: FIN | J6: =DATE(F1,J4+1,1)-1 -> 2018-06-30 | L6: FORFAIT HÔTEL
A7: , | I7: APPROUVÉ PAR | L7: FORFAIT DIVERS
A8: , | J8: Kilomètrage
A9: , | B9: Colonne1 | C9: COMPTE | D9: DESCRIPTION | E9: HÔTEL | F9: TRANSPORT | G9: REPAS | H9: TÉLÉPHONE | I9: DIVERS | J9: DÉBUT | K9: FIN | L9: TOTAL | M9: TOTAL | N9: LIBELLE | O9: 2 | P9: 3 | Q9: OPDIV | R9: Colonne2 | S9: Ref NDF | AB9: PARAMETRES | AD9: ,, | AF9: ,, | AH9: ,, | AJ9: ,, | AL9: ,,
A10: OK | B10: 2018-03-20 | C10: Administration | D10: Restaurant | G10: €175.50 | L10: =IF(COUNTA(tblExpenses[[#This Row],[DÉBUT]:[FIN]])=2,(tblExpenses[[#This Row],[FIN]]-tblExpenses[[#This Row],[DÉBUT]])*MileageRate,"") ->  | M10: =IF(COUNTA(tblExpenses[[#This Row],[Colonne1]:[FIN]])=0,"",SUM(tblExpenses[[#This Row],[HÔTEL]:[TRANSPORT]],tblExpenses[[#This Row],[REPAS]:[DIVERS]],((tblExpenses[[#This Row],[FIN]]-tblExpenses[[#This Row],[DÉBUT]])*(MileageRate)))) -> 175.50 € | N10: DG & GM & JFA | O10: Préparation Ellipse | P10: L'Avenue | Q10: Par CMDD | S10: =+J4 -> 6 | T10: / | U10: 1 | AB10: MOIS | AE10: COMPTES | AG10: TYPE | AI10: MOIS | AK10: MOIS | AM10: UTILISATEUR | AN10: UTILISATEUR | AP10: UTILISATEUR
A11: OK | B11: 2018-04-20 | C11: Administration | D11: Restaurant | G11: €286.00 | L11: =IF(COUNTA(tblExpenses[[#This Row],[DÉBUT]:[FIN]])=2,(tblExpenses[[#This Row],[FIN]]-tblExpenses[[#This Row],[DÉBUT]])*MileageRate,"") ->  | M11: =IF(COUNTA(tblExpenses[[#This Row],[Colonne1]:[FIN]])=0,"",SUM(tblExpenses[[#This Row],[HÔTEL]:[TRANSPORT]],tblExpenses[[#This Row],[REPAS]:[DIVERS]],((tblExpenses[[#This Row],[FIN]]-tblExpenses[[#This Row],[DÉBUT]])*(MileageRate)))) -> 286.00 € | N11: DG & GM & JFA | O11: Préparation Ellipse | P11: L'Avenue | Q11: Par DG | S11: =+S10 -> 6 | T11: / | U11: =+U10+1 -> 2 | AB11: JANVIER | AC11: 1 | AE11: ? | AG11: ? | AI11: ? | AK11: ? | AM11: ANGELETTI Jean Fraçois | AN11: jfangeletti@skynet.be | AP11: Comptable
A12: OK | B12: 2018-05-08 | C12: Administration | D12: Restaurant | G12: €130.50 | L12: =IF(COUNTA(tblExpenses[[#This Row],[DÉBUT]:[FIN]])=2,(tblExpenses[[#This Row],[FIN]]-tblExpenses[[#This Row],[DÉBUT]])*MileageRate,"") ->  | M12: =IF(COUNTA(tblExpenses[[#This Row],[Colonne1]:[FIN]])=0,"",SUM(tblExpenses[[#This Row],[HÔTEL]:[TRANSPORT]],tblExpenses[[#This Row],[REPAS]:[DIVERS]],((tblExpenses[[#This Row],[FIN]]-tblExpenses[[#This Row],[DÉBUT]])*(MileageRate)))) -> 130.50 € | N12: DG & GM | O12: Préparation Ellipse | P12: La table du Grec | Q12: Par CMDD | S12: =+S11 -> 6 | T12: / | U12: =+U11+1 -> 3 | AB12: FEVRIER | AC12: 2 | AE12: Administration | AG12: Kilométrage | AI12: OK | AK12: OD ACH | AM12: DEMAN Gérard | AN12: demang@skynet.be | AO12: +32 475 31 44 01 | AP12: Gérant
A13: OK | B13: 2018-05-16 | C13: Administration | D13: Restaurant | G13: €157.00 | L13: =IF(COUNTA(tblExpenses[[#This Row],[DÉBUT]:[FIN]])=2,(tblExpenses[[#This Row],[FIN]]-tblExpenses[[#This Row],[DÉBUT]])*MileageRate,"") ->  | M13: =IF(COUNTA(tblExpenses[[#This Row],[Colonne1]:[FIN]])=0,"",SUM(tblExpenses[[#This Row],[HÔTEL]:[TRANSPORT]],tblExpenses[[#This Row],[REPAS]:[DIVERS]],((tblExpenses[[#This Row],[FIN]]-tblExpenses[[#This Row],[DÉBUT]])*(MileageRate)))) -> 157.00 € | N13: DG & GM & JFA | O13: Préparation Ellipse | P13: Le relais de haute sambre | Q13: Par CMDD | S13: =+S12 -> 6 | T13: / | U13: 4 | AB13: MARS | AC13: 3 | AE13: Comptabilité | AG13: Restaurant | AI13: A voir | AK13: PaieDIRECT | AM13: GASPAR Antonio
A14: OK | B14: 2018-05-29 | C14: Administration | D14: Administratif | I14: €9.48 | L14: =IF(COUNTA(tblExpenses[[#This Row],[DÉBUT]:[FIN]])=2,(tblExpenses[[#This Row],[FIN]]-tblExpenses[[#This Row],[DÉBUT]])*MileageRate,"") ->  | M14: =IF(COUNTA(tblExpenses[[#This Row],[Colonne1]:[FIN]])=0,"",SUM(tblExpenses[[#This Row],[HÔTEL]:[TRANSPORT]],tblExpenses[[#This Row],[REPAS]:[DIVERS]],((tblExpenses[[#This Row],[FIN]]-tblExpenses[[#This Row],[DÉBUT]])*(MileageRate)))) -> 9.48 € | N14: Société com | O14: données FreeFeet | Q14: Par CMDD | S14: 6 | T14: / | U14: 5 | AB14: AVRIL | AC14: 4 | AE14: Vente | AG14: Hotel | AI14: Refusé | AK14: Par CMDD | AM14: MARECHAL Guy | AN14: revival@gmarechal.fr | AP14: Commercial
A15: OK | B15: 2018-05-29 | C15: Administration | D15: Administratif | I15: €18.96 | L15: =IF(COUNTA(tblExpenses[[#This Row],[DÉBUT]:[FIN]])=2,(tblExpenses[[#This Row],[FIN]]-tblExpenses[[#This Row],[DÉBUT]])*MileageRate,"") ->  | M15: =IF(COUNTA(tblExpenses[[#This Row],[Colonne1]:[FIN]])=0,"",SUM(tblExpenses[[#This Row],[HÔTEL]:[TRANSPORT]],tblExpenses[[#This Row],[REPAS]:[DIVERS]],((tblExpenses[[#This Row],[FIN]]-tblExpenses[[#This Row],[DÉBUT]])*(MileageRate)))) -> 18.96 € | N15: Société com | O15: données Loopstop | Q15: Par CMDD | S15: 6 | T15: / | U15: 6 | AB15: MAI | AC15: 5 | AG15: Vetements | AK15: Par DG
A16: OK | B16: 2018-06-06 | C16: Administration | D16: Administratif | G16: €203.00 | L16: =IF(COUNTA(tblExpenses[[#This Row],[DÉBUT]:[FIN]])=2,(tblExpenses[[#This Row],[FIN]]-tblExpenses[[#This Row],[DÉBUT]])*MileageRate,"") ->  | M16: =IF(COUNTA(tblExpenses[[#This Row],[Colonne1]:[FIN]])=0,"",SUM(tblExpenses[[#This Row],[HÔTEL]:[TRANSPORT]],tblExpenses[[#This Row],[REPAS]:[DIVERS]],((tblExpenses[[#This Row],[FIN]]-tblExpenses[[#This Row],[DÉBUT]])*(MileageRate)))) -> 203.00 € | N16: DG & GM | O16: Préparation Ellipse | P16: La peite gayolle | Q16: Par CMDD | S16: 6 | T16: / | U16: 7 | AB16: JUIN | AC16: 6 | AG16: Administratif | AK16: Par JFA
A17: OK | B17: 2018-06-08 | C17: Administration | D17: Administratif | G17: €228.50 | L17: =IF(COUNTA(tblExpenses[[#This Row],[DÉBUT]:[FIN]])=2,(tblExpenses[[#This Row],[FIN]]-tblExpenses[[#This Row],[DÉBUT]])*MileageRate,"") ->  | M17: =IF(COUNTA(tblExpenses[[#This Row],[Colonne1]:[FIN]])=0,"",SUM(tblExpenses[[#This Row],[HÔTEL]:[TRANSPORT]],tblExpenses[[#This Row],[REPAS]:[DIVERS]],((tblExpenses[[#This Row],[FIN]]-tblExpenses[[#This Row],[DÉBUT]])*(MileageRate)))) -> 228.50 € | N17: DG & GM & JFA | O17: Préparation Ellipse | P17: Brasserie du Quai | Q17: Par CMDD | S17: 6 | T17: / | U17: 8 | AB17: JUILLET | AC17: 7 | AG17: Téléphone
A18: OK | B18: 2018-06-13 | C18: Administration | D18: Administratif | G18: €134.10 | L18: =IF(COUNTA(tblExpenses[[#This Row],[DÉBUT]:[FIN]])=2,(tblExpenses[[#This Row],[FIN]]-tblExpenses[[#This Row],[DÉBUT]])*MileageRate,"") ->  | M18: =IF(COUNTA(tblExpenses[[#This Row],[Colonne1]:[FIN]])=0,"",SUM(tblExpenses[[#This Row],[HÔTEL]:[TRANSPORT]],tblExpenses[[#This Row],[REPAS]:[DIVERS]],((tblExpenses[[#This Row],[FIN]]-tblExpenses[[#This Row],[DÉBUT]])*(MileageRate)))) -> 134.10 € | N18: DG & GM & Baudoin Francois | O18: Factoring | P18: Au 813 | Q18: Par CMDD | S18: 6 | T18: / | U18: 9 | AB18: AOÛT | AC18: 8 | AG18: Autres
A19: ? | C19: Administration | D19: ? | L19: =IF(COUNTA(tblExpenses[[#This Row],[DÉBUT]:[FIN]])=2,(tblExpenses[[#This Row],[FIN]]-tblExpenses[[#This Row],[DÉBUT]])*MileageRate,"") ->  | M19: =IF(COUNTA(tblExpenses[[#This Row],[Colonne1]:[FIN]])=0,"",SUM(tblExpenses[[#This Row],[HÔTEL]:[TRANSPORT]],tblExpenses[[#This Row],[REPAS]:[DIVERS]],((tblExpenses[[#This Row],[FIN]]-tblExpenses[[#This Row],[DÉBUT]])*(MileageRate)))) -> 0.00 € | Q19: ? | S19: 6 | T19: / | U19: 10 | AB19: SEPTEMBRE | AC19: 9
A20: ? | C20: Administration | D20: ? | L20: =IF(COUNTA(tblExpenses[[#This Row],[DÉBUT]:[FIN]])=2,(tblExpenses[[#This Row],[FIN]]-tblExpenses[[#This Row],[DÉBUT]])*MileageRate,"") ->  | M20: =IF(COUNTA(tblExpenses[[#This Row],[Colonne1]:[FIN]])=0,"",SUM(tblExpenses[[#This Row],[HÔTEL]:[TRANSPORT]],tblExpenses[[#This Row],[REPAS]:[DIVERS]],((tblExpenses[[#This Row],[FIN]]-tblExpenses[[#This Row],[DÉBUT]])*(MileageRate)))) -> 0.00 € | Q20: ? | S20: 6 | T20: / | U20: 11 | AB20: OCTOBRE | AC20: 10
A21: ? | C21: Administration | D21: ? | L21: =IF(COUNTA(tblExpenses[[#This Row],[DÉBUT]:[FIN]])=2,(tblExpenses[[#This Row],[FIN]]-tblExpenses[[#This Row],[DÉBUT]])*MileageRate,"") ->  | M21: =IF(COUNTA(tblExpenses[[#This Row],[Colonne1]:[FIN]])=0,"",SUM(tblExpenses[[#This Row],[HÔTEL]:[TRANSPORT]],tblExpenses[[#This Row],[REPAS]:[DIVERS]],((tblExpenses[[#This Row],[FIN]]-tblExpenses[[#This Row],[DÉBUT]])*(MileageRate)))) -> 0.00 € | Q21: ? | S21: 6 | T21: / | U21: 12 | AB21: NOVEMBRE | AC21: 11
A22: ? | C22: Administration | D22: ? | L22: =IF(COUNTA(tblExpenses[[#This Row],[DÉBUT]:[FIN]])=2,(tblExpenses[[#This Row],[FIN]]-tblExpenses[[#This Row],[DÉBUT]])*MileageRate,"") ->  | M22: =IF(COUNTA(tblExpenses[[#This Row],[Colonne1]:[FIN]])=0,"",SUM(tblExpenses[[#This Row],[HÔTEL]:[TRANSPORT]],tblExpenses[[#This Row],[REPAS]:[DIVERS]],((tblExpenses[[#This Row],[FIN]]-tblExpenses[[#This Row],[DÉBUT]])*(MileageRate)))) -> 0.00 € | Q22: ? | S22: 6 | T22: / | U22: 13 | AB22: DÉCEMBRE | AC22: 12
A23: ? | C23: Administration | D23: ? | L23: =IF(COUNTA(tblExpenses[[#This Row],[DÉBUT]:[FIN]])=2,(tblExpenses[[#This Row],[FIN]]-tblExpenses[[#This Row],[DÉBUT]])*MileageRate,"") ->  | M23: =IF(COUNTA(tblExpenses[[#This Row],[Colonne1]:[FIN]])=0,"",SUM(tblExpenses[[#This Row],[HÔTEL]:[TRANSPORT]],tblExpenses[[#This Row],[REPAS]:[DIVERS]],((tblExpenses[[#This Row],[FIN]]-tblExpenses[[#This Row],[DÉBUT]])*(MileageRate)))) -> 0.00 € | Q23: ? | S23: 6 | T23: / | U23: 14
A24: ? | C24: Administration | D24: ? | L24: =IF(COUNTA(tblExpenses[[#This Row],[DÉBUT]:[FIN]])=2,(tblExpenses[[#This Row],[FIN]]-tblExpenses[[#This Row],[DÉBUT]])*MileageRate,"") ->  | M24: =IF(COUNTA(tblExpenses[[#This Row],[Colonne1]:[FIN]])=0,"",SUM(tblExpenses[[#This Row],[HÔTEL]:[TRANSPORT]],tblExpenses[[#This Row],[REPAS]:[DIVERS]],((tblExpenses[[#This Row],[FIN]]-tblExpenses[[#This Row],[DÉBUT]])*(MileageRate)))) -> 0.00 € | Q24: ? | S24: 6 | T24: / | U24: 15
A25: ? | C25: Administration | D25: ? | L25: =IF(COUNTA(tblExpenses[[#This Row],[DÉBUT]:[FIN]])=2,(tblExpenses[[#This Row],[FIN]]-tblExpenses[[#This Row],[DÉBUT]])*MileageRate,"") ->  | M25: =IF(COUNTA(tblExpenses[[#This Row],[Colonne1]:[FIN]])=0,"",SUM(tblExpenses[[#This Row],[HÔTEL]:[TRANSPORT]],tblExpenses[[#This Row],[REPAS]:[DIVERS]],((tblExpenses[[#This Row],[FIN]]-tblExpenses[[#This Row],[DÉBUT]])*(MileageRate)))) -> 0.00 € | Q25: ? | S25: 6 | T25: / | U25: 16
A26: ? | C26: Administration | D26: ? | L26: =IF(COUNTA(tblExpenses[[#This Row],[DÉBUT]:[FIN]])=2,(tblExpenses[[#This Row],[FIN]]-tblExpenses[[#This Row],[DÉBUT]])*MileageRate,"") ->  | M26: =IF(COUNTA(tblExpenses[[#This Row],[Colonne1]:[FIN]])=0,"",SUM(tblExpenses[[#This Row],[HÔTEL]:[TRANSPORT]],tblExpenses[[#This Row],[REPAS]:[DIVERS]],((tblExpenses[[#This Row],[FIN]]-tblExpenses[[#This Row],[DÉBUT]])*(MileageRate)))) -> 0.00 € | Q26: ? | S26: 6 | T26: / | U26: 17
A27: ? | C27: Administration | D27: ? | L27: =IF(COUNTA(tblExpenses[[#This Row],[DÉBUT]:[FIN]])=2,(tblExpenses[[#This Row],[FIN]]-tblExpenses[[#This Row],[DÉBUT]])*MileageRate,"") ->  | M27: =IF(COUNTA(tblExpenses[[#This Row],[Colonne1]:[FIN]])=0,"",SUM(tblExpenses[[#This Row],[HÔTEL]:[TRANSPORT]],tblExpenses[[#This Row],[REPAS]:[DIVERS]],((tblExpenses[[#This Row],[FIN]]-tblExpenses[[#This Row],[DÉBUT]])*(MileageRate)))) -> 0.00 € | Q27: ? | S27: 6 | T27: / | U27: 18
A28: ? | C28: Administration | D28: ? | L28: =IF(COUNTA(tblExpenses[[#This Row],[DÉBUT]:[FIN]])=2,(tblExpenses[[#This Row],[FIN]]-tblExpenses[[#This Row],[DÉBUT]])*MileageRate,"") ->  | M28: =IF(COUNTA(tblExpenses[[#This Row],[Colonne1]:[FIN]])=0,"",SUM(tblExpenses[[#This Row],[HÔTEL]:[TRANSPORT]],tblExpenses[[#This Row],[REPAS]:[DIVERS]],((tblExpenses[[#This Row],[FIN]]-tblExpenses[[#This Row],[DÉBUT]])*(MileageRate)))) -> 0.00 € | Q28: ? | S28: 6 | T28: / | U28: 19
A29: , | B29: TOTAUX | E29: =SUBTOTAL(109,tblExpenses[HÔTEL]) -> 0 | F29: =SUBTOTAL(109,tblExpenses[TRANSPORT]) -> 0 | G29: =SUBTOTAL(109,tblExpenses[REPAS]) -> €1,314.60 | H29: =SUBTOTAL(109,tblExpenses[TÉLÉPHONE]) -> 0 | I29: =SUBTOTAL(109,tblExpenses[DIVERS]) -> €28.44 | M29: =SUBTOTAL(109,tblExpenses[[TOTAL ]]) -> 1,343.04 €
A30: , | L30: AVANCES | M30: 0.00 €
A31: , | G31: A payer au compte | I31: BE | L31: TOTAL | M31: =tblExpenses[[#Totals],[TOTAL ]]-Avances -> 1,343.04 €
A32: , | B32: , | C32: , | D32: , | E32: , | F32: , | G32: , | H32: , | I32: , | J32: , | K32: , | L32: , | M32: , | N32: , | O32: , | P32: , | Q32: , | R32: , | S32: , | T32: , | U32: ,

Sheet F_PARA
A1: " | B1: DONNEES DE FEUILELES ET VERSIONS | C1: Ces parametres d'initilisation servent pour la sauvegarde et la copie | F1: * | G1: CELZOOM | I1: Année | J1: * | K1: * | L1: * | N1: DONNEES PDF | O1: =NOW() -> 2018-07-08T17:55:01.490 | Q1: *
A2: 1 | B2: Operating systeme | C2: Windows (32-bit) NT :.00 | G2: 10 | I2: 0 | M2: Vs_ | N2: ImpRep | O2: =+C18 -> S:\0EllipsesFeet\SUIVI\UTIL\
A3: =+A2+1 -> 2 | B3: Path application | C3: C:\Program Files (x86)\Microsoft Office\Office16 | M3: Vs_ | N3: ImpNom | O3: Salaires
A4: 3 | B4: Path Workbook | C4: S:\0EllipsesFeet\SUIVI | M4: Vs_ | N4: ImpAn | O4: =+I2 -> 0
A5: 4 | B5: Workbook Name | C5: BANQUE revu.xlsm | M5: Vs_ | N5: ImpMois | P5: =IF(O5<4,"Trim1",IF(O5<7,"Trim2",IF(O5<10,"Trim3","Trim4"))) -> Trim1
A6: 5 | B6: Nb de caractere fichier | C6: =LEN(C5) -> 16 | D6: nombre de caratétes de C5 | M6: Vs_ | N6: ImpJour | O6: 1
A7: 6 | B7: Nb de caractere exctension | C7: 5 | D7: nombre de caratétes de l'extension en C5 (,xlsm) | M7: Vs_ | N7: ImpNomFeuille | O7: F_PARA
A8: 7 | B8: Nb de caratcere Nom | C8: =C6-C7 -> 11 | D8: nombre de caratétes du fichier en C5 (C6 - C7) | M8: Vs_ | N8: ImpSuffixe | O8: .pdf
A9: 8 | B9: Nom simple hors extension | C9: =LEFT(C5,C8) -> BANQUE revu | D9: sur base de C8 reconstitution du nom | O9: F:\0FDATA\0COORDINATION\ZLES CYGNES\PRG\Horaire\UTIL\Salaires2018 1 31 F_JAN.pdf
A10: 9 | B10: Path avec séparateur | C10: =CONCATENATE(C4,"\") -> S:\0EllipsesFeet\SUIVI\ | D10: sur base de C4, reconstitution du path | O10: F_PLANING
A11: 10 | B11: disque actuel | C11: =LEFT(C4,1) -> S | D11: sur base de C4, sélection du disque actuel
A12: 11 | B12: disque choisi | C12: C | D12: Choix du disque d'instalation A PROGRAMMER | N12: ADRESSE MAILING | O12: demang@skynet.be
A13: 12 | B13: Nb de caratere Path separateur | C13: =LEN(C10) -> 23 | D13: nombre de caratétes de C10 | M13: Vs_ | N13: MailDest | O13: demang@skynet.be
A14: 13 | B14: Nb de caractere sans disque | C14: =C13-1 -> 22 | D14: C13 -1 | G14: TSF DE FEUILLE | M14: Vs_ | N14: MailCc | O14: demang@skynet.be
A15: 14 | B15: répertoire sans disque | C15: =RIGHT(C10,C14) -> :\0EllipsesFeet\SUIVI\ | D15: sur base de C10 | G15: =+O7 -> F_PARA | M15: Vs_ | N15: MailBc | O15: demang@skynet.be
A16: 15 | B16: Path choisi avec disque et répertoir | C16: =CONCATENATE($C$11,$C$15,$C$17,"\") -> S:\0EllipsesFeet\SUIVI\BK\ | D16: Constitutioin du dir de sauvegarde C11/C15/C17 | G16: =RIGHT($G$15,3) -> ARA | M16: Vs_ | N16: MailSubject | O16: Salaires
A17: 16 | B17: REPERTOIRE des SAUVEGARDES Loco | C17: BK | D17: choix du nom du dir de sauvegarde | G17: =LEFT($G$15,2) -> F_ | M17: Vs_ | N17: MailBody | O17: =CONCATENATE(O27," ",O28," ",O29," ",+O30," ",+O31," ",+O32) -> Vous trouverez en annexe la feuille récapitulative pour les Salaires du 0 mois 0
A18: 17 | B18: Path des utilitaires | C18: =CONCATENATE($C$11,$C$15,$C$19,"\") -> S:\0EllipsesFeet\SUIVI\UTIL\ | G18: =CONCATENATE(G17,G16) -> F_ARA | M18: Vs_ | N18: Mailttach | O18: =+O9 -> F:\0FDATA\0COORDINATION\ZLES CYGNES\PRG\Horaire\UTIL\Salaires2018 1 31 F_JAN.pdf
A19: 18 | B19: REPERTOIRE des UTILITAIRES | C19: UTIL | D19: Compteur de sauvegarde | G19: =CONCATENATE(G17,"H",G16) -> F_HARA
A20: 19 | B20: compteur | C20: 31 | D20: Compteur de sauvegarde
A21: 20 | B21: initiale | C21: dg | D21: Initialisation des sauvegarde | O21: =100/4*P21 -> 25 | P21: 1
A22: 21 | B22: Date du jour | C22: 2018-07-08 | G22: COMPTEUR essait | O22: =100/4*P22 -> 50 | P22: 2
A23: 22 | B23: Nom simple hors extension | C23: =CONCATENATE(A1,C9,A1) -> "BANQUE revu" | O23: =100/4*P23 -> 75 | P23: 3
A24: 23 | B24: Bacup sur disque | C24: =CONCATENATE($C$25,$C$17,"\") -> C:\ZVBABU\BK\ | O24: =100/4*P24 -> 100 | P24: 4
A25: 24 | B25: Path choisi avec disque et répertoir | C25: C:\ZVBABU\
A26: 25 | B26: Path des Photos | C26: =CONCATENATE($C$11,$C$15,$C$27,"\") -> S:\0EllipsesFeet\SUIVI\PHOTOS\ | N26: CONSTITUTION DU CORPS DU MLAIL
A27: 26 | B27: REPERTOIRE des PHOTOS | C27: PHOTOS | N27: 1 | O27: Vous trouverez en annexe la feuille récapitulative pour les
N28: 2 | O28: =+O16 -> Salaires
N29: 3 | O29: du
N30: 4 | O30: =+O5 -> 0
N31: 5 | O31: mois
N32: 6 | O32: =+O4 -> 0
